Workbook

Sheet AER Sheet Heading (hidden)
B1: =INDEX(dms_Worksheet_List,MATCH(dms_Model,dms_Model_List)) -> REGULATORY REPORTING STATEMENT
B2: =INDEX(dms_TradingNameFull_List,MATCH(dms_TradingName,dms_TradingName_List)) -> AusNet Transmission Group Pty Ltd
B3: =dms_Header_Span -> 2020-21 - 2026-27
B4: XX
C11: EXPENDITURE
C12: =CONCATENATE("Forecast ($0's, real ",dms_DollarReal,")") -> Forecast ($0's, real March 2022)
C13: =dms_y1 -> 2020-21 | D13: =dms_y2 -> 2021-22 | E13: =dms_y3 -> 2022-23 | F13: =dms_y4 -> 2023-24 | G13: =dms_y5 -> 2024-25 | H13: =dms_y6 -> 2025-26 | I13: =dms_y7 -> 2026-27
C42: VOLUMES
C43: 0's
C44: =CRCP_y4 -> 2020-21 | D44: =CRCP_y5 -> 2021-22 | E44: =FRCP_y1 -> 2022-23 | F44: =FRCP_y2 -> 2023-24 | G44: =FRCP_y3 -> 2024-25 | H44: =FRCP_y4 -> 2025-26 | I44: =FRCP_y5 -> 2026-27

Sheet AER CF (hidden)
B1: AER CONDITIONAL FORMATTING
B3: CELLS FLAGED "Y" and greyed out will be greyed out in the worksheets.
B4: CONDITIONAL FORMATTING MAP
F5: =INDEX(dms_CF_3.6.1, MATCH(dms_TradingName,dms_CF_TradingName))="Y" | G5: =INDEX(dms_CF_3.6.5, MATCH(dms_TradingName,dms_CF_TradingName))="Y" | H5: =INDEX(dms_CF_3.6.6.1, MATCH(dms_TradingName,dms_CF_TradingName))="Y" | I5: =INDEX(dms_CF_3.6.6.2, MATCH(dms_TradingName,dms_CF_TradingName))="Y" | J5: =INDEX(dms_CF_3.6.6.3, MATCH(dms_TradingName,dms_CF_TradingName))="Y" | K5: =INDEX(dms_CF_3.6.7.1, MATCH(dms_TradingName,dms_CF_TradingName))="Y" | L5: =INDEX(dms_CF_3.6.7.2, MATCH(dms_TradingName,dms_CF_TradingName))="Y" | M5: =INDEX(dms_CF_3.6.7.3, MATCH(dms_TradingName,dms_CF_TradingName))="Y" | N5: =INDEX(dms_CF_3.6.7.4, MATCH(dms_TradingName,dms_CF_TradingName))="Y" | O5: =INDEX(dms_CF_3.6.8, MATCH(dms_TradingName,dms_CF_TradingName))="Y" | P5: =INDEX(dms_CF_4.1, MATCH(dms_TradingName,dms_CF_TradingName))="Y" | Q5: =INDEX(dms_CF_6.8, MATCH(dms_TradingName,dms_CF_TradingName))="Y" | R5: =INDEX(dms_CF_7.12, MATCH(dms_TradingName,dms_CF_TradingName))="Y" | S5: =INDEX(dms_CF_8.1_A, MATCH(dms_TradingName,dms_CF_TradingName))="Y" | T5: =INDEX(dms_CF_8.1_B, MATCH(dms_TradingName,dms_CF_TradingName))="Y" | U5: =INDEX(dms_CF_8.1_Neg, MATCH(dms_TradingName,dms_CF_TradingName))="Y" -> TRUE | V5: =INDEX(dms_CF_4.4.1_Neg, MATCH(dms_TradingName,dms_CF_TradingName))="Y" | Y5: =INDEX(dms_CF_F10, MATCH(dms_TradingName,dms_CF_TradingName))="Y"
B6: dms_CF_TradingName | C6: JurisdictionList | D6: Sector | E6: Segment | F6: dms_CF_3.6.1 | G6: dms_CF_3.6.5 | H6: dms_CF_3.6.6.1 | I6: dms_CF_3.6.6.2 | J6: dms_CF_3.6.6.3 | K6: dms_CF_3.6.7.1 | L6: dms_CF_3.6.7.2 | M6: dms_CF_3.6.7.3 | N6: dms_CF_3.6.7.4 | O6: dms_CF_3.6.8 | P6: dms_CF_4.1 | Q6: dms_CF_6.8 (set from dms_MAIFI_flag) | R6: dms_CF_7.12 | S6: dms_CF_8.1_A (and 8.4) | T6: dms_CF_8.1_B (and 8.4) | U6: dms_CF_8.1_Neg (and 8.4) | V6: dms_CF_4.4.1 | W6: dms_CF_MAIFI_flag (set from dms_MAIFI_flag) | X6: 9.5 TUOS (set from Jurisdiction) | Y6: dms_CF_F10
B7: Ausgrid | C7: NSW | D7: Electricity | E7: Distribution | G7: Y | H7: N | I7: Y | J7: Y | K7: N | L7: N | M7: N | N7: Y | O7: N | P7: N | Q7: =IFERROR(IF(dms_MAIFI_flag="Yes","N","Y"),"Y") -> Y | R7: Y | S7: N | T7: Y | U7: Y | V7: N | W7: =IFERROR(LEFT(dms_MAIFI_flag),"N") -> N | X7: =IF('AER CF'!$C7="Vic","Y","N") -> N
B8: Ausgrid (Tx Assets) | C8: NSW | D8: Electricity | E8: Distribution | G8: Y | H8: N | I8: Y | J8: Y | K8: N | L8: N | M8: N | N8: Y | O8: N | P8: N | Q8: Y | R8: Y | S8: N | T8: Y | U8: Y | V8: N | W8: =IFERROR(LEFT(dms_MAIFI_flag),"N") -> N | X8: =IF('AER CF'!$C8="Vic","Y","N") -> N
B9: AusNet (D) | C9: Vic | D9: Electricity | E9: Distribution | G9: N | H9: N | K9: N | L9: N | M9: N | N9: N | O9: N | P9: N | Q9: Y | R9: N | S9: N | T9: N | U9: Y | V9: N | W9: =IFERROR(LEFT(dms_MAIFI_flag),"N") -> N | X9: =IF('AER CF'!$C9="Vic","Y","N") -> Y
B10: AusNet (T) | C10: Vic | D10: Electricity | E10: Transmission | G10: N | K10: N | L10: N | M10: N | N10: N | O10: N | P10: Y | Q10: Y | R10: N | S10: N | T10: N | U10: Y | V10: N | W10: N | X10: =IF('AER CF'!$C10="Vic","Y","N") -> Y
B11: Amadeus | C11: NT | D11: Gas | E11: Transmission | G11: N | K11: N | L11: N | M11: N | N11: N | O11: N | P11: Y | Q11: Y | R11: N | S11: N | T11: N | U11: Y | V11: N | W11: N | X11: =IF('AER CF'!$C11="Vic","Y","N") -> N | Y11: N
B12: APA GasNet | C12: Vic | D12: Gas | E12: Transmission | G12: N | K12: N | L12: N | M12: N | N12: N | O12: N | P12: Y | Q12: Y | R12: N | S12: N | T12: N | U12: Y | V12: N | W12: N | X12: =IF('AER CF'!$C12="Vic","Y","N") -> Y | Y12: Y
B13: Australian Distribution Co. | C13: NSW | D13: Electricity | E13: Distribution | F13: N | G13: N | H13: N | I13: N | K13: N | L13: N | M13: N | N13: N | O13: N | P13: N | Q13: Y | R13: N | S13: N | T13: N | U13: N | V13: N | W13: N | X13: =IF('AER CF'!$C13="Vic","Y","N") -> N
B14: Australian Distribution Co. (Vic) | C14: Vic | D14: Electricity | E14: Distribution | F14: N | G14: N | H14: N | I14: N | K14: N | L14: N | M14: N | N14: N | O14: N | P14: N | Q14: Y | R14: N | S14: N | T14: N | U14: N | V14: N | W14: N | X14: =IF('AER CF'!$C14="Vic","Y","N") -> Y
B15: CitiPower | C15: Vic | D15: Electricity | E15: Distribution | G15: N | H15: N | K15: N | L15: N | M15: N | N15: N | O15: N | P15: N | Q15: Y | R15: N | S15: N | T15: N | U15: Y | V15: N | W15: N | X15: =IF('AER CF'!$C15="Vic","Y","N") -> Y
B16: Directlink | C16: Qld | D16: Electricity | E16: Transmission | G16: N | K16: N | L16: N | M16: N | N16: N | O16: N | P16: Y | Q16: Y | R16: N | S16: N | T16: Y | U16: Y | V16: N | W16: N | X16: =IF('AER CF'!$C16="Vic","Y","N") -> N
B17: ElectraNet | C17: SA | D17: Electricity | E17: Transmission | G17: N | K17: N | L17: N | M17: N | N17: N | O17: N | P17: Y | Q17: Y | R17: N | S17: N | T17: Y | U17: Y | V17: N | W17: N | X17: =IF('AER CF'!$C17="Vic","Y","N") -> N
B18: Endeavour Energy | C18: NSW | D18: Electricity | E18: Distribution | G18: Y | H18: N | I18: Y | J18: Y | K18: N | L18: N | M18: N | N18: Y | O18: N | P18: N | Q18: Y | R18: Y | S18: N | T18: Y | U18: Y | V18: Y | W18: N | X18: =IF('AER CF'!$C18="Vic","Y","N") -> N
B19: Energex | C19: Qld | D19: Electricity | E19: Distribution | G19: Y | H19: N | K19: N | L19: N | M19: N | N19: N | O19: N | P19: N | Q19: Y | R19: Y | S19: N | T19: Y | U19: Y | V19: Y | W19: N | X19: =IF('AER CF'!$C19="Vic","Y","N") -> N
B20: Ergon Energy | C20: Qld | D20: Electricity | E20: Distribution | G20: Y | H20: N | I20: Y | J20: Y | K20: N | L20: N | M20: N | N20: N | O20: N | P20: N | Q20: Y | R20: Y | S20: N | T20: Y | U20: Y | V20: N | W20: N | X20: =IF('AER CF'!$C20="Vic","Y","N") -> N
B21: Essential Energy | C21: NSW | D21: Electricity | E21: Distribution | G21: Y | H21: N | I21: Y | J21: Y | K21: N | L21: N | M21: N | N21: Y | O21: N | P21: N | Q21: Y | R21: Y | S21: N | T21: Y | U21: Y | V21: N | W21: N | X21: =IF('AER CF'!$C21="Vic","Y","N") -> N
B22: Evoenergy Distribution | C22: ACT | D22: Electricity | E22: Distribution | G22: Y | H22: N | I22: Y | J22: Y | K22: Y | L22: Y | M22: N | N22: Y | O22: N | P22: Y | Q22: Y | R22: Y | S22: N | T22: Y | U22: Y | V22: N | W22: N | X22: =IF('AER CF'!$C22="Vic","Y","N") -> N
B23: Evoenergy Distribution (Tx Assets) | C23: ACT | D23: Electricity | E23: Distribution | G23: Y | H23: N | I23: Y | J23: Y | K23: Y | L23: Y | M23: N | N23: Y | O23: N | P23: Y | Q23: Y | R23: Y | S23: N | T23: Y | U23: Y | V23: N | W23: N | X23: =IF('AER CF'!$C23="Vic","Y","N") -> N
B24: Jemena Electricity | C24: Vic | D24: Electricity | E24: Distribution | G24: N | H24: N | K24: N | L24: N | M24: N | N24: N | O24: N | P24: N | Q24: Y | R24: N | S24: N | T24: N | U24: Y | V24: N | W24: N | X24: =IF('AER CF'!$C24="Vic","Y","N") -> Y
B25: Murraylink | C25: SA | D25: Electricity | E25: Transmission | G25: N | K25: N | L25: N | M25: N | N25: N | O25: N | P25: Y | Q25: Y | R25: N | S25: N | T25: Y | U25: Y | V25: N | W25: N | X25: =IF('AER CF'!$C25="Vic","Y","N") -> N
B26: Power and Water | C26: NT | D26: Electricity | E26: Distribution | G26: N | H26: N | K26: N | L26: Y | M26: N | N26: N | O26: N | P26: Y | Q26: Y | R26: Y | S26: N | T26: Y | U26: Y | V26: N | W26: N | X26: =IF('AER CF'!$C26="Vic","Y","N") -> N
B27: Powercor Australia | C27: Vic | D27: Electricity | E27: Distribution | G27: N | H27: N | K27: N | L27: N | M27: N | N27: N | O27: N | P27: N | Q27: Y | R27: N | S27: N | T27: N | U27: Y | V27: N | W27: N | X27: =IF('AER CF'!$C27="Vic","Y","N") -> Y
B28: Powerlink | C28: Qld | D28: Electricity | E28: Transmission | G28: N | K28: N | L28: N | M28: N | N28: N | O28: N | P28: Y | Q28: Y | R28: N | S28: N | T28: Y | U28: Y | V28: N | W28: N | X28: =IF('AER CF'!$C28="Vic","Y","N") -> N
B29: Roma to Brisbane Pipeline | C29: Qld | D29: Gas | E29: Transmission | G29: N | K29: N | L29: N | M29: N | N29: N | O29: N | P29: Y | Q29: Y | R29: N | S29: N | T29: N | U29: Y | V29: N | W29: N | X29: =IF('AER CF'!$C29="Vic","Y","N") -> N | Y29: Y
B30: SA Power Networks | C30: SA | D30: Electricity | E30: Distribution | G30: Y | H30: N | K30: N | L30: N | M30: N | N30: N | O30: N | P30: N | Q30: Y | R30: Y | S30: N | T30: Y | U30: N | V30: N | W30: N | X30: =IF('AER CF'!$C30="Vic","Y","N") -> N
B31: TasNetworks (D) | C31: Tas | D31: Electricity | E31: Distribution | G31: Y | H31: N | K31: N | L31: N | M31: N | N31: N | O31: N | P31: N | Q31: Y | R31: Y | S31: N | T31: Y | U31: Y | V31: N | W31: N | X31: =IF('AER CF'!$C31="Vic","Y","N") -> N
B32: TasNetworks (T) | C32: Tas | D32: Electricity | E32: Transmission | G32: N | K32: N | L32: N | M32: N | N32: N | O32: N | P32: Y | Q32: Y | R32: N | S32: N | T32: Y | U32: Y | V32: N | W32: N | X32: =IF('AER CF'!$C32="Vic","Y","N") -> N
B33: TransGrid | C33: NSW | D33: Electricity | E33: Transmission | G33: N | K33: N | L33: N | M33: N | N33: N | O33: N | P33: Y | Q33: Y | R33: N | S33: N | T33: Y | U33: Y | V33: N | W33: N | X33: =IF('AER CF'!$C33="Vic","Y","N") -> N
B34: United Energy | C34: Vic | D34: Electricity | E34: Distribution | G34: N | H34: N | K34: N | L34: N | M34: N | N34: N | O34: N | P34: N | Q34: Y | R34: N | S34: N | T34: N | U34: Y | V34: N | W34: N | X34: =IF('AER CF'!$C34="Vic","Y","N") -> Y
B37: Confidential
B38: Amended
B40: Worksheet 6.2 STPIS reliability
B41: Formula | F41: Applied to:
B43: =INDEX(dms_CBD_flag,MATCH(dms_TradingName,dms_TradingName_List))="NO" | F43: $D$11,$D$17,$D$23,$D$33,$D$39,$D$45,$D$55,$D$61,$D$67,$D$77,$D$83,$D$89
B44: =INDEX(dms_Urban_flag,MATCH(dms_TradingName,dms_TradingName_List))="NO" | F44: $D$12,$D$18,$D$24,$D$56,$D$62,$D$78,$D$68,$D$84
B45: =INDEX(dms_ShortRural_flag,MATCH(dms_TradingName,dms_TradingName_List))="NO" | F45: $D$13,$D$19,$D$25,$D$57,$D$63,$D$69,$D$79,$D$85
B46: =INDEX(dms_LongRural_flag,MATCH(dms_TradingName,dms_TradingName_List))="NO" | F46: $D$14,$D$20,$D$26,$D$58,$D$64,$D$65,$D$70,$D$71,$D$80,$D$86
B47: =INDEX(dms_FeederType_5_flag,MATCH(dms_TradingName,dms_TradingName_List))="NO" | F47: $D$87,$D$81,$D$71,$D$65,$D$59,$D$49,$D$43,$D$37,$D$21,$D$15
B48: =dms_MAIFI_Flag="No" | F48: $D$55:$D$72
B51: Business & other details
B52: =(INDEX(dms_Model_Span,MATCH(dms_Model,dms_Model_List))>1)
B53: =(INDEX(dms_Model_Span,MATCH(dms_Model,dms_Model_List))=1)
B56: STYLES IN USE
B57: HEADING ONE | C57: dms_1
B58: HEADING TWO | C58: dms_2
B59: HEADING THREE | C59: dms_3
B60: HEADING FOUR | C60: dms_4
B61: HEADING FIVE | C61: dms_5
B62: 5.111 | C62: dms_NUM
B63: 0.0545 | C63: dms_NUM%
B64: 5.5555 | C64: dms_NUM3d
B65: Text description | C65: dms_Row_Locked
B66: Text description | C66: dms_Row1
B67: Text description | C67: dms_Row2
B68: Total | C68: dms_T1
B69: Total | C69: dms_T2
B70: EXPENSES | C70: dms_BH
B71: 2019 | C71: dms_BY1
B72: 2019 | C72: dms_BY2
B73: VOLUMES | C73: dms_GH
B74: 2019 | C74: dms_GY1
B75: 2019 | C75: dms_GY2

Sheet AER NRs (hidden)
B1: AER NAMED RANGES
B3: DROP DOWN SELECTORS USED IN WORKBOOKS
B5: COVER SHEET | C5: dms_DataQuality_List | D5: dms_Confid_status_List
C6: -- select -- | D6: -- select --
C7: Actual | D7: Public
C8: Estimate | D8: Confidential
C9: Consolidated
C12: For all files either AER or business needs to be able to specify the type of submission | D12: For PTRM & RFM templates we must provide a choice in case they change their form of control - otherwise it is drawn from the business specific lookup table above.
C13: dms_SourceList | D13: dms_FormControl_Choices
C14: -- select -- | D14: Revenue cap
C15: After appeal | D15: Revenue yield
C16: Draft decision | D16: Weighted average price cap
C17: Final decision
C18: PTRM update 1
C19: PTRM update 2
C20: PTRM update 3
C21: PTRM update 4
C22: PTRM update 5
C23: PTRM update 6
C24: PTRM update 7
C25: Recast
C26: Regulatory proposal
C27: Reporting
C28: Revised regulatory proposal
K31: This is used to create an image to insert on 6.3 STPIS sheet - not for dropdown lists. | N31: GAS
B32: CA & RESET RINS DNSP | C32: dms_DNSP_020301_SubstationType | D32: dms_DNSP_020301_ProjectType | E32: dms_DNSP_020301_ProjectTrigger | F32: dms_DNSP_020302_ProjectType | G32: dms_DNSP_020302_ProjectTrigger | H32: dms_STPIS_Exclusion_List | I32: dms_Reason_Interruption | J32: dms_Reason_Interruption_Detailed | K32: Reason for interruption | N32: dms_N0205_AssetType
C33: Subtransmission substation | D33: New substation establishment | E33: Demand growth | F33: New line on new route - single circuit | G33: Demand growth | H33: Weather | I33: Animal | J33: Animal impact | K33: Animal | L33: Animal impact | N33: Cast Iron
C34: Zone substation | D34: Substation upgrade - capacity | E34: Voltage issues | F34: New line on new route - dual circuit | G34: Voltage issues | H34: Equipment failure | I34: Asset failure | J34: Animal nesting/burrowing, etc and other | L34: Animal nesting/burrowing, etc and other | N34: PVC
C35: Switching station | D35: Substation upgrade - voltage | E35: Reactive power issue | F35: New line on new route - other | G35: Reactive power issue | H35: Operational error | I35: Other | J35: Other | L35: Other | N35: Polyamide
C36: Other | D36: Other | E36: Fault level issues | F36: Line rebuild over existing route - single circuit | G36: Fault level issues | H36: Vegetation | I36: Overloads | J36: LV | K36: Asset failure | L36: LV | N36: High density polyethylene (80)
E37: Safety | F37: Line rebuild over existing route - dual circuit | G37: Net market benefit | H37: Animals | I37: Planned | J37: Distribution substation | L37: Distribution substation | N37: High density polyethylene (100)
E38: Environment | F38: Reconductor - Single circuit | G38: Safety | H38: Third party impacts | I38: Network business | J38: HV | L38: HV | N38: High density polyethylene (250)
E39: Other | F39: Reconductor - Dual circuit | G39: Environment | H39: Transmission failure | I39: Third party | J39: Zone substation | L39: Zone substation | N39: High density polyethylene (575)
F40: Reconductor - Other | G40: Other | H40: Load shedding | I40: Unknown | J40: Subtransmission | L40: Subtransmission | N40: Medium density polyethylene
F41: Line upgrade - raising/retensoring | H41: Inter-distributor connection failure | I41: Vegetation | J41: insert description of 'other' | K41: Other | L41: insert description of 'other' | N41: Unprotected steel
F42: Line upgrade - voltage upgrade | H42: Other | I42: Weather | J42: Network error | K42: Overloads | N42: Protected steel
F43: Line upgrade - capacity | I43: 2 - STPIS Exclusion (3.3)(a) | J43: Switching and protection error | K43: Planned | N43: Other
F44: String spare circuit | I44: 3 - STPIS Exclusion (3.3)(a) | J44: Fire | K44: Network business | L44: Network error
F45: Other | I45: 4 - STPIS Exclusion (3.3)(a) | J45: Other | L45: Switching and protection error
I46: 5 - STPIS Exclusion (3.3)(a) | J46: Dig-in | K46: Third party | L46: Fire
I47: 6 - STPIS Exclusion (3.3)(a) | J47: Unauthorised access | L47: Other
I48: 7 - STPIS Exclusion (3.3)(a) | J48: Vehicle impact | L48: Dig-in
J49: Unknown | L49: Unauthorised access
J50: Blow-in/Fall-in - NSP responsibility | L50: Vehicle impact
J51: Grow-in - NSP responsibility | K51: Unknown | L51: Unknown
J52: Blow-in/Fall-in - Other responsible party | K52: Vegetation | L52: Blow-in/Fall-in - NSP responsibility
J53: Grow-in - Other responsible party | L53: Grow-in - NSP responsibility
L54: Blow-in/Fall-in - Other responsible party
L55: Grow-in - Other responsible party
K56: Weather
K57: 2 - STPIS Exclusion (3.3)(a)
K58: 3 - STPIS Exclusion (3.3)(a)
K59: 4 - STPIS Exclusion (3.3)(a)
K60: 5 - STPIS Exclusion (3.3)(a)
K61: 6 - STPIS Exclusion (3.3)(a)
K62: 7 - STPIS Exclusion (3.3)(a)
B65: CA & RESET RINS TNSP | C65: dms_TNSP_0203_SubstationType | D65: dms_TNSP_020301_ProjectType | E65: dms_TNSP_020301_ProjectTrigger | F65: dms_TNSP_020302_ProjectType | G65: dms_TNSP_0203_ProjectTrigger
C66: Terminal station | D66: New substation establishment | E66: Demand growth | F66: New line on new route - single circuit | G66: Demand growth
C67: Switching station | D67: Capacity upgrade | E67: Voltage issues | F67: New line on new route - dual circuit | G67: Voltage issues
C68: Transmission substation | D68: Voltage upgrade | E68: Reactive power issue | F68: New line on new route - other | G68: Reactive power issue
C69: Other | D69: Other | E69: Fault level issues | F69: Line rebuild over existing route - single circuit | G69: Fault level issues
E70: Net market benefit | F70: Line rebuild over existing route - dual circuit | G70: Net market benefit
E71: Safety | F71: Reconductor - Single circuit | G71: Safety
E72: Environment | F72: Reconductor - Dual circuit | G72: Environment
E73: Other | F73: Reconductor - Other | G73: Other
F74: Line upgrade - raising/retensoring
F75: Line upgrade - voltage upgrade
F76: Line upgrade - capacity
F77: String spare circuit
F78: Other
B82: NAMED RANGES USED IN ETL PROCESS
M83: GAS ARR & RESET
B84: CA & RESET RINS DNSP ONLY | C84: dms_020303_01_UOM | D84: dms_020501_01_UOM | E84: dms_020501_02_UOM | F84: dms_020501_03_UOM | G84: dms_020501_04_UOM | H84: dms_020701_01_UOM | I84: dms_020701_02_UOM | J84: dms_020701_01_Rows | K84: dms_040102_01_UOM | L84: dms_040102_04_UOM | M84: dms_S140101_UOM | N84: dms_E050201_UOM | O84: dms_E050302_UOM
C85: Circuit line length in km | D85: 0's | E85: 0's | F85: 0's | G85: 0's | H85: km | I85: km | J85: Route line length within zone | K85: 0's | L85: days | M85: number | N85: per metre per connection | O85: metres per connection
C86: Circuit line length in km | D86: 0's | E86: 0's | F86: 0's | G86: 0's | H86: 0's | I86: 0's | J86: Number of maintenance spans | K86: 0's | L86: 0's | M86: number | N86: per service per connection | O86: number per connection
C87: Circuit line length in km | D87: MVA added | E87: MVA added | F87: MVA added | G87: MVA added | H87: km | I87: km | J87: Total length of maintenance spans | K87: 0's | L87: $0s | M87: number | N87: number per connection | O87: number per connection
C88: Circuit line length in km | D88: 0's | E88: 0's | F88: 0's | G88: 0's | H88: km | I88: km | J88: Length of vegetation corridors | K88: $0s | L88: 0's | M88: km
C89: Number | D89: total spend $0s | E89: total spend $0s | F89: total spend $0s | G89: total spend $0s | H89: 0's | I89: 0's | J89: Average number of trees per maintenance span
C90: Number | D90: net circuit km added | E90: net circuit km added | F90: net circuit km added | G90: net circuit km added | H90: years | I90: years | J90: Average frequency of cutting cycle
C91: Number | D91: total spend $0s | E91: total spend $0s | F91: total spend $0s | G91: total spend $0s
D92: net circuit km added | E92: net circuit km added | F92: net circuit km added | G92: net circuit km added
D93: total spend $0s | E93: total spend $0s | F93: total spend $0s | G93: total spend $0s
D94: 0's | F94: $0s
D95: 0's
D96: 0's
D97: $0s
B100: CA & RESET RINS TNSP ONLY | C100: dms_020701_01_UOM
C101: km
C102: 0's
C103: km
C104: 0's
C105: km
C106: metres
C107: years
B110: CA & RESET RINS DNSP & TNSP | C110: dms_020603_01_UOM
C111: 0's
C112: 0's
C113: 0's
C114: 0's
C115: (per cent)
B118: EB & RESET RINS DNSP ONLY | C118: dms_030601_01_UOM | D118: dms_030601_02_UOM | E118: dms_030701_01_UOM | F118: dms_030702_01_UOM | G118: dms_030703_01_UOM
C119: minutes/customer | D119: minutes/customer | E119: Customer / km | F119: % | G119: km
C120: minutes/customer | D120: minutes/customer | E120: MWh/customer | F120: Number of spans
C121: interruptions/customer | D121: interruptions/customer | E121: kVA / customer | F121: Number of spans
C122: interruptions/customer | D122: interruptions/customer | F122: Number of spans
F123: Number of spans
F124: Years
F125: Years
F126: Trees
F127: Trees
F128: Defects
F129: Defects
F130: Spans
F131: km
F132: Spans
C134: WHEN INSERTING COVER SHEET INTO A TNSP FILE - APPLY THESE NAMED RANGES
B135: EB & RESET RINS TNSP ONLY | C135: dms_030601_01_UOM | E135: dms_030701_01_UOM | F135: dms_030702_01_UOM
C136: % | E136: Number of spans | F136: km
C137: number | E137: Years | F137: %
C138: number | E138: Trees | F138: km
C139: % | E139: Defects | F139: number
C140: number | E140: Number of spans
C141: number | E141: km
C142: % | E142: km
C143: number | E143: Number of spans
C144: number
C145: %
C146: number
C147: %
C148: number
C149: %
C150: number
B152: EB & RESET RINS DNSP & TNSP | C152: dms_EB_RAB_PIT
C153: Beginning of year
C154: End of year
C155: End of year
C156: End of year
C157: End of year
C158: End of year
B160: ARR DNSP ONLY | C160: dms_030605_UOM | D160: dms_03060703_UOM | E160: dms_E020202_UOM | F160: Spare
C161: number | D161: number | E161: Length of mains replaced
C162: number | D162: number | E162: Number of services replaced
C163: number | D163: number
C164: number | D164: number
C165: number | D165: (per cent)
C166: number
C167: number
C168: number
C169: number
C170: number
C171: number
C172: number
C173: (per cent)
C174: (per cent)
B176: RFM | C176: dms_Beg | D176: dms_Mid | E176: dms_End
C177: Beginning of year | D177: Mid year | E177: End of Year
B179: PTRM | C179: dms_PTRM_RAB_PIT | D179: dms_PTRM_TAB_PIT | E179: DMS_Xfactor
C180: Beginning of year | D180: Beginning of year | E180: x factors
C181: End of year | D181: End of year
C182: End of year | D182: End of year
C183: End of year | D183: End of year
C184: End of year
B187: STPIS & MIC NAMED RANGES
B189: These "row descriptions" are the column headings in the various templates but become row descriptions in the ETL process
B191: Table 6.3 sustained interruptions - row descriptions | C191: dms_060301_CustNo_Affected_Row | D191: dms_060301_Avg_Duration_Sustained_Int_Row | E191: dms_060301_Effect_unplanned_SAIDI_Row | F191: dms_060301_Effect_unplanned_SAIFI_Row
C192: Number of customers affected by the interruption | D192: Average duration of sustained customer interruption | E192: Effect on unplanned SAIDI | F192: Effect on unplanned SAIFI
B195: Table 6.1 telephone answering - row descriptions and start date | C195: dms_060101_Rows | D195: dms_060102_Rows | E195: dms_060101_StartDateTxt
C196: Total number of calls (after removing excluded events) | D196: Number of calls answered within 30 seconds (after excluding excluded events) | E196: =dms_060701_StartDateTxt -> 1-Jul-2015
B199: Table 6.8.1 - row descriptions | C199: dms_060801_01_Rows | D199: dms_060801_02_Rows | E199: dms_060801_03_Rows | F199: dms_060801_04_Rows
C200: Number of interruptions | D200: Duration of interruptions | E200: Total unplanned minutes off supply | F200: Effect on unplanned MAIFI
B203: Table 7.9.4 - market impact component - row descriptions | C203: dms_070904_01_Rows | D203: without exclusions | E203: with exclusions
B206: These headings (Lists) are determined from the INDEX/MATCH function on the NSP selected on the Business & other details sheet
B208: Table 6.7.1 - daily performance data - unplanned - MAIFI -- row descriptions and header named range values | C208: dms_060701_Feeder_Header_Lvl4 | D208: =INDEX(dms_FeederName_1,MATCH(dms_TradingName,dms_TradingName_List)) -> CBD | E208: =INDEX(dms_FeederName_1,MATCH(dms_TradingName,dms_TradingName_List)) -> CBD | F208: =INDEX(dms_FeederName_2,MATCH(dms_TradingName,dms_TradingName_List)) -> Urban | G208: =INDEX(dms_FeederName_2,MATCH(dms_TradingName,dms_TradingName_List)) -> Urban | H208: =INDEX(dms_FeederName_3,MATCH(dms_TradingName,dms_TradingName_List)) -> Short rural | I208: =INDEX(dms_FeederName_3,MATCH(dms_TradingName,dms_TradingName_List)) -> Short rural | J208: =INDEX(dms_FeederName_4,MATCH(dms_TradingName,dms_TradingName_List)) -> Long rural | K208: =INDEX(dms_FeederName_4,MATCH(dms_TradingName,dms_TradingName_List)) -> Long rural | L208: =IF((INDEX(dms_FeederName_5,MATCH(dms_TradingName,dms_TradingName_List))=0),"Network",(INDEX(dms_FeederName_5,MATCH(dms_TradingName,dms_TradingName_List)))) -> Network | M208: =IF((INDEX(dms_FeederName_5,MATCH(dms_TradingName,dms_TradingName_List))=0),"Network",(INDEX(dms_FeederName_5,MATCH(dms_TradingName,dms_TradingName_List)))) -> Network | N208: Network | O208: Network
C210: dms_060701_Rows | D210: All events | E210: After removing excluded events | F210: All events | G210: After removing excluded events | H210: All events | I210: After removing excluded events | J210: All events | K210: After removing excluded events | L210: All events | M210: After removing excluded events | N210: All events | O210: After removing excluded events
D211: the number of column headings changes from 10 to 12 depending on the number of feeder categories for the NSP
C213: dms_0603_FeederList | D213: =INDEX(dms_FeederName_1,MATCH(dms_TradingName,dms_TradingName_List)) -> CBD | E213: =INDEX(dms_FeederName_2,MATCH(dms_TradingName,dms_TradingName_List)) -> Urban | F213: =INDEX(dms_FeederName_3,MATCH(dms_TradingName,dms_TradingName_List)) -> Short rural | G213: =INDEX(dms_FeederName_4,MATCH(dms_TradingName,dms_TradingName_List)) -> Long rural
B216: Use these to add to specific worksheets in existing files | C216: Use these to add to specific worksheets in existing files
B219: ARRs 6.7 STPIS daily performance | C219: dms_060101_Values | D219: dms_060102_Values | E219: dms_060701_Values
C220: dms_LeapYear
B223: ARR's 6.8 STPIS exclusions | C223: dms_060801_Event_Date | D223: dms_060801_OutageID | E223: dms_060801_FeederID | F223: dms_060801_FeederClass | G223: dms_060801_CauseID | H223: dms_060801_01_Values | I223: dms_060801_02_Values | J223: dms_060801_03_Values | K223: dms_060801_Excl_Cat | L223: dms_060801_04_Values
C224: dms_060801_StartCell
B227: CA 6.3 sustained interruptions | C227: dms_060301_Event_Date | D227: dms_060301_Event_Time | E227: dms_060301_AssetID | F227: dms_060301_FeederClass | G227: dms_060301_Reason | H227: dms_060301_DetailedReason | I227: dms_060301_CustNo_Affected_Values | J227: dms_060301_Avg_Duration_Sustained_Int_Values | K227: dms_060301_Effect_unplanned_SAIDI_Values | L227: dms_060301_Effect_unplanned_SAIFI_Values | M227: dms_060301_MED

Sheet AER lookups (hidden)
B1: AER LOOKUP TABLES
B3: Data in these columns used for data validation and database purposes.
B4: Date last modified: | C4: 2017-01-16 | D4: added (Albury and Victora) for AGN
C5: 2016-10-17 | D5: updated TransGrid's correct legal name, corrected TasNetworks (T) to June financial year
C6: 2017-02-01 | D6: inserted Power and Water, added NRs (dms_FeederCat_1 and dms_FeederCat_2)
C7: 2017-03-03 | D7: inserted AEMO as a business
C8: 2018-03-28 | D8: major changes to accommodate STPIS
C9: Template Version | D9: 5
Z11: FOR ELECTRICITY BUSINESSES ONLY
Z12: Feeder Types | AD12: TasNetworks (D) | AE12: Feeder Names
Z14: CBD | AA14: Urban | AB14: Short rural | AC14: long rural | AD14: EXTRA
B15: dms_TradingName_List | C15: dms_TradingNameFull_List | D15: dms_ABN_List | E15: dms_JurisdictionList | F15: dms_Sector_List | G15: dms_Segment_List | H15: dms_FormControl_List | I15: dms_RPT_List | J15: dms_RPTMonth_List | K15: dms_CRCPlength_List | L15: dms_FRCPlength_List | M15: dms_PRCPlength_List | N15: dms_663_List | O15: dms_DeterminationRef_List | P15: dms_Addr1_List | Q15: dms_Addr2_List | R15: dms_Suburb_List | S15: dms_State_List | T15: dms_PostCode_List | U15: dms_PAddr1_List | V15: dms_PAddr2_List | W15: dms_PSuburb_List | X15: dms_PState_List | Y15: dms_PPostCode_List | Z15: dms_CBD_flag | AA15: dms_Urban_flag | AB15: dms_ShortRural_flag | AC15: dms_LongRural_flag | AD15: dms_FeederType_5_flag | AE15: dms_FeederName_1 | AF15: dms_FeederName_2 | AG15: dms_FeederName_3 | AH15: dms_FeederName_4 | AI15: dms_FeederName_5 | AJ15: dms_Public_Lighting_List | AK15: Name
B16: AusNet (T) | C16: AusNet Transmission Group Pty Ltd | D16: 78079798173 | E16: Vic | F16: Electricity | G16: Transmission | H16: Revenue cap | I16: Financial | J16: March | K16: 5 | L16: 5 | M16: 5 | N16: 2 | O16: transmission determination | P16: Level 32 | Q16: 2 Southbank Boulevard | R16: SOUTHBANK | S16: Vic | T16: 3006 | U16: Locked Bag 14051 | W16: MELBOURNE CITY MAIL CENTRE | X16: Vic | Y16: 8001 | Z16: NO | AA16: NO | AB16: NO | AC16: NO | AD16: NO | AE16: CBD | AF16: Urban | AG16: Short rural | AH16: Long rural | AJ16: NO | AK16: =B16 -> AusNet (T)
B17: Powerlink | C17: Queensland Electricity Transmission Corporation Limited trading as Powerlink Queensland | D17: 82078849233 | E17: Qld | F17: Electricity | G17: Transmission | H17: Revenue cap | I17: Financial | J17: June | K17: 5 | L17: 5 | M17: 5 | N17: 5 | O17: transmission determination | P17: 33 Harold St | R17: VIRGINIA | S17: Qld | T17: 4014 | U17: PO Box 1193 | W17: VIRGINIA | X17: QLD | Y17: 4014 | Z17: NO | AA17: NO | AB17: NO | AC17: NO | AD17: NO | AE17: CBD | AF17: Urban | AG17: Short rural | AH17: Long rural | AJ17: NO | AK17: Powerlink
B22: The Reg Year Ending (dms_RYE) must be set to the last year of the regulatory period. For forecast data is is usually (FRCP_y5) for actual it is a single year (CRY). For historical actual data the RYE will need to be set manually in the business details sheet by setting the dms_Multiyear_flag to 1 and putting the correct value in 'dms_Specified_FinalYear. See cells C67:C68
B23: dms_Model_List | C23: dms_Model_Name_Format1 | D23: dms_Worksheet_List | E23: dms_Model_Span_List
B24: ARR | C24: Annual Reporting | D24: =IF(dms_MultiYear_ResponseFlag="yes","NEW HISTORICAL ANNUAL REPORTING","ANNUAL REPORTING") -> ANNUAL REPORTING | E24: 1
B25: CA | C25: Category Analysis | D25: =IF(dms_MultiYear_ResponseFlag="yes","NEW HISTORICAL CATEGORY ANALYSIS","CATEGORY ANALYSIS") -> CATEGORY ANALYSIS | E25: 1
B26: CESS | C26: Capitlal Expenditure | D26: CAPITLAL EXPENDITURE SHARING SCHEMING | E26: 5
B27: CPI | C27: CPI | D27: CPI | E27: 5
B28: EB | C28: Economic Benchmarking | D28: =IF(dms_MultiYear_ResponseFlag="yes","NEW HISTORICAL ECONOMIC BENCHMARKING","ECONOMIC BENCHMARKING") -> ECONOMIC BENCHMARKING | E28: 1
B29: Pricing | C29: Pricing Proposal | D29: PRICING PROPOSAL | E29: 5
B30: PTRM | C30: Post Tax Revenue Model | D30: POST TAX REVENUE MODEL | E30: 5
B31: Reset | C31: Regulatory Reporting (Reset) | D31: REGULATORY REPORTING STATEMENT | E31: 5
B32: RFM | C32: Roll Forward Model | D32: ROLL FORWARD MODEL | E32: 5
B33: WACC | C33: Weighted Average Cost of Capital | D33: WEIGHTED AVERAGE COST OF CAPITAL | E33: 1
B37: Financial | C37: Calendar | E37: PREVIOUS | G37: CURRENT | I37: FORTHCOMING
B38: 1987-88 | C38: 1988 | D38: PRCP_y1 | E38: =INDEX(INDIRECT(dms_RPT),dms_PRCP_start_row) -> 2012-13 | F38: CRCP_y1 | G38: =INDEX(INDIRECT(dms_RPT),dms_CRCP_start_row) -> 2017-18 | H38: =FRCP_y1 -> 2022-23 | I38: =INDEX(INDIRECT(dms_RPT),dms_FRCP_start_row) -> 2022-23
B39: 1988-89 | C39: 1989 | D39: PRCP_y2 | E39: =INDEX(INDIRECT(dms_RPT),dms_PRCP_start_row+1) -> 2013-14 | F39: CRCP_y2 | G39: =INDEX(INDIRECT(dms_RPT),dms_CRCP_start_row+1) -> 2018-19 | H39: FRCP_y2 | I39: =INDEX(INDIRECT(dms_RPT),dms_FRCP_start_row+1) -> 2023-24
B40: 1989-90 | C40: 1990 | D40: PRCP_y3 | E40: =INDEX(INDIRECT(dms_RPT),dms_PRCP_start_row+2) -> 2014-15 | F40: CRCP_y3 | G40: =INDEX(INDIRECT(dms_RPT),dms_CRCP_start_row+2) -> 2019-20 | H40: FRCP_y3 | I40: =INDEX(INDIRECT(dms_RPT),dms_FRCP_start_row+2) -> 2024-25
B41: 1990-91 | C41: 1991 | D41: PRCP_y4 | E41: =INDEX(INDIRECT(dms_RPT),dms_PRCP_start_row+3) -> 2015-16 | F41: CRCP_y4 | G41: =INDEX(INDIRECT(dms_RPT),dms_CRCP_start_row+3) -> 2020-21 | H41: FRCP_y4 | I41: =INDEX(INDIRECT(dms_RPT),dms_FRCP_start_row+3) -> 2025-26
B42: 1991-92 | C42: 1992 | D42: PRCP_y5 | E42: =INDEX(INDIRECT(dms_RPT),dms_PRCP_start_row+4) -> 2016-17 | F42: CRCP_y5 | G42: =INDEX(INDIRECT(dms_RPT),dms_CRCP_start_row+4) -> 2021-22 | H42: FRCP_y5 | I42: =INDEX(INDIRECT(dms_RPT),dms_FRCP_start_row+4) -> 2026-27
B43: 1992-93 | C43: 1993 | D43: PRCP_y6 | E43: =INDEX(INDIRECT(dms_RPT),dms_PRCP_start_row+5) -> 2017-18 | F43: CRCP_y6 | G43: =INDEX(INDIRECT(dms_RPT),dms_CRCP_start_row+5) -> 2022-23 | H43: FRCP_y6 | I43: =INDEX(INDIRECT(dms_RPT),dms_FRCP_start_row+5) -> 2027-28
B44: 1993-94 | C44: 1994 | D44: PRCP_y7 | E44: =INDEX(INDIRECT(dms_RPT),dms_PRCP_start_row+6) -> 2018-19 | F44: CRCP_y7 | G44: =INDEX(INDIRECT(dms_RPT),dms_CRCP_start_row+6) -> 2023-24 | H44: FRCP_y7 | I44: =INDEX(INDIRECT(dms_RPT),dms_FRCP_start_row+6) -> 2028-29
B45: 1994-95 | C45: 1995 | D45: PRCP_y8 | E45: =INDEX(INDIRECT(dms_RPT),dms_PRCP_start_row+7) -> 2019-20 | F45: CRCP_y8 | G45: =INDEX(INDIRECT(dms_RPT),dms_CRCP_start_row+7) -> 2024-25 | H45: FRCP_y8 | I45: =INDEX(INDIRECT(dms_RPT),dms_FRCP_start_row+7) -> 2029-30
B46: 1995-96 | C46: 1996 | D46: PRCP_y9 | E46: =INDEX(INDIRECT(dms_RPT),dms_PRCP_start_row+8) -> 2020-21 | F46: CRCP_y9 | G46: =INDEX(INDIRECT(dms_RPT),dms_CRCP_start_row+8) -> 2025-26 | H46: FRCP_y9 | I46: =INDEX(INDIRECT(dms_RPT),dms_FRCP_start_row+8) -> 2030-31
B47: 1996-97 | C47: 1997 | D47: PRCP_y10 | E47: =INDEX(INDIRECT(dms_RPT),dms_PRCP_start_row+9) -> 2021-22 | F47: CRCP_y10 | G47: =INDEX(INDIRECT(dms_RPT),dms_CRCP_start_row+9) -> 2026-27 | H47: FRCP_y10 | I47: =INDEX(INDIRECT(dms_RPT),dms_FRCP_start_row+9) -> 2031-32
B48: 1997-98 | C48: 1998 | D48: PRCP_y11 | E48: =INDEX(INDIRECT(dms_RPT),dms_PRCP_start_row+10) -> 2022-23 | F48: CRCP_y11 | G48: =INDEX(INDIRECT(dms_RPT),dms_CRCP_start_row+10) -> 2027-28 | H48: FRCP_y11 | I48: =INDEX(INDIRECT(dms_RPT),dms_FRCP_start_row+10) -> 2032-33
B49: 1998-99 | C49: 1999 | D49: PRCP_y12 | E49: =INDEX(INDIRECT(dms_RPT),dms_PRCP_start_row+11) -> 2023-24 | F49: CRCP_y12 | G49: =INDEX(INDIRECT(dms_RPT),dms_CRCP_start_row+11) -> 2028-29 | H49: FRCP_y12 | I49: =INDEX(INDIRECT(dms_RPT),dms_FRCP_start_row+11) -> 2033-34
B50: 1999-00 | C50: 2000 | D50: PRCP_y13 | E50: =INDEX(INDIRECT(dms_RPT),dms_PRCP_start_row+12) -> 2024-25 | F50: CRCP_y13 | G50: =INDEX(INDIRECT(dms_RPT),dms_CRCP_start_row+12) -> 2029-30 | H50: FRCP_y13 | I50: =INDEX(INDIRECT(dms_RPT),dms_FRCP_start_row+12) -> 2034-35
B51: 2000-01 | C51: 2001 | D51: PRCP_y14 | E51: =INDEX(INDIRECT(dms_RPT),dms_PRCP_start_row+13) -> 2025-26 | F51: CRCP_y14 | G51: =INDEX(INDIRECT(dms_RPT),dms_CRCP_start_row+13) -> 2030-31 | H51: FRCP_y14 | I51: =INDEX(INDIRECT(dms_RPT),dms_FRCP_start_row+13) -> 2035-36
B52: 2001-02 | C52: 2002 | D52: PRCP_y15 | E52: =INDEX(INDIRECT(dms_RPT),dms_PRCP_start_row+14) -> 2026-27 | F52: CRCP_y15 | G52: =INDEX(INDIRECT(dms_RPT),dms_CRCP_start_row+14) -> 2031-32 | H52: FRCP_y15 | I52: =INDEX(INDIRECT(dms_RPT),dms_FRCP_start_row+14) -> 2036-37
B53: 2002-03 | C53: 2003 | D53: PRCP_y16 | E53: =INDEX(INDIRECT(dms_RPT),dms_PRCP_start_row+15) -> 2027-28 | F53: CRCP_y16 | G53: =INDEX(INDIRECT(dms_RPT),dms_CRCP_start_row+15) -> 2032-33 | H53: FRCP_y16 | I53: =INDEX(INDIRECT(dms_RPT),dms_FRCP_start_row+15) -> 
B54: 2003-04 | C54: 2004
B55: 2004-05 | C55: 2005
B56: 2005-06 | C56: 2006 | E56: CRY - FRY
B57: 2006-07 | C57: 2007 | D57: dms_y1 | E57: =IFERROR(INDEX(INDIRECT(dms_RPT),dms_CRY_start_row),0) -> 2020-21
B58: 2007-08 | C58: 2008 | D58: dms_y2 | E58: =IFERROR(INDEX(INDIRECT(dms_RPT),dms_CRY_start_row+1),0) -> 2021-22
B59: 2008-09 | C59: 2009 | D59: dms_y3 | E59: =IFERROR(INDEX(INDIRECT(dms_RPT),dms_CRY_start_row+2),0) -> 2022-23
B60: 2009-10 | C60: 2010 | D60: dms_y4 | E60: =IFERROR(INDEX(INDIRECT(dms_RPT),dms_CRY_start_row+3),0) -> 2023-24
B61: 2010-11 | C61: 2011 | D61: dms_y5 | E61: =IFERROR(INDEX(INDIRECT(dms_RPT),dms_CRY_start_row+4),0) -> 2024-25
B62: 2011-12 | C62: 2012 | D62: dms_y6 | E62: =IFERROR(INDEX(INDIRECT(dms_RPT),dms_CRY_start_row+5),0) -> 2025-26
B63: 2012-13 | C63: 2013 | D63: dms_y7 | E63: =IFERROR(INDEX(INDIRECT(dms_RPT),dms_CRY_start_row+6),0) -> 2026-27
B64: 2013-14 | C64: 2014 | D64: dms_y8 | E64: =IFERROR(INDEX(INDIRECT(dms_RPT),dms_CRY_start_row+7),0) -> 2027-28
B65: 2014-15 | C65: 2015 | D65: dms_y9 | E65: =IFERROR(INDEX(INDIRECT(dms_RPT),dms_CRY_start_row+8),0) -> 2028-29
B66: 2015-16 | C66: 2016 | D66: dms_y10 | E66: =IFERROR(INDEX(INDIRECT(dms_RPT),dms_CRY_start_row+9),0) -> 2029-30
B67: 2016-17 | C67: 2017 | D67: dms_y11 | E67: =IFERROR(INDEX(INDIRECT(dms_RPT),dms_CRY_start_row+10),0) -> 2030-31
B68: 2017-18 | C68: 2018 | D68: dms_y12 | E68: =IFERROR(INDEX(INDIRECT(dms_RPT),dms_CRY_start_row+11),0) -> 2031-32
B69: 2018-19 | C69: 2019 | D69: dms_y13 | E69: =IFERROR(INDEX(INDIRECT(dms_RPT),dms_CRY_start_row+12),0) -> 2032-33
B70: 2019-20 | C70: 2020 | D70: dms_y14 | E70: =IFERROR(INDEX(INDIRECT(dms_RPT),dms_CRY_start_row+13),0) -> 2033-34
B71: 2020-21 | C71: 2021 | D71: dms_y15 | E71: =IFERROR(INDEX(INDIRECT(dms_RPT),dms_CRY_start_row+14),0) -> 2034-35
B72: 2021-22 | C72: 2022 | D72: dms_y16 | E72: =IFERROR(INDEX(INDIRECT(dms_RPT),dms_CRY_start_row+15),0) -> 2035-36
B73: 2022-23 | C73: 2023
B74: 2023-24 | C74: 2024
B75: 2024-25 | C75: 2025
B76: 2025-26 | C76: 2026
B77: 2026-27 | C77: 2027
B78: 2027-28 | C78: 2028
B79: 2028-29 | C79: 2029
B80: 2029-30 | C80: 2030
B81: 2030-31 | C81: 2031
B82: 2031-32 | C82: 2032
B83: 2032-33 | C83: 2033
B84: 2033-34 | C84: 2034
B85: 2034-35 | C85: 2035
B86: 2035-36 | C86: 2036
B87: 2036-37 | C87: 2037

Sheet AER ETL (hidden)
A1: DRAFT RIN - 20200224 | B1: AER ETL INFORMATION
B3: USES NAMED RANGES FLAG | C3: yes | D3: dms_Defined_Names_Used
B5: IF THIS IS AN ABC RIN - make sure the the named range CRY is applied and the named range dms_dollar_nom_UOM is applied
B6: IF THIS IS A RESET RIN - make sure the named ranges CRY and dms_dollar_nom_UOM are NOT present in the workbook
B7: FOR ABC RINS THAT SPAN MULTIPLE YEARS - make sure MultiYear Flag is set and final year entered as required
B9: Full trading name | C9: =INDEX(dms_TradingNameFull_List,MATCH(dms_TradingName,dms_TradingName_List)) -> AusNet Transmission Group Pty Ltd | E9: dms_TradingNameFull
B10: Trading name | C10: =dms_TradingName -> AusNet (T)
A11: Selected here | B11: Model / RIN | C11: Reset | D11: dms_Model
A12: Read from Business & other details | B12: Source | C12: Regulatory proposal | D12: dms_Source
B13: Data quality | C13: Consolidated | D13: For DB purposes this is always Consoldiated
B14: Data status | C14: Public | D14: For DB purposes this is always Public
B15: Amendment reason | C15: =dms_Amendment_Text -> 0 | F15: dms_AmendmentReason
B16: Submission date | C16: =dms_Typed_Submission_Date -> 2020-10-30 | D16: dms_SubmissionDate
A18: Redundant | B18: EBSS - First application of scheme in forthcoming period? | C18: No
A19: Pre-populated from lookup table | B19: Data ingestion data quality | C19: Consolidated | D19: dms_DataQuality | E19: Always Consolidated
B20: Sector | C20: =INDEX(dms_Sector_List,MATCH(dms_TradingName,dms_TradingName_List)) -> Electricity | D20: dms_Sector | E20: =INDEX(dms_Sector_List,MATCH(dms_TradingName,dms_TradingName_List))
B21: Segment | C21: =INDEX(dms_Segment_List,MATCH(dms_TradingName,dms_TradingName_List)) -> Transmission | D21: dms_Segment | E21: =INDEX(dms_Segment_List,MATCH(dms_TradingName,dms_TradingName_List))
B22: Regulatory Year Ending | C22: =dms_RYE_result -> 2027 | D22: dms_RYE | E22: =IF(dms_MultiYear_Flag=1,LEFT(dms_Specified_FinalYear,2)&RIGHT(dms_Specified_FinalYear,2),INDEX(dms_RYE_Formula_Result,MATCH(dms_Model,dms_Model_List)))
B23: Reporting Period Type | C23: =INDEX(dms_RPT_List,MATCH(dms_TradingName,dms_TradingName_List)) -> Financial | D23: dms_RPT | E23: =INDEX(dms_RPT_List,MATCH(dms_TradingName,dms_TradingName_List))
B24: EB/CA Unit of Measure for Monetary Values | C24: $0s | D24: dms_dollar_nom_UOM | E24: If the cover sheet is attached to an ABC RIN apply the NAMED RANGE to the cell
B25: Security Classification | C25: Public | D25: dms_Classification | E25: Always Public
B26: Jurisdiction | C26: =INDEX(dms_JurisdictionList,MATCH(dms_TradingName,dms_TradingName_List)) -> Vic | D26: dms_Jurisdiction | E26: =INDEX(dms_JurisdictionList,MATCH(dms_TradingName,dms_TradingName_List))
A27: Relevant for PTRM, RFMs and Reset RINS | B27: $ REAL REFERENCES
B28: Does the named range CRY exist in this file? | C28: =IFERROR(CRY,"NO") -> NO
B29: CRY-1 (last full calendar year before CRY) | C29: =IFERROR(IF(dms_RPT="calendar",CRY-1,LEFT(CRY,4)),"CRY not present") -> CRY not present | D29: dms_Cal_Year_B4_CRY | E29: '=IF(dms_RPT="financial",VALUE(LEFT(dms_SingleYear_FinalYear_Result,4)),VALUE(LEFT(dms_SingleYear_FinalYear_Result,4)-1))
B30: Dollar $ real month | C30: =INDEX(dms_RPTMonth_List,MATCH(dms_TradingName,dms_TradingName_List)) -> March | D30: dms_RPTMonth | E30: =INDEX(dms_RPTMonth_List,MATCH(dms_TradingName,dms_TradingName_List))
B31: Dollar $ real (the last month before the FRCP_y1) | C31: =IF(dms_SingleYearModel="yes",CONCATENATE(dms_RPTMonth)&" "&VALUE((LEFT(dms_CRY_start_year,2)&RIGHT(dms_CRY_start_year,2))),CONCATENATE(dms_RPTMonth)&" "&dms_DollarReal_year) -> March 2022 | D31: dms_DollarReal | E31: =IF(SUM(dms_SingleYear_Model)>0,CONCATENATE(dms_RPTMonth)&" "&VALUE((LEFT(CRY,2))&RIGHT(CRY,2)),CONCATENATE(dms_RPTMonth)&" "&VALUE((LEFT(dms_RYE,2)&RIGHT(dms_RYE,2))))
B32: Dollar $ real previous year (PRCP_y5) | C32: =CONCATENATE(dms_RPTMonth)&" "&dms_Previous_DollarReal_year -> March 2017 | D32: dms_DollarReal_Prev | E32: =IF(SUM(dms_SingleYear_Model)>0,CONCATENATE(dms_RPTMonth)&" "&VALUE(((LEFT(CRY,2))&RIGHT(CRY,2))-1),CONCATENATE(dms_RPTMonth)&" "&VALUE(((LEFT(dms_CRCP_FirstYear_Result,2)&RIGHT(dms_CRCP_FirstYear_Result,2))))-1)
B33: PTRM/ RFMs
B34: Form of control | C34: =INDEX(dms_FormControl_List,MATCH(dms_TradingName,dms_TradingName_List)) -> Revenue cap | D34: dms_FormControl | E34: =INDEX(dms_FormControl_List,MATCH(dms_TradingName,dms_TradingName_List))
A35: All potential values for Regulatory Years or RYEs as calculated | B35: This block works out the various RYE's for ALL RIN types and MODELS
B36: dms_start_year | C36: =FRCP_y1 -> 2022-23 | D36: =FRCP_y1 | E36: FRCP_y1 from cover sheet
B37: dms_CRY_start_year | C37: =IFERROR(CRY,CRCP_y4) -> 2020-21 | D37: =IFERROR(CRY,CRCP_y4)
B38: dms_CRY_start_row | C38: =IFERROR(MATCH(dms_CRY_start_year,INDIRECT(dms_RPT),0),0) -> 34 | D38: =IFERROR(MATCH(dms_CRY_start_year,INDIRECT(dms_RPT),0),0)
B39: dms_FRCP_start_row | C39: =MATCH(dms_start_year,INDIRECT(dms_RPT),0) -> 36 | D39: =MATCH(dms_start_year,INDIRECT(dms_RPT),0) | E39: Uses FRCP_y1 as a start reference
B40: dms_CRCP_start_row | C40: =dms_FRCP_start_row-dms_CRCPlength_Num -> 31 | D40: =dms_FRCP_start_row-dms_CRCPlength_Num | E40: Uses the value in dms_CRCPlength_Num
B41: dms_PRCP_start_row | C41: =dms_FRCP_start_row-dms_CRCPlength_Num-dms_PRCPlength_Num -> 26 | D41: =dms_FRCP_start_row-dms_CRCPlength_Num-dms_PRCPlength_Num | E41: Uses the value in dms_CRCPlength_Num and dms_PRCPlength_Num
B42: dms_RYE_start_row | C42: =dms_FRCP_start_row+(dms_FRCPlength_Num-1) -> 40 | D42: =dms_FRCP_start_row+(dms_FRCPlength_Num-1) | E42: Uses the value in dms_FRCPlength_Num-1
B43: FRCP_start_year | C43: =INDEX(INDIRECT(dms_RPT),dms_FRCP_start_row) -> 2022-23 | D43: =INDEX(INDIRECT(dms_RPT),dms_FRCP_start_row) | E43: Converts the FRCP start row to display the year
B44: CRCP_start_year | C44: =INDEX(INDIRECT(dms_RPT),dms_CRCP_start_row) -> 2017-18 | D44: =INDEX(INDIRECT(dms_RPT),dms_CRCP_start_row) | E44: Converts the CRCP start row to display the year
B45: PRCP_start_year | C45: =INDEX(INDIRECT(dms_RPT),dms_PRCP_start_row) -> 2012-13 | D45: =INDEX(INDIRECT(dms_RPT),dms_PRCP_start_row) | E45: Converts the PRCP start row to display the year
B46: FRCP_final_year | C46: =INDEX(INDIRECT(dms_RPT),dms_FRCP_start_row+dms_FRCPlength_Num-1) -> 2026-27 | D46: =INDEX(INDIRECT(dms_RPT),dms_FRCP_start_row+dms_FRCPlength_Num-1) | E46: Finds the FRCP final year
B47: CRCP_final_year | C47: =INDEX(INDIRECT(dms_RPT),dms_CRCP_start_row+dms_CRCPlength_Num-1) -> 2021-22 | D47: =INDEX(INDIRECT(dms_RPT),dms_CRCP_start_row+dms_CRCPlength_Num-1) | E47: Finds the CRCP final year
B48: PRCP_final_year | C48: =INDEX(INDIRECT(dms_RPT),dms_PRCP_start_row+dms_FRCPlength_Num-1) -> 2016-17 | D48: =INDEX(INDIRECT(dms_RPT),dms_PRCP_start_row+dms_FRCPlength_Num-1) | E48: Finds the PRCP final year
B49: dms_Reset_final_year | C49: =INDEX(INDIRECT(dms_RPT),dms_RYE_start_row) -> 2026-27 | D49: =INDEX(INDIRECT(dms_RPT),dms_RYE_start_row) | E49: For Resets and PTRM/RFMs (same as FRCP_final_year)
B50: dms_SpecifiedYear_final_year | C50: =FRY ->  | D50: =FRY | E50: FRY from cover sheet
B51: dms_DollarReal_year | C51: =LEFT(CRCP_final_year,2)&RIGHT(CRCP_final_year,2) -> 2022 | D51: =LEFT(CRCP_final_year,2)&RIGHT(CRCP_final_year,2) | E51: Uses the value in CRCP_final_year
B52: dms_Previous_DollarReal_year | C52: =LEFT(PRCP_final_year,2)&RIGHT(PRCP_final_year,2) -> 2017 | D52: =LEFT(PRCP_final_year,2)&RIGHT(PRCP_final_year,2) | E52: Uses the value in PRCP_final_year
B53: dms_CRY_RYE | C53: =IFERROR(LEFT(CRY,2)&RIGHT(CRY,2),0) -> 0 | D53: =IFERROR(LEFT(CRY,2)&RIGHT(CRY,2),0) | E53: For ABC single year RINS
B54: dms_Reset_RYE | C54: =IF(dms_Model_Span>1,IF(dms_Model="RFM",(LEFT(dms_DollarReal_year,2)&RIGHT(dms_DollarReal_year,2)),(LEFT(dms_Reset_final_year,2)&RIGHT(dms_Reset_final_year,2))),0) -> 2027 | D54: =IF(dms_Model_Span>1,IF(dms_Model="RFM",(LEFT(dms_DollarReal_year,2)&RIGHT(dms_DollarReal_year,2)),(LEFT(dms_Reset_final_year,2)&RIGHT(dms_Reset_final_year,2))),0) | E54: If model span > 1 then uses dms_Reset_RYE otherwise it's a multi year ABC and uses dms_Specified_RYE
B55: dms_Specified_RYE | C55: =IF(dms_MultiYear_ResponseFlag="Yes",(LEFT(dms_Specified_FinalYear,2)&RIGHT(dms_Specified_FinalYear,2)),0) -> 0 | D55: =IF(dms_MultiYear_ResponseFlag="Yes",(LEFT(dms_Specified_FinalYear,2)&RIGHT(dms_Specified_FinalYear,2)),0) | E55: If multi year ABC - uses dms_Specified_FinalYear
B56: dms_Model_Span | C56: =INDEX(dms_Model_Span_List,MATCH(dms_Model,dms_Model_List)) -> 5 | D56: =INDEX(dms_Model_Span_List,MATCH(dms_Model,dms_Model_List)) | E56: A result of 5 is used to signify that it is more than 1 year span
B57: dms_RYE_result | C57: =IF(dms_MultiYear_ResponseFlag="yes",dms_Specified_RYE,(IF(dms_Model_Span>1,dms_Reset_RYE,dms_CRY_RYE))) -> 2027 | D57: =IF(dms_MultiYear_ResponseFlag="yes",dms_Specified_RYE,(IF(dms_Model_Span>1,dms_Reset_RYE,dms_CRY_RYE))) | E57: Nested IF - feeds into dms_RYE
B58: dms_Reset_Span | C58: =IF(dms_Reset_RYE>0,CONCATENATE(FRCP_y1," to ",FRCP_final_year),0) -> 2022-23 to 2026-27 | D58: =IF(dms_Reset_RYE>0,CONCATENATE(FRCP_y1," to ",FRCP_final_year),0) | E58: Reset span of years as text
B59: dms_SpecifiedYear_Span | C59: =IF(dms_Specified_RYE>0,CONCATENATE(CRY," to ",dms_Specified_FinalYear),0) -> 0 | D59: =IF(dms_Specified_RYE>0,CONCATENATE(CRY," to ",dms_Specified_FinalYear),0) | E59: Multi year ABC span of years as text
B60: dms_Header_Span | C60: =IF(dms_MultiYear_Flag=1,dms_SpecifiedYear_Span,IF(dms_Model_Span>1,dms_y1&" - "&FRCP_final_year,CRY)) -> 2020-21 - 2026-27 | D60: =IF(dms_MultiYear_Flag=1,dms_SpecifiedYear_Span,IF(dms_Model_Span>1,dms_Reset_Span,CRY)) | E60: NESTED IF - for Sheet Headers
B61: ABC RINS THAT SPAN MULTIPLE YEARS
B62: This is a multi year ABC RIN? | C62: No
C63: =IF(dms_MultiYear_ResponseFlag="No",0,1) -> 0 | D63: dms_MultiYear_Flag | E63: This is set from the answer provided above
C64: =IF(dms_MultiYear_Flag=1,FRY,"not a Multiple year submission") -> not a Multiple year submission | D64: dms_Specified_FinalYear | E64: The result here is returned to dms_CRCP_FinalYear_Result if response to Q in C73 is "yes" and dms_MultiYear_Flag is set to 1
B65: Start year for 5.2 in Multi year ABC RINS | C65: =IFERROR(IF(dms_MultiYear_Flag=1,FRY,CRY),"not an ABC") -> not an ABC | D65: dms_0502_Inst_Year | E65: =IF(dms_MultiYear_Flag=1,FRY,CRY) | G65: For single year RINS this is CRY - multi year RINS need to start a the end of the span of years (ie. FRY)
B66: WHAT IS THE RYE?
B67: Reg Period Lengths
B68: PRCP length in years | C68: =INDEX(dms_PRCPlength_List,MATCH(dms_TradingName,dms_TradingName_List)) -> 5 | D68: dms_PRCPlength_Num | E68: =INDEX(dms_PRCPlength_List,MATCH(dms_TradingName,dms_TradingName_List))
B69: CRCP length in years | C69: =INDEX(dms_CRCPlength_List,MATCH(dms_TradingName,dms_TradingName_List)) -> 5 | D69: dms_CRCPlength_Num | E69: =INDEX(dms_CRCPlength_List,MATCH(dms_TradingName,dms_TradingName_List))
B70: FRCP length in years | C70: =INDEX(dms_FRCPlength_List,MATCH(dms_TradingName,dms_TradingName_List)) -> 5 | D70: dms_FRCPlength_Num | E70: =INDEX(dms_FRCPlength_List,MATCH(dms_TradingName,dms_TradingName_List))
B71: Single year RIN?
B72: Single Year ABC RIN ? | C72: =IF(dms_Model="EB",1,0) -> 0 | D72: dms_EB
C73: =IF(dms_Model="CA",1,0) -> 0 | D73: dms_CA | E73: =dms_SingleYear_Model
C74: =IF(dms_Model="ARR",1,0) -> 0 | D74: dms_ARR
B75: Is this a single Year ABC RIN? | C75: =IF(SUM(dms_SingleYear_Model)=1,"yes","no") -> no | D75: dms_SingleYearModel | E75: =IF(SUM(dms_SingleYear_Model)=1,"yes","no")
B76: Single Year Final Year Result | C76: =IF(AND(dms_SingleYearModel="yes",dms_MultiYear_Flag=0),CRY,0) -> 0 | D76: dms_SingleYear_FinalYear_Result | E76: =IFERROR(IF(SUM(dms_SingleYear_Model)<>0,(INDIRECT(dms_SingleYear_FinalYear_Ref)),"not a single year RIN"),"CRY not present")
B77: Multi year RIN?
B79: Multi Year Reset/Model? | C79: =IF(dms_Model_Span>1,"yes","no") -> yes
B80: Final year result for Reset/Model | C80: =IF(dms_Model_Span>1,dms_Reset_final_year,0) -> 2026-27 | D80: dms_MultiYear_FinalYear_Result | E80: dms_CRCP_FinalYear_Result
B82: Multi Year ABC RIN? | C82: =IF(dms_MultiYear_Flag=1,"yes","no") -> no | D82: dms_MultiYear_ABC_RIN
B83: Final year result for ABC multi year | C83: =IF(dms_MultiYear_Flag=1,C50,0) -> 0
B85: EB RINS
B86: Calendar Year for table 3.6 data | C86: =IFERROR(IF(dms_Segment="Transmission",dms_Cal_Year_B4_CRY,CRY),"CRY not present") -> CRY not present | D86: dms_0306_Year | E86: =IF(dms_Segment="Transmission",dms_Cal_Year_B4_CRY,CRY)
B87: CA RINS
B88: Find how many rows in tables 6.3 sustained interruptions? | E88: dms_060301_MaxRows only returns a valid value when cover sheet is attached to a CA file
C89: =IF(dms_Model<>"CA","not a CA","Is a CA") -> not a CA | E89: =IF(dms_Model<>"CA","not a CA","Is a CA")
B90: dms_060301_Avg_Duration_Sustained_Int_Values present? | C90: =IFERROR(IF(INDEX(dms_060301_Avg_Duration_Sustained_Int_Values,1,1)<>"","yes","no"),"no") -> no | D90: dms_060301_checkvalue | E90: =IFERROR(IF(INDEX(dms_060301_Avg_Duration_Sustained_Int_Values,1,1)<>"","yes","no"),"no")
C91: =IF(AND(dms_Model="CA",(dms_060301_checkvalue="no")),"error - NR not present","no errors") -> no errors | E91: =IF(AND(dms_Model="CA",(dms_060301_checkvalue="no")),"error - NR not present","no errors")
B92: Table 6.3.1 - last row reference | C92: =IFERROR(IF(dms_Model="CA",LOOKUP(2,1/(dms_060301_Avg_Duration_Sustained_Int_Values<>""),(ROW(dms_060301_Avg_Duration_Sustained_Int_Values))),"not a CA"),"6.3 not present") -> not a CA | D92: dms_060301_LastRow | E92: =IFERROR(IF(dms_Model="CA",LOOKUP(2,1/(dms_060301_Avg_Duration_Sustained_Int_Values<>""),(ROW(dms_060301_Avg_Duration_Sustained_Int_Values))),"not a CA"),"6.3 not present")
B93: Table 6.3.1 - max number rows | C93: =IFERROR(IF(dms_Model="CA",(dms_060301_LastRow-15),"not a CA"),"error") -> not a CA | D93: dms_060301_MaxRows | E93: =IFERROR(IF(dms_Model="CA",(dms_060301_LastRow-15),"not a CA"),"error")
B94: Table 6.6.3 - Public lighting repair - no. business days | C94: =INDEX(dms_663_List,MATCH(dms_TradingName,dms_TradingName_List)) -> 2 | D94: dms_663 | E94: =INDEX(dms_663_List,MATCH(dms_TradingName,dms_TradingName_List))
B95: ARR or RESET RINS
B96: How many rows in tables 6.1 or 6.7? (leap year?) | C96: insert dms_LeapYear NR if required | E96: 'dms_LeapYear is used to determine dms_060701_Max_Rows BUT it is only found on worksheet 6.1 or 6.7 and the date value in the cell is used to determine whether it is a leap year
B97: Is dms_LeapYear named range present? | C97: =IFERROR(IF(dms_LeapYear,"yes"),"no") -> no
B98: Table 6.7.1 - includes a leap year? | C98: =IFERROR(IF(MONTH(DATE(YEAR(dms_LeapYear),2,29))=2,"is a leap year","not a leap year"), "dms_LeapYear not present") -> dms_LeapYear not present | D98: dms_LeapYear_Result | E98: =IFERROR(IF(MONTH(DATE(YEAR(dms_LeapYear),2,29))=2,"is a leap year","not a leap year"),"dms_LeapYear not present")
B99: MaxRows if Reset and leap year | C99: =IF(dms_LeapYear_Result="is a leap year",1827,1826) -> 1826 | D99: dms_060701_Reset_MaxRows | E99: =IF(dms_LeapYear_Result="is a leap year",1827,1826) | H99: number of days present in Reset RIN table
B100: MaxRows if ARR and leap year | C100: =IF(dms_LeapYear_Result="is a leap year",366,365) -> 365 | D100: dms_060701_ARR_MaxRows | E100: =IF(dms_LeapYear_Result="is a leap year",366,365) | H100: number of days present in ARR RIN table
B101: Table 6.7.1 - Max Rows (leap year/ non leap year) | C101: =IF(dms_Model="ARR",dms_060701_ARR_MaxRows,IF(dms_Model="Reset",dms_060701_Reset_MaxRows,"not a relevant RIN type")) -> 1826 | D101: dms_060701_MaxRows | E101: =IF(dms_Model="ARR",dms_060701_ARR_MaxRows,IF(dms_Model="Reset",dms_060701_Reset_MaxRows,"not a relevant RIN type"))
B102: How many columns in 6.7? (4 or 5 feeder categories) | C102: =IF(dms_FifthFeeder_flag_NSP="NO","This NSP has only 4 feeder categories","This NSP has 5 feeder categories") -> This NSP has only 4 feeder categories
B103: Table 6.7.1 - Last column (# of feeder categories > 4) | C103: =IF(dms_FifthFeeder_flag_NSP="NO",10,12) -> 10 | D103: dms_060701_MaxCols | E103: =IF(dms_FifthFeeder_flag_NSP="NO",8,10)
B104: Table 6.7.1 - Number of offset rows | C104: =IF(dms_Model="ARR",15,9) -> 9 | D104: dms_060701_OffsetRows | E104: =IF(dms_Model="ARR",15,9)
B105: Start date for telephone answering in 6.1 or 6.7? | E105: Using 060101 as naming standard not 060701 for start dates
B106: Table 6.1.1 and 6.7.1 - Start Date as Text | C106: =IF(dms_SingleYearModel="yes",(CONCATENATE(IF(LEN(CRY)=4,"1-Jan-","1-Jul-"),LEFT(CRY,4))),(CONCATENATE(IF(LEN(PRCP_y4)=4,"1-Jan-","1-Jul-"),LEFT(PRCP_y4,4)))) -> 1-Jul-2015 | D106: dms_060101_StartDateTxt | E106: =IF(SUM(dms_SingleYear_Model)>1,(CONCATENATE(IF(LEN(CRY)=4,"1-Jan-","1-Jul-"),LEFT(CRY,4))),(CONCATENATE(IF(LEN(CRCP_y4)=4,"1-Jan-","1-Jul-"),LEFT(CRCP_y4,4))))
B107: Table 6.1.1 and 6.7.1 - Start Date as Date Value | C107: =DATEVALUE(dms_060701_StartDateTxt) -> 42186 | D107: dms_060101_StartDateVal | E107: =DATEVALUE(dms_060701_StartDateTxt)
B108: ARRs
B109: How many rows in table 6.8? | C109: insert dms_060801_StartCell NR if required | E109: dms_060801_StartCell is only found on worksheet 6.8 and is used to determine the starting date for the date range
B110: Is dms_060801_StartCell named range present? | C110: yes | E110: =IFERROR(IF((ROW(dms_060801_StartCell)-1)=1,"yes","yes"),"no")
B111: Table 6.8 - Number of offset rows | C111: 12 | D111: dms_0608_OffsetRows | E111: =IFERROR(IF(dms_Model="ARR",(ROW(dms_060801_StartCell)-1),"not an ARR"),"6.8 error")
B112: Table 6.8 - Last row | C112: 0 | D112: dms_0608_LastRow | E112: =IFERROR(IF(dms_060801_StartCell<>"",IF(dms_Model="ARR",(LOOKUP(2,1/(dms_060801_01_Values<>""),(ROW(dms_060801_01_Values)))),"not an ARR"),0),"0")
B113: Table 6.8 - MaxRows | C113: =IFERROR(IF(dms_Model="ARR",(MAX(0,dms_0608_LastRow-dms_0608_OffsetRows)),"not an ARR"),"0") -> not an ARR | D113: dms_060801_MaxRows | E113: =IFERROR(IF(dms_Model="ARR",(MAX(0,dms_0608_LastRow-dms_0608_OffsetRows)),"not an ARR"),"0")
B114: TNSP RESET RINS
B115: Table 7.9.4 only appears in TNSPs Reset RIN
B116: Table 7.9.4 - first year | C116: =LEFT(PRCP_y3,4) -> 2014 | D116: dms_070904_Start_Year | E116: =LEFT(PRCP_y3,4)
B118: MISC
B119: Distribution Determination Reference | C119: =INDEX(dms_DeterminationRef_List,MATCH(dms_TradingName,dms_TradingName_List)) -> transmission determination | D119: dms_DeterminationRef
B120: Public lighting NSP? | C120: =INDEX(dms_Public_Lighting_List,MATCH(dms_TradingName,dms_TradingName_List)) -> NO | D120: dms_Public_Lighting | E120: =INDEX(dms_Public_Lighting_List,MATCH(dms_TradingName,dms_TradingName_List))
B121: CBD Feeder for this business | C121: =INDEX(dms_CBD_flag,MATCH(dms_TradingName,dms_TradingName_List)) -> NO | D121: dms_CBD_flag_NSP
B122: Urban Feeder for this business | C122: =INDEX(dms_Urban_flag,MATCH(dms_TradingName,dms_TradingName_List)) -> NO | D122: dms_Urban_flag_NSP
B123: Short rural Feeder for this business | C123: =INDEX(dms_ShortRural_flag,MATCH(dms_TradingName,dms_TradingName_List)) -> NO | D123: dms_ShortRural_flag_NSP
B124: Long rural Feeder for this business | C124: =INDEX(dms_LongRural_flag,MATCH(dms_TradingName,dms_TradingName_List)) -> NO | D124: dms_LongRural_flag_NSP
B125: Fifth Feeder Category (eg. TasNetworks (D)) | C125: =INDEX(dms_FeederType_5_flag,MATCH(dms_TradingName,dms_TradingName_List)) -> NO | D125: dms_FifthFeeder_flag_NSP | E125: =INDEX(dms_FeederType_5_flag,MATCH(dms_TradingName,dms_TradingName_List))
B127: DISCARD FILES
B128: discard this record? | C128: NO | D128: dms_DISCARD | E128: If record is to be discarded from DB set this flag to YES
B130: SUBSET FILES
B131: Is this Submission File a Subset File | C131: NO | D131: dms_Partial
B134: REGULATORY YEARS FOR MULTI RYE SUBMISSIONS
B135: Multiple RYE flag | C135: NO | D135: dms_Multi_RYE_flag
C136: Manually specify RYE | D136: Named ranges to apply
C137: 2013 | D137: dms_RYE_01
C138: 2014 | D138: dms_RYE_02
C139: 2015 | D139: dms_RYE_03
C140: 2016 | D140: dms_RYE_04
C141: 2017 | D141: dms_RYE_05
C142: 2018 | D142: dms_RYE_06
C143: 2019 | D143: dms_RYE_07
C144: 2020 | D144: dms_RYE_08
C145: 2021 | D145: dms_RYE_09

Sheet Instructions
B2: =CONCATENATE(dms_Sector," ",dms_Segment," ", "Network Service Provider") -> Electricity Transmission Network Service Provider
B3: =IF(dms_Model="Reset","Regulatory Proposal RIN Template","Annual Reporting RIN") -> Regulatory Proposal RIN Template
B4: =CONCATENATE("This template is to be used by ",dms_TradingNameFull," to fulfil its reporting obligations to the AER.") -> This template is to be used by AusNet Transmission Group Pty Ltd to fulfil its reporting obligations to the AER.
B5: INSTRUCTIONS
B6: GENERAL | C6: Complete the Business & other details worksheet before entering data or values in any other worksheets. The Business & other details worksheet is linked to other worksheets within the workbook and automatically generates certain column headings and conditional formatting.
B8: CONFIDENTIAL INFORMATION | C8: Please use the macro at the top of each worksheet to identify confidential information in the confidential workbook.
C9: -Do this by selecting the cell or cells that contain confidential information and then run the Mark selection as CONFIDENTIAL macro. This will format the cells a specific colour that is identified by the AER's database which in turn marks that information as confidential. -To reverse this, select the cell or cells and run the Return selection to NON-CONFIDENTIAL macro.
B11: RESPONSES | C11: Please return four (4) files to the AER: 1. A confidential version which must contain a complete set of all responses with confidential information marked using the Mark selection CONFIDENTIAL macro and which has been completed using the locked template file provided by the AER. 2. An actual and an estimate version with confidential information marked using the Mark selection CONFIDENTIAL macro and which has been completed using the locked template file provided by the AER. 3. A public version with confidential information either removed completely or aggregated in some form together with writtten consent to disclose the public version of the response. Use the drop down box on the Business and other details worksheet to identify the file as either confidential ('consolidated') or public.
B13: AMENDMENTS | C13: If an NSP wishes to correct data previously submitted to the AER it should resubmit that data using the original completed submission as the starting point. Please make any necessary changes to the data. Data that is not being amended should be left unchanged. NSPs must identify the reason for the amendments in the Amendment Reason box on the Business and other details worksheet. NSPs may provide further details regarding any amendments in the Amendments worksheet. .
C14: NSP may use Amended Data macro to highlight cells that contain amended data. NB: if data is also CONFIDENTIAL, re-apply the Confidentiality macro after applying the Amended macro
C15: Please resubmit two (2) files - a confidential version and a public version of the amended submission to the AER
B17: UNITS OF MEASURE | C17: All amounts are to be unrounded and reported on a one for one basis: that is 1000 is to be entered as '1000'. Applicable units of measure may be identified in the table column headings or row descriptors.
B19: INPUT / NON-INPUT CELLS
D20: Yellow = Input cell (mandatory)
D21: Darker yellow = input cell (mandatory)
D22: Orange = input cell (if data available)
D23: Grey = Not applicable/No inputs required
D24: PLEASE DO NOT ENTER TEXT into cells that are to contain numeric data.
B27: NAVIGATION | C27: Many tables in the worksheets have been "grouped" to allow for easy navigation. To ungroup or group data use the outline symbols in the left margin (for Row groupings) or above the columns (for column groupings).

Sheet CONTENTS
D1: =INDEX(dms_Worksheet_List,MATCH(dms_Model,dms_Model_List)) -> REGULATORY REPORTING STATEMENT
D2: =INDEX(dms_TradingNameFull_List,MATCH(dms_TradingName,dms_TradingName_List)) -> AusNet Transmission Group Pty Ltd
D3: =dms_Header_Span -> 2020-21 - 2026-27
E6: CONTENTS
E8: SUBMISSION | F8: Business & other details
F9: CPI series
E11: EXPENDITURE | F11: 2.1 Expenditure summary
F12: 2.2 Repex
F13: 2.6 Non-network
F14: 2.10 Overheads
F15: 2.11 Labour
F16: 2.14 Forecast price changes
F17: 2.16 Opex Summary
F18: 2.17 Step Changes
E20: ECONOMIC BENCHMARKING | F20: 3.1 Revenue
F21: 3.2 Operating expenditure
F22: 3.3 Assets (RAB)
F23: 3.7 Operating environment
E25: OTHER | F25: 7.1 Policies and Procedures
F26: 7.2 Contingent projects
F27: 7.3 Obligations
F28: 7.4 Shared Assets
F29: 7.9 STPIS
E31: CAPEX | F31: 8.2 Capex

Sheet Business & other details
V1: =INDEX(dms_Worksheet_List,MATCH(dms_Model,dms_Model_List)) -> REGULATORY REPORTING STATEMENT
V2: =INDEX(dms_TradingNameFull_List,MATCH(dms_TradingName,dms_TradingName_List)) -> AusNet Transmission Group Pty Ltd
V3: =dms_Header_Span -> 2020-21 - 2026-27
V4: BUSINESS & OTHER DETAILS
V6: INSTRUCTIONS
V7: Complete the following business details regulatory template before entering data or values in any other regulatory template. This regulatory template is linked to other cells within the spreadsheet and automatically generates column headings and conditional formatting to distinguish business specific input and non-input cells.
Q9: SUBMISSION PARTICULARS INPUT SHEET
V12: ENTITY DETAILS
V14: Business Name
V16: Short name | AL16: AusNet (T)
V17: ACN/ABN | AL17: =INDEX(dms_ABN_List,MATCH(dms_TradingName,dms_TradingName_List)) -> 78079798173
V21: Business Address | BQ21: Postal Address
V23: Address 1 | AL23: =INDEX(dms_Addr1_List,MATCH(dms_TradingName,dms_TradingName_List)) -> Level 32 | BI23: Address 1 | BQ23: =INDEX(dms_PAddr1_List,MATCH(dms_TradingName,dms_TradingName_List)) -> Locked Bag 14051
V24: Address 2 | AL24: =IF(ISBLANK(INDEX(dms_Addr2_List,MATCH(dms_TradingName,dms_TradingName_List))),"",(INDEX(dms_Addr2_List,MATCH(dms_TradingName,dms_TradingName_List)))) -> 2 Southbank Boulevard | BI24: Address 2 | BQ24: =IF(ISBLANK(INDEX(dms_PAddr2_List,MATCH(dms_TradingName,dms_TradingName_List))),"",(INDEX(dms_PAddr2_List,MATCH(dms_TradingName,dms_TradingName_List)))) -> 
V25: Suburb | AL25: =INDEX(dms_Suburb_List,MATCH(dms_TradingName,dms_TradingName_List)) -> SOUTHBANK | BI25: Suburb | BQ25: =INDEX(dms_PSuburb_List,MATCH(dms_TradingName,dms_TradingName_List)) -> MELBOURNE CITY MAIL CENTRE
V26: State | AL26: =INDEX(dms_State_List,MATCH(dms_TradingName,dms_TradingName_List)) -> Vic | AV26: Post code | AX26: 3006 | BI26: State | BQ26: =INDEX(dms_PState_List,MATCH(dms_TradingName,dms_TradingName_List)) -> Vic | CA26: Post code | CC26: 3006
BA28: `
V30: Contact Names
V32: Name | BI32: Name
V33: Phone | BI33: Phone
V34: Email | BI34: Email
Q39: REGULATORY CONTROL PERIODS
Z42: Forthcoming period | AL42: 2022-23 | AU42: =FRCP_y2 -> 2023-24 | BD42: =FRCP_y3 -> 2024-25 | BM42: =FRCP_y4 -> 2025-26 | BV42: =FRCP_y5 -> 2026-27
AL43: =FRCP_y6 -> 2027-28 | AU43: =FRCP_y7 -> 2028-29 | BD43: =FRCP_y8 -> 2029-30 | BM43: =FRCP_y9 -> 2030-31 | BV43: =FRCP_y10 -> 2031-32
AL44: =FRCP_y11 -> 2032-33 | AU44: =FRCP_y12 -> 2033-34 | BD44: =FRCP_y13 -> 2034-35 | BM44: =FRCP_y14 -> 2035-36 | BV44: =FRCP_y15 -> 2036-37
X46: RESETS | Z46: Current period | AL46: =CRCP_y1 -> 2017-18 | AU46: =CRCP_y2 -> 2018-19 | BD46: =CRCP_y3 -> 2019-20 | BM46: =CRCP_y4 -> 2020-21 | BV46: =CRCP_y5 -> 2021-22
AL47: =CRCP_y6 -> 2022-23 | AU47: =CRCP_y7 -> 2023-24 | BD47: =CRCP_y8 -> 2024-25 | BM47: =CRCP_y9 -> 2025-26 | BV47: =CRCP_y10 -> 2026-27
AL48: =CRCP_y11 -> 2027-28 | AU48: =CRCP_y12 -> 2028-29 | BD48: =CRCP_y13 -> 2029-30 | BM48: =CRCP_y14 -> 2030-31 | BV48: =CRCP_y15 -> 2031-32
Z50: Previous period | AL50: =PRCP_y1 -> 2012-13 | AU50: =PRCP_y2 -> 2013-14 | BD50: =PRCP_y3 -> 2014-15 | BM50: =PRCP_y4 -> 2015-16 | BV50: =PRCP_y5 -> 2016-17
AL51: =PRCP_y6 -> 2017-18 | AU51: =PRCP_y7 -> 2018-19 | BD51: =PRCP_y8 -> 2019-20 | BM51: =PRCP_y9 -> 2020-21 | BV51: =PRCP_y10 -> 2021-22
AL52: =PRCP_y11 -> 2022-23 | AU52: =PRCP_y12 -> 2023-24 | BD52: =PRCP_y13 -> 2024-25 | BM52: =PRCP_y14 -> 2025-26 | BV52: =PRCP_y15 -> 2026-27
Z54: Commencing year | AL54: 2022-23
X55: ANNUAL RINS
Z56: Final year | AL56: 2022-23
Q60: SUBMISSION DETAILS
Z62: RIN type | AL62: =INDIRECT(dms_Model) -> Regulatory Reporting (Reset)
Z64: Source | AL64: Regulatory proposal
X66: THIS FILE | Z66: Data Quality | AL66: Consolidated
Z68: Confidentiality Status | AL68: Public
Z70: Amended RIN Amendment Reason
Z74: Submission Date | AL74: 2020-10-30 | BD74: Please enter date this file submitted to AER

Sheet CPI series
B1: =(LOOKUP(dms_Model,dms_Model_List,dms_Worksheet_List)) -> REGULATORY REPORTING STATEMENT
B2: =INDEX(dms_TradingNameFull_List,MATCH(dms_TradingName,dms_TradingName_List)) -> AusNet Transmission Group Pty Ltd
B3: =IF(SUM(dms_SingleYear_Model)>0,CRY,CONCATENATE(FRCP_y1," to ",dms_MultiYear_FinalYear_Result)) -> 2022-23 to 2026-27
B4: CPI SERIES
B7: NOMINATED CPI SERIES
B9: Name of CPI series | C9: Actual (1 year lagged September quarter CPI) / forecast inflation
C11: =CRCP_y1 -> 2017-18 | D11: =CRCP_y2 -> 2018-19 | E11: =CRCP_y3 -> 2019-20 | F11: =CRCP_y4 -> 2020-21 | G11: =CRCP_y5 -> 2021-22 | H11: =FRCP_y1 -> 2022-23 | I11: =FRCP_y2 -> 2023-24 | J11: =FRCP_y3 -> 2024-25 | K11: =FRCP_y4 -> 2025-26 | L11: =FRCP_y5 -> 2026-27
B12: Series data | C12: 0.01296296296 | D12: 0.01828153565 | E12: 0.01885098743 | F12: 0.01674008811 | G12: 0.01917003087 | H12: 0.01875548648 | I12: 0.0224870915 | J12: 0.0224870915 | K12: 0.0224870915 | L12: 0.0224870915

Sheet 2.1 Expenditure summary
B1: =(LOOKUP(dms_Model,dms_Model_List,dms_Worksheet_List)) -> REGULATORY REPORTING STATEMENT
B2: =INDEX(dms_TradingNameFull_List,MATCH(dms_TradingName,dms_TradingName_List)) -> AusNet Transmission Group Pty Ltd
B3: =IF(SUM(dms_SingleYear_Model)>0,CRY,CONCATENATE(FRCP_y1," to ",dms_MultiYear_FinalYear_Result)) -> 2022-23 to 2026-27
B4: 2.1 - EXPENDITURE SUMMARY AND RECONCILIATION
B6: There are three tables on this worksheet. Each has been grouped for ease of navigation. See the Instructions sheet on how to group or ungroup tables.
B8: 2.1.1 - PRESCRIBED TRANSMISSION SERVICES CAPEX (as incurred)
C9: =CONCATENATE("Forecast ($0's. real ",dms_DollarReal,")") -> Forecast ($0's. real March 2022)
C10: =dms_y1 -> 2020-21 | D10: =dms_y2 -> 2021-22 | E10: =dms_y3 -> 2022-23 | F10: =dms_y4 -> 2023-24 | G10: =dms_y5 -> 2024-25 | H10: =dms_y6 -> 2025-26 | I10: =dms_y7 -> 2026-27
B11: Replacement expenditure | C11: 116479109.7 | D11: 103855361.5 | E11: 148494819.4 | F11: 149496148.6 | G11: 147563307.4 | H11: 117820545.2 | I11: 89499745.9
B12: Connections
B13: Augmentation Expenditure
B14: Non-network | C14: 22196522.08 | D14: 22027407.22 | E14: 21375073.86 | F14: 22314524.07 | G14: 23880999.97 | H14: 18446360.14 | I14: 16514319.02
B15: Capitalised network overheads | C15: 6944770 | D15: 5628202 | E15: 6301108 | F15: 6831573 | G15: 6784294 | H15: 7104565 | I15: 7141226
B16: Capitalised corporate overheads | C16: 1343974 | D16: 1089188 | E16: 1219410 | F16: 1322068 | G16: 1312918 | H16: 1374898 | I16: 1381993
B17: Total | C17: =SUM(C11:C16) -> 146964375.8 | D17: 132600158.7 | E17: 177390411.2 | F17: 179964313.6 | G17: 179541519.4 | H17: 144746368.3 | I17: 114537283.9
B19: 2.1.2 - PRESCRIBED TRANSMISSION SERVICES OPEX
C20: =CONCATENATE("Forecast ($0's. real ",dms_DollarReal,")") -> Forecast ($0's. real March 2022)
C21: =dms_y1 -> 2020-21 | D21: =dms_y2 -> 2021-22 | E21: =dms_y3 -> 2022-23 | F21: =dms_y4 -> 2023-24 | G21: =dms_y5 -> 2024-25 | H21: =dms_y6 -> 2025-26 | I21: =dms_y7 -> 2026-27
B22: Vegetation management
B23: Maintenance
B24: Non-network
B25: Network overheads
B26: Corporate overheads
B27: Total | C27: =SUM(C22:C26) -> 0 | D27: 0 | E27: 0 | F27: 0 | G27: 0 | H27: 0 | I27: 0
B30: 2.1.8 - PRESCRIBED TRANSMISSION SERVICES CAPITALISED OVERHEADS
C31: =CONCATENATE("Forecast ($0's. real ",dms_DollarReal,")") -> Forecast ($0's. real March 2022)
C32: =dms_y1 -> 2020-21 | D32: =dms_y2 -> 2021-22 | E32: =dms_y3 -> 2022-23 | F32: =dms_y4 -> 2023-24 | G32: =dms_y5 -> 2024-25 | H32: =dms_y6 -> 2025-26 | I32: =dms_y7 -> 2026-27
B33: Replacement expenditure | C33: 7904391 | D33: 6319333 | E33: 7137958 | F33: 7782628 | G33: 7718364 | H33: 8093497 | I33: 8128547
B34: Connections
B35: Augmentation Expenditure
B36: Non-network | C36: 384353 | D36: 398057 | E36: 382560 | F36: 371014 | G36: 378847 | H36: 385966 | I36: 394672
B37: Total | C37: =SUM(C33:C36) -> 8288744 | D37: 6717390 | E37: 7520518 | F37: 8153642 | G37: 8097211 | H37: 8479463 | I37: 8523219

Sheet 2.2 Repex
B1: =(LOOKUP(dms_Model,dms_Model_List,dms_Worksheet_List)) -> REGULATORY REPORTING STATEMENT
B2: =INDEX(dms_TradingNameFull_List,MATCH(dms_TradingName,dms_TradingName_List)) -> AusNet Transmission Group Pty Ltd
B3: =IF(SUM(dms_SingleYear_Model)>0,CRY,CONCATENATE(FRCP_y1," to ",dms_MultiYear_FinalYear_Result)) -> 2022-23 to 2026-27
B4: 2.2 REPEX
B6: There is ONE table (with three sub-tables) on this worksheet. See the Instructions sheet on how to group or ungroup tables.
B8: 2.2.1 - REPLACEMENT EXPENDITURE, VOLUMES AND ASSET FAILURES BY ASSET CATEGORY
B9: EXPENDITURE
D10: EXPENDITURE
D11: =CONCATENATE("($0's. real ",dms_DollarReal,")") -> ($0's. real March 2022)
B12: ASSET GROUP | C12: ASSET CATEGORY | D12: =dms_y1 -> 2020-21 | E12: =dms_y2 -> 2021-22 | F12: =dms_y3 -> 2022-23 | G12: =dms_y4 -> 2023-24 | H12: =dms_y5 -> 2024-25 | I12: =dms_y6 -> 2025-26 | J12: =dms_y7 -> 2026-27
B13: TRANSMISSION TOWERS Highest operating voltage; Circuit configuration | C13: < = 33 kV; Single Circuit | D13: 0 | E13: 0 | F13: 0 | G13: 0 | H13: 0 | I13: 0 | J13: 0
C14: > 33 kV & < = 66 kV ; Single Circuit | D14: 0 | E14: 0 | F14: 0 | G14: 0 | H14: 0 | I14: 0 | J14: 0
C15: > 66 kV & < = 132 kV ; Single Circuit | D15: 0 | E15: 0 | F15: 0 | G15: 0 | H15: 0 | I15: 0 | J15: 0
C16: > 132 kV & < = 275 kV ; Single Circuit | D16: 0 | E16: 0 | F16: 0 | G16: 0 | H16: 0 | I16: 0 | J16: 0
C17: > 275 kV & < = 330 kV ; Single Circuit | D17: 0 | E17: 0 | F17: 0 | G17: 0 | H17: 0 | I17: 0 | J17: 0
C18: > 330 kV & < = 500 kV ; Single Circuit | D18: 0 | E18: 0 | F18: 0 | G18: 0 | H18: 0 | I18: 0 | J18: 0
C19: > 500 kV ; Single Circuit | D19: 0 | E19: 0 | F19: 0 | G19: 0 | H19: 0 | I19: 0 | J19: 0
C20: < = 33 kV; Multiple Circuit | D20: 0 | E20: 0 | F20: 0 | G20: 0 | H20: 0 | I20: 0 | J20: 0
C21: > 33 kV & < = 66 kV ; Multiple Circuit | D21: 0 | E21: 0 | F21: 0 | G21: 0 | H21: 0 | I21: 0 | J21: 0
C22: > 66 kV & < = 132 kV ; Multiple Circuit | D22: 0 | E22: 0 | F22: 0 | G22: 0 | H22: 0 | I22: 0 | J22: 0
C23: > 132 kV & < = 275 kV ; Multiple Circuit | D23: 0 | E23: 0 | F23: 0 | G23: 0 | H23: 0 | I23: 0 | J23: 0
C24: > 275 kV & < = 330 kV ; Multiple Circuit | D24: 365719.0077 | E24: 1569260.167 | F24: 0 | G24: 0 | H24: 0 | I24: 0 | J24: 0
C25: > 330 kV & < = 500 kV ; Multiple Circuit | D25: 0 | E25: 0 | F25: 788694.3732 | G25: 791309.0158 | H25: 796055.7366 | I25: 801934.7461 | J25: 807885.6853
C26: > 500 kV ; Multiple Circuit | D26: 5354126.272 | E26: 0 | F26: 0 | G26: 0 | H26: 0 | I26: 0 | J26: 0
C27: Other | D27: 208982.2901 | E27: 0 | F27: 0 | G27: 0 | H27: 0 | I27: 0 | J27: 0
B28: TRANSMISSION TOWER SUPPORT STRUCTURES BY: Highest operating voltage; Circuit configuration | C28: < = 33 kV; Single Circuit | D28: 0 | E28: 0 | F28: 0 | G28: 0 | H28: 0 | I28: 0 | J28: 0
C29: > 33 kV & < = 66 kV ; Single Circuit | D29: 0 | E29: 0 | F29: 0 | G29: 0 | H29: 0 | I29: 0 | J29: 0
C30: > 66 kV & < = 132 kV ; Single Circuit | D30: 0 | E30: 0 | F30: 0 | G30: 0 | H30: 0 | I30: 0 | J30: 0
C31: > 132 kV & < = 275 kV ; Single Circuit | D31: 0 | E31: 170526.2714 | F31: 341907.4011 | G31: 0 | H31: 0 | I31: 0 | J31: 0
C32: > 275 kV & < = 330 kV ; Single Circuit | D32: 0 | E32: 0 | F32: 0 | G32: 0 | H32: 0 | I32: 0 | J32: 0
C33: > 330 kV & < = 500 kV ; Single Circuit | D33: 0 | E33: 0 | F33: 0 | G33: 0 | H33: 0 | I33: 0 | J33: 0
C34: > 500 kV ; Single Circuit | D34: 0 | E34: 0 | F34: 0 | G34: 0 | H34: 0 | I34: 0 | J34: 0
C35: < = 33 kV; Multiple Circuit | D35: 0 | E35: 0 | F35: 0 | G35: 0 | H35: 0 | I35: 0 | J35: 0
C36: > 33 kV & < = 66 kV ; Multiple Circuit | D36: 0 | E36: 0 | F36: 0 | G36: 0 | H36: 0 | I36: 0 | J36: 0
C37: > 66 kV & < = 132 kV ; Multiple Circuit | D37: 0 | E37: 0 | F37: 0 | G37: 0 | H37: 0 | I37: 0 | J37: 0
C38: > 132 kV & < = 275 kV ; Multiple Circuit | D38: 0 | E38: 0 | F38: 0 | G38: 0 | H38: 0 | I38: 0 | J38: 0
C39: > 275 kV & < = 330 kV ; Multiple Circuit | D39: 0 | E39: 0 | F39: 0 | G39: 0 | H39: 0 | I39: 0 | J39: 0
C40: > 330 kV & < = 500 kV ; Multiple Circuit | D40: 0 | E40: 0 | F40: 0 | G40: 0 | H40: 0 | I40: 0 | J40: 0
C41: > 500 kV ; Multiple Circuit | D41: 0 | E41: 0 | F41: 0 | G41: 0 | H41: 0 | I41: 0 | J41: 0
C42: Other | D42: 802342.7157 | E42: 5230867.222 | F42: 5348858.116 | G42: 5366590.4 | H42: 5398782.256 | I42: 5438653.198 | J42: 5479011.962
B43: CONDUCTORS BY: Voltage; Maximum continuous rating | C43: < = 33 kV ; < = 100 MVA | D43: 0 | E43: 0 | F43: 0 | G43: 0 | H43: 0 | I43: 0 | J43: 0
C44: < = 33 kV ; > 100 MVA & < = 400 MVA | D44: 0 | E44: 0 | F44: 0 | G44: 0 | H44: 0 | I44: 0 | J44: 0
C45: < = 33 kV ; > 400 MVA | D45: 0 | E45: 0 | F45: 0 | G45: 0 | H45: 0 | I45: 0 | J45: 0
C46: > 33 kV & < = 66 kV ; < = 100 MVA | D46: 0 | E46: 0 | F46: 0 | G46: 0 | H46: 0 | I46: 0 | J46: 0
C47: > 33 kV & < = 66 kV ; > 100 MVA & < = 400 MVA | D47: 0 | E47: 0 | F47: 107606.4397 | G47: 107963.1716 | H47: 108610.796 | I47: 109412.9055 | J47: 110224.8289
C48: > 33 kV & < = 66 kV ; > 400 MVA | D48: 0 | E48: 0 | F48: 0 | G48: 0 | H48: 0 | I48: 0 | J48: 0
C49: > 66 kV & < = 132 kV ; < = 100 MVA | D49: 0 | E49: 0 | F49: 0 | G49: 0 | H49: 0 | I49: 0 | J49: 0
C50: > 66 kV & < = 132 kV ; > 100 MVA & < = 400 MVA | D50: 0 | E50: 0 | F50: 0 | G50: 0 | H50: 0 | I50: 0 | J50: 0
C51: > 66 kV & < = 132 kV ; > 400 MVA | D51: 0 | E51: 0 | F51: 0 | G51: 0 | H51: 0 | I51: 0 | J51: 0
C52: > 132 kV & < = 275 kV ; < = 200 MVA | D52: 0 | E52: 0 | F52: 0 | G52: 0 | H52: 0 | I52: 0 | J52: 0
C53: > 132 kV & < = 275 kV ; > 200 MVA & < = 600 MVA | D53: 3480473.318 | E53: 5230867.222 | F53: 536983.403 | G53: 538763.5853 | H53: 541995.3951 | I53: 545998.125 | J53: 550049.8283
C54: > 132 kV & < = 275 kV ; > 600 MVA | D54: 0 | E54: 0 | F54: 0 | G54: 0 | H54: 0 | I54: 0 | J54: 0
C55: > 275 kV & < = 330 kV ; < = 800 MVA | D55: 0 | E55: 0 | F55: 0 | G55: 0 | H55: 0 | I55: 0 | J55: 0
C56: > 275 kV & < = 330 kV ; > 800 MVA & < = 1200 MVA | D56: 0 | E56: 0 | F56: 67122.92538 | G56: 67345.44816 | H56: 67749.42439 | I56: 68249.76562 | J56: 68756.22854
C57: > 275 kV & < = 330 kV ; > 1200 MVA | D57: 0 | E57: 0 | F57: 0 | G57: 0 | H57: 0 | I57: 0 | J57: 0
C58: > 330 kV & < = 500 kV ; < = 1000 MVA | D58: 1828595.038 | E58: 0 | F58: 400010.6834 | G58: 401336.7801 | H58: 403744.226 | I58: 406725.947 | J58: 409744.1494
C59: > 330 kV & < = 500 kV ; > 1000 MVA & < = 1500 MVA | D59: 0 | E59: 0 | F59: 0 | G59: 0 | H59: 0 | I59: 0 | J59: 0
C60: > 330 kV & < = 500 kV ; > 1500 MVA | D60: 0 | E60: 0 | F60: 0 | G60: 0 | H60: 0 | I60: 0 | J60: 0
C61: > 500 kV ; < = 2000 MVA | D61: 0 | E61: 0 | F61: 0 | G61: 0 | H61: 0 | I61: 0 | J61: 0
C62: > 500 kV ; > 2000 MVA & < = 3000 MVA | D62: 0 | E62: 0 | F62: 0 | G62: 0 | H62: 0 | I62: 0 | J62: 0
C63: > 500 kV ; > 3000 MVA | D63: 0 | E63: 0 | F63: 0 | G63: 0 | H63: 0 | I63: 0 | J63: 0
C64: Other | D64: 2754033.683 | E64: 0 | F64: 6871709.485 | G64: 6894490.255 | H64: 6935847.322 | I64: 6987069.756 | J64: 7038918.897
B65: TRANSMISSION CABLES BY: Highest operating voltage; Insulation type | C65: < = 33 kV; Oil Filled | D65: 0 | E65: 0 | F65: 0 | G65: 0 | H65: 0 | I65: 0 | J65: 0
C66: > 33 kV & < = 66 kV ; Oil Filled | D66: 0 | E66: 0 | F66: 0 | G66: 0 | H66: 0 | I66: 0 | J66: 0
C67: > 66 kV & < = 132 kV ; Oil Filled | D67: 0 | E67: 0 | F67: 0 | G67: 0 | H67: 0 | I67: 0 | J67: 0
C68: > 132 kV & < = 275 kV ; Oil Filled | D68: 0 | E68: 0 | F68: 0 | G68: 0 | H68: 0 | I68: 0 | J68: 0
C69: > 275 kV & < = 330 kV ; Oil Filled | D69: 0 | E69: 0 | F69: 0 | G69: 0 | H69: 0 | I69: 0 | J69: 0
C70: > 330 kV & < = 500 kV ; Oil Filled | D70: 0 | E70: 0 | F70: 0 | G70: 0 | H70: 0 | I70: 0 | J70: 0
C71: > 500 kV ; Oil Filled | D71: 0 | E71: 0 | F71: 0 | G71: 0 | H71: 0 | I71: 0 | J71: 0
C72: < = 33 kV; XLPE Insulated | D72: 0 | E72: 0 | F72: 0 | G72: 0 | H72: 0 | I72: 0 | J72: 0
C73: > 33 kV & < = 66 kV ; XLPE Insulated | D73: 0 | E73: 0 | F73: 0 | G73: 0 | H73: 0 | I73: 0 | J73: 0
C74: > 66 kV & < = 132 kV ; XLPE Insulated | D74: 0 | E74: 0 | F74: 0 | G74: 0 | H74: 0 | I74: 0 | J74: 0
C75: > 132 kV & < = 275 kV ; XLPE Insulated | D75: 682924.2694 | E75: 2443704.24 | F75: 0 | G75: 0 | H75: 0 | I75: 0 | J75: 0
C76: > 275 kV & < = 330 kV ; XLPE Insulated | D76: 0 | E76: 0 | F76: 0 | G76: 0 | H76: 0 | I76: 0 | J76: 0
C77: > 330 kV & < = 500 kV ; XLPE Insulated | D77: 0 | E77: 0 | F77: 0 | G77: 0 | H77: 0 | I77: 0 | J77: 0
C78: > 500 kV ; XLPE Insulated | D78: 0 | E78: 0 | F78: 0 | G78: 0 | H78: 0 | I78: 0 | J78: 0
C79: < = 33 kV; Other Insulated | D79: 0 | E79: 0 | F79: 0 | G79: 0 | H79: 0 | I79: 0 | J79: 0
C80: > 33 kV & < = 66 kV ; Other Insulated | D80: 0 | E80: 0 | F80: 0 | G80: 0 | H80: 0 | I80: 0 | J80: 0
C81: > 66 kV & < = 132 kV ; Other Insulated | D81: 0 | E81: 0 | F81: 0 | G81: 0 | H81: 0 | I81: 0 | J81: 0
C82: > 132 kV & < = 275 kV ; Other Insulated | D82: 0 | E82: 0 | F82: 0 | G82: 0 | H82: 0 | I82: 0 | J82: 0
C83: > 275 kV & < = 330 kV ; Other Insulated | D83: 0 | E83: 0 | F83: 0 | G83: 0 | H83: 0 | I83: 0 | J83: 0
C84: > 330 kV & < = 500 kV ; Other Insulated | D84: 0 | E84: 0 | F84: 0 | G84: 0 | H84: 0 | I84: 0 | J84: 0
C85: > 500 kV ; Other Insulated | D85: 0 | E85: 0 | F85: 0 | G85: 0 | H85: 0 | I85: 0 | J85: 0
C86: Other | D86: 0 | E86: 0 | F86: 384488.5069 | G86: 385763.1452 | H86: 388077.1716 | I86: 390943.1887 | J86: 393844.2716
B87: SUBSTATION SWITCHBAYS BY: Highest operating voltage; Switch type | C87: < = 33 kV; Air Insulated circuit Breaker | D87: 282126.0916 | E87: 564933.6599 | F87: 566349.6829 | G87: 1420568.047 | H87: 1143271.537 | I87: 0 | J87: 0
C88: > 33 kV & < = 66 kV ; Air Insulated circuit Breaker | D88: 9325834.696 | E88: 5895187.359 | F88: 7115239.849 | G88: 8523618.737 | H88: 8923022.626 | I88: 5092285.638 | J88: 3009374.178
C89: > 66 kV & < = 132 kV ; Air Insulated circuit Breaker | D89: 0 | E89: 0 | F89: 0 | G89: 0 | H89: 0 | I89: 0 | J89: 0
C90: > 132 kV & < = 275 kV ; Air Insulated circuit Breaker | D90: 4068885.188 | E90: 2891623.4 | F90: 1683946.39 | G90: 2591692.918 | H90: 3782589.942 | I90: 507181.0708 | J90: 510944.7233
C91: > 275 kV & < = 330 kV ; Air Insulated circuit Breaker | D91: 0 | E91: 938417.5796 | F91: 0 | G91: 0 | H91: 1054350.417 | I91: 0 | J91: 0
C92: > 330 kV & < = 500 kV ; Air Insulated circuit Breaker | D92: 3122195.414 | E92: 1391624.221 | F92: 1411315.614 | G92: 5044744.806 | H92: 1581525.626 | I92: 0 | J92: 0
C93: > 500 kV ; Air Insulated circuit Breaker | D93: 0 | E93: 0 | F93: 0 | G93: 0 | H93: 0 | I93: 0 | J93: 0
C94: < = 33 kV; Air Insulated Isolators / Earth Switch | D94: 0 | E94: 929002.0186 | F94: 2173104.709 | G94: 3426199.675 | H94: 2820069.79 | I94: 1578275.83 | J94: 0
C95: > 33 kV & < = 66 kV ; Air Insulated Isolators / Earth Switch | D95: 2474350.315 | E95: 1703170.367 | F95: 4035765.888 | G95: 5450772.21 | H95: 8566067.846 | I95: 3523394.15 | J95: 1589987.785
C96: > 66 kV & < = 132 kV ; Air Insulated Isolators / Earth Switch | D96: 0 | E96: 0 | F96: 0 | G96: 0 | H96: 0 | I96: 0 | J96: 0
C97: > 132 kV & < = 275 kV ; Air Insulated Isolators / Earth Switch | D97: 6427225.226 | E97: 6007128.104 | F97: 7293535.121 | G97: 939889.9108 | H97: 945527.9042 | I97: 612328.366 | J97: 274165.4613
C98: > 275 kV & < = 330 kV ; Air Insulated Isolators / Earth Switch | D98: 1440932.89 | E98: 1442673.18 | F98: 1446289.283 | G98: 0 | H98: 0 | I98: 0 | J98: 0
C99: > 330 kV & < = 500 kV ; Air Insulated Isolators / Earth Switch | D99: 4963329.39 | E99: 1490797.158 | F99: 996355.9236 | G99: 499829.498 | H99: 2514138.796 | I99: 3039247.375 | J99: 2041200.535
C100: > 500 kV ; Air Insulated Isolators / Earth Switch | D100: 0 | E100: 0 | F100: 0 | G100: 0 | H100: 0 | I100: 0 | J100: 0
C101: < = 33 kV; VT | D101: 317653.0809 | E101: 318036.7271 | F101: 0 | G101: 79972.71969 | H101: 160904.8829 | I101: 0 | J101: 0
C102: > 33 kV & < = 66 kV ; VT | D102: 555892.8917 | E102: 238527.5453 | F102: 1316658.133 | G102: 1081104.897 | H102: 1168042.42 | I102: 609342.4387 | J102: 450568.1601
C103: > 66 kV & < = 132 kV ; VT | D103: 0 | E103: 0 | F103: 0 | G103: 0 | H103: 0 | I103: 0 | J103: 0
C104: > 132 kV & < = 275 kV ; VT | D104: 1306139.313 | E104: 1203099.461 | F104: 960696.8695 | G104: 975456.7256 | H104: 864863.7457 | I104: 127968.3105 | J104: 128917.9285
C105: > 275 kV & < = 330 kV ; VT | D105: 0 | E105: 0 | F105: 0 | G105: 568227.2188 | H105: 571635.7683 | I105: 0 | J105: 0
C106: > 330 kV & < = 500 kV ; VT | D106: 752336.2443 | E106: 188311.22 | F106: 0 | G106: 568227.2188 | H106: 571635.7683 | I106: 575857.3975 | J106: 0
C107: > 500 kV ; VT | D107: 0 | E107: 0 | F107: 0 | G107: 0 | H107: 0 | I107: 0 | J107: 0
C108: < = 33 kV; CT | D108: 194353.5298 | E108: 3481665.223 | F108: 3158972.676 | G108: 2112963.436 | H108: 0 | I108: 0 | J108: 0
C109: > 33 kV & < = 66 kV ; CT | D109: 262272.7741 | E109: 531256.7907 | F109: 2428301.052 | G109: 1941934.733 | H109: 2338202.009 | I109: 1017134.788 | J109: 485376.0008
C110: > 66 kV & < = 132 kV ; CT | D110: 0 | E110: 0 | F110: 0 | G110: 0 | H110: 0 | I110: 0 | J110: 0
C111: > 132 kV & < = 275 kV ; CT | D111: 752336.2443 | E111: 376622.44 | F111: 1963345.567 | G111: 1591036.213 | H111: 76218.10244 | I111: 1612400.713 | J111: 77350.75711
C112: > 275 kV & < = 330 kV ; CT | D112: 0 | E112: 374530.0931 | F112: 0 | G112: 0 | H112: 0 | I112: 0 | J112: 0
C113: > 330 kV & < = 500 kV ; CT | D113: 2491068.898 | E113: 623519.3728 | F113: 500065.7941 | G113: 501723.5888 | H113: 504733.2117 | I113: 508460.7539 | J113: 512233.9026
C114: > 500 kV ; CT | D114: 0 | E114: 0 | F114: 0 | G114: 0 | H114: 0 | I114: 0 | J114: 0
C115: < = 33 kV; GIS Module | D115: 0 | E115: 0 | F115: 0 | G115: 0 | H115: 0 | I115: 0 | J115: 0
C116: > 33 kV & < = 66 kV ; GIS Module | D116: 0 | E116: 0 | F116: 0 | G116: 0 | H116: 0 | I116: 0 | J116: 0
C117: > 66 kV & < = 132 kV ; GIS Module | D117: 0 | E117: 0 | F117: 0 | G117: 0 | H117: 0 | I117: 0 | J117: 0
C118: > 132 kV & < = 275 kV ; GIS Module | D118: 0 | E118: 0 | F118: 0 | G118: 0 | H118: 0 | I118: 0 | J118: 0
C119: > 275 kV & < = 330 kV ; GIS Module | D119: 0 | E119: 0 | F119: 0 | G119: 0 | H119: 0 | I119: 0 | J119: 0
C120: > 330 kV & < = 500 kV ; GIS Module | D120: 1628371.858 | E120: 0 | F120: 0 | G120: 0 | H120: 0 | I120: 0 | J120: 0
C121: > 500 kV ; GIS Module | D121: 0 | E121: 0 | F121: 0 | G121: 0 | H121: 0 | I121: 0 | J121: 0
C122: Other | D122: 0 | E122: 0 | F122: 0 | G122: 0 | H122: 0 | I122: 0 | J122: 0
B123: SUBSTATION POWER TRANSFORMERS BY: Highest operating voltage; Ampere rating | C123: < = 33 kV ; < = 10 MVA | D123: 466478.3261 | E123: 1046173.444 | F123: 0 | G123: 0 | H123: 0 | I123: 0 | J123: 0
C124: < = 33 kV ; > 10 MVA & < = 30 MVA | D124: 0 | E124: 0 | F124: 0 | G124: 0 | H124: 0 | I124: 0 | J124: 0
C125: < = 33 kV ; > 30 MVA | D125: 0 | E125: 0 | F125: 0 | G125: 0 | H125: 0 | I125: 0 | J125: 0
C126: > 33 kV & < = 66 kV ; < = 10 MVA | D126: 0 | E126: 0 | F126: 0 | G126: 0 | H126: 0 | I126: 0 | J126: 0
C127: > 33 kV & < = 66 kV ; > 10 MVA & < = 30 MVA | D127: 0 | E127: 0 | F127: 0 | G127: 0 | H127: 0 | I127: 0 | J127: 0
C128: > 33 kV & < = 66 kV ; > 30 MVA | D128: 0 | E128: 0 | F128: 0 | G128: 0 | H128: 0 | I128: 0 | J128: 0
C129: > 66 kV & < = 132 kV ; < = 30 MVA | D129: 0 | E129: 0 | F129: 0 | G129: 0 | H129: 0 | I129: 0 | J129: 0
C130: > 66 kV & < = 132 kV ; > 30 MVA & < = 60 MVA | D130: 0 | E130: 0 | F130: 0 | G130: 0 | H130: 0 | I130: 0 | J130: 0
C131: > 66 kV & < = 132 kV ; > 60 MVA | D131: 0 | E131: 0 | F131: 0 | G131: 0 | H131: 0 | I131: 0 | J131: 0
C132: > 132 kV & < = 220 kV ; < = 50 MVA | D132: 0 | E132: 0 | F132: 0 | G132: 2630681.569 | H132: 2646461.89 | I132: 0 | J132: 0
C133: > 132 kV & < = 220 kV ; > 50 MVA & < = 100 MVA | D133: 0 | E133: 0 | F133: 0 | G133: 0 | H133: 0 | I133: 0 | J133: 0
C134: > 132 kV & < = 220 kV ; > 100 MVA | D134: 10449114.5 | E134: 5544719.255 | F134: 11746511.94 | G134: 18986649.59 | H134: 11069123.26 | I134: 0 | J134: 0
C135: > 220 kV & < = 275 kV ; < = 50 MVA | D135: 0 | E135: 0 | F135: 0 | G135: 0 | H135: 0 | I135: 0 | J135: 0
C136: > 220 kV & < = 275 kV ; > 50 MVA & < = 100 MVA | D136: 0 | E136: 0 | F136: 0 | G136: 0 | H136: 0 | I136: 0 | J136: 0
C137: > 220 kV & < = 275 kV ; > 100 MVA | D137: 0 | E137: 0 | F137: 0 | G137: 0 | H137: 0 | I137: 0 | J137: 0
C138: > 275 kV & < = 330 kV ; < = 100 MVA | D138: 0 | E138: 0 | F138: 0 | G138: 0 | H138: 0 | I138: 0 | J138: 0
C139: > 275 kV & < = 330 kV ; > 100 MVA & < = 250 MVA | D139: 0 | E139: 0 | F139: 0 | G139: 0 | H139: 0 | I139: 0 | J139: 0
C140: > 275 kV & < = 330 kV ; > 250 MVA | D140: 0 | E140: 0 | F140: 0 | G140: 0 | H140: 1058584.756 | I140: 17382362.18 | J140: 0
C141: > 330 kV & < = 500 kV ; < = 150 MVA | D141: 0 | E141: 0 | F141: 0 | G141: 0 | H141: 0 | I141: 0 | J141: 0
C142: > 330 kV & < = 500 kV ; > 150 MVA & < = 300 MVA | D142: 0 | E142: 0 | F142: 0 | G142: 0 | H142: 0 | I142: 0 | J142: 0
C143: > 330 kV & < = 500 kV ; > 300 MVA | D143: 0 | E143: 0 | F143: 0 | G143: 0 | H143: 0 | I143: 22714375.12 | J143: 0
C144: > 500 kV ; < = 1000 MVA | D144: 0 | E144: 0 | F144: 0 | G144: 0 | H144: 0 | I144: 0 | J144: 0
C145: > 500 kV ; > 1000 MVA & < = 1500 MVA | D145: 0 | E145: 0 | F145: 0 | G145: 0 | H145: 0 | I145: 0 | J145: 0
C146: > 500 kV ; > 1500 MVA | D146: 0 | E146: 0 | F146: 0 | G146: 0 | H146: 0 | I146: 0 | J146: 0
C147: Other | D147: 2535148.413 | E147: 6109032.684 | F147: 0 | G147: 0 | H147: 0 | I147: 0 | J147: 0
B148: SUBSTATION REACTIVE PLANT BY: Highest operating voltage; Function | C148: < = 33 kV; SVCS | D148: 0 | E148: 0 | F148: 0 | G148: 0 | H148: 0 | I148: 0 | J148: 0
C149: > 33 kV & < = 66 kV ; SVCS | D149: 0 | E149: 0 | F149: 0 | G149: 0 | H149: 0 | I149: 0 | J149: 0
C150: > 66 kV & < = 132 kV ; SVCS | D150: 0 | E150: 0 | F150: 0 | G150: 0 | H150: 0 | I150: 0 | J150: 0
C151: > 132 kV & < = 275 kV ; SVCS | D151: 0 | E151: 0 | F151: 0 | G151: 0 | H151: 0 | I151: 0 | J151: 0
C152: > 275 kV & < = 330 kV ; SVCS | D152: 0 | E152: 0 | F152: 0 | G152: 0 | H152: 0 | I152: 0 | J152: 0
C153: > 330 kV & < = 500 kV ; SVCS | D153: 0 | E153: 0 | F153: 0 | G153: 0 | H153: 0 | I153: 0 | J153: 0
C154: > 500 kV ; SVCS | D154: 0 | E154: 0 | F154: 0 | G154: 0 | H154: 0 | I154: 0 | J154: 0
C155: < = 33 kV; Capacitors | D155: 0 | E155: 0 | F155: 0 | G155: 0 | H155: 0 | I155: 0 | J155: 0
C156: > 33 kV & < = 66 kV ; Capacitors | D156: 0 | E156: 52308.67222 | F156: 0 | G156: 0 | H156: 0 | I156: 0 | J156: 0
C157: > 66 kV & < = 132 kV ; Capacitors | D157: 0 | E157: 0 | F157: 0 | G157: 0 | H157: 0 | I157: 0 | J157: 0
C158: > 132 kV & < = 275 kV ; Capacitors | D158: 0 | E158: 0 | F158: 0 | G158: 0 | H158: 0 | I158: 0 | J158: 0
C159: > 275 kV & < = 330 kV ; Capacitors | D159: 0 | E159: 0 | F159: 0 | G159: 0 | H159: 0 | I159: 0 | J159: 0
C160: > 330 kV & < = 500 kV ; Capacitors | D160: 0 | E160: 0 | F160: 0 | G160: 0 | H160: 0 | I160: 0 | J160: 0
C161: > 500 kV ; Capacitors | D161: 0 | E161: 0 | F161: 0 | G161: 0 | H161: 0 | I161: 0 | J161: 0
C162: < = 33 kV; Oil Filled Reactors | D162: 0 | E162: 0 | F162: 0 | G162: 0 | H162: 0 | I162: 0 | J162: 0
C163: > 33 kV & < = 66 kV ; Oil Filled Reactors | D163: 2987583.129 | E163: 0 | F163: 0 | G163: 0 | H163: 0 | I163: 0 | J163: 0
C164: > 66 kV & < = 132 kV ; Oil Filled Reactors | D164: 0 | E164: 0 | F164: 0 | G164: 0 | H164: 0 | I164: 0 | J164: 0
C165: > 132 kV & < = 275 kV ; Oil Filled Reactors | D165: 0 | E165: 0 | F165: 0 | G165: 0 | H165: 0 | I165: 0 | J165: 0
C166: > 275 kV & < = 330 kV ; Oil Filled Reactors | D166: 0 | E166: 0 | F166: 0 | G166: 0 | H166: 0 | I166: 0 | J166: 0
C167: > 330 kV & < = 500 kV ; Oil Filled Reactors | D167: 0 | E167: 0 | F167: 0 | G167: 0 | H167: 0 | I167: 0 | J167: 0
C168: > 500 kV ; Oil Filled Reactors | D168: 0 | E168: 0 | F168: 0 | G168: 0 | H168: 0 | I168: 0 | J168: 0
C169: Other | D169: 2298805.191 | E169: 0 | F169: 0 | G169: 0 | H169: 0 | I169: 0 | J169: 0
B170: SCADA, NETWORK CONTROL AND PROTECTION SYSTEMS BY: Function | C170: Communications Network Assets | D170: 10772998.77 | E170: 17026137.83 | F170: 18671710.01 | G170: 18383202.8 | H170: 18927495.44 | I170: 18117113.57 | J170: 18718883.22
C171: Control equipment / systems | D171: 0 | E171: 0 | F171: 79708.47388 | G171: 79972.71969 | H171: 80452.44146 | I171: 81046.59668 | J171: 81648.02139
D172: 0 | E172: 0 | F172: 0 | G172: 0 | H172: 0 | I172: 0 | J172: 0
C173: Metering systems | D173: 52245.57252 | E173: 2196964.233 | F173: 167807.3134 | G173: 168363.6204 | H173: 152436.2049 | I173: 153561.9727 | J173: 171890.5713
C174: Protection schemes / systems | D174: 4760611.521 | E174: 5731129.615 | F174: 3184143.773 | G174: 3352540.591 | H174: 4042205.891 | I174: 4058195.048 | J174: 3679532.543
C175: Station SCADA and control systems | D175: 0 | E175: 0 | F175: 933428.181 | G175: 778681.7443 | H175: 130735.2174 | I175: 145563.9532 | J175: 538232.3515
B176: OTHER BY: NSP defined | C176: Other primary & secondary projects | D176: 12562005.93 | E176: 8865648.31 | F176: 9695788.162 | G176: 1936894.1 | H176: 562913.6122 | I176: 413356.0525 | J176: 116000.2336
C177: Fall Arrest Systems | D177: 0 | E177: 1736647.918 | F177: 542437.1407 | G177: 544235.4029 | H177: 547500.0359 | I177: 551543.4185 | J177: 555636.2719
C178: Auxilliary power supplies | D178: 3238536.284 | E178: 1414456.387 | F178: 1730512.92 | G178: 1736249.835 | H178: 1746664.848 | I178: 1759564.27 | J178: 1772621.517
C179: 22kV,66kV,220kV surge arrester replacement | D179: 0 | E179: 0 | F179: 444689.3806 | G179: 446163.594 | H179: 448839.9366 | I179: 452154.6973 | J179: 455510.0141
C180: Civil infrastructure | D180: 969634.4622 | E180: 78463.00384 | F180: 2632477.23 | G180: 2641204.295 | H180: 2657047.738 | I180: 2676670.496 | J180: 2696533.338
C181: AIS replacing GIS at SYTS and SMTS | D181: 0 | E181: 1218203.586 | F181: 15880953.64 | G181: 27294517.46 | H181: 21576131.24 | I181: 7353952.846 | J181: 4714773.292
C182: TD-3319- WMTS Redevelopment Project | D182: 8954602.017 | E182: 1244192.323 | F182: 9991693.302 | G182: 0 | H182: 0 | I182: 0 | J182: 0
C183: TD-8004-RCTS Transformer and Switchgear Replacement | D183: 0 | E183: 0 | F183: 422459.0095 | G183: 1658184.192 | H183: 5058095.83 | I183: 2899139.402 | J183: 0
C184: TD-7772- TSTS Transformer and 66kV Circuit Breaker Replacement | D184: 0 | E184: 191911.4387 | F184: 2304054.918 | G184: 4085922.099 | H184: 395168.6425 | I184: 0 | J184: 0
C185: TD-3454-KTS A4 500/220kV Transformer Replacement | D185: 0 | E185: 0 | F185: 0 | G185: 196509.2761 | H185: 12502007.54 | I185: 856705.4242 | J185: 16445353.05
C186: TD-3546-HOTS SVC Replacement | D186: 588845.2842 | E186: 6164021.304 | F186: 14173208.5 | G186: 8613382.719 | H186: 0 | I186: 0 | J186: 0
C187: TD-6169-SMTS 330/220kV Transformer Replacement - Stage 2 | D187: 0 | E187: 0 | F187: 0 | G187: 82109.89737 | H187: 7700572.282 | I187: 589381.7821 | J187: 11521431.97
C188: Infrastructure security | D188: 0 | E188: 0 | F188: 1310994.636 | G188: 1315340.784 | H188: 1323230.945 | I188: 1333003.235 | J188: 1342895.089
C189: Power transformer Bushings ,PIB & WTI replacements & online monitoring | D189: 0 | E189: 0 | F189: 2684917.015 | G189: 2693817.926 | H189: 2709976.976 | I189: 2729990.625 | J189: 2750249.142
D190: 0 | E190: 0 | F190: 0 | G190: 0 | H190: 0 | I190: 0 | J190: 0
D191: 0 | E191: 0 | F191: 0 | G191: 0 | H191: 0 | I191: 0 | J191: 0
D192: 0 | E192: 0 | F192: 0 | G192: 0 | H192: 0 | I192: 0 | J192: 0
D193: 0 | E193: 0 | F193: 0 | G193: 0 | H193: 0 | I193: 0 | J193: 0
D194: 0 | E194: 0 | F194: 0 | G194: 0 | H194: 0 | I194: 0 | J194: 0
D195: 0 | E195: 0 | F195: 0 | G195: 0 | H195: 0 | I195: 0 | J195: 0
D196: 0 | E196: 0 | F196: 0 | G196: 0 | H196: 0 | I196: 0 | J196: 0
D197: 0 | E197: 0 | F197: 0 | G197: 0 | H197: 0 | I197: 0 | J197: 0
D198: 0 | E198: 0 | F198: 0 | G198: 0 | H198: 0 | I198: 0 | J198: 0
D199: 0 | E199: 0 | F199: 0 | G199: 0 | H199: 0 | I199: 0 | J199: 0
D200: 0 | E200: 0 | F200: 0 | G200: 0 | H200: 0 | I200: 0 | J200: 0
D201: 0 | E201: 0 | F201: 0 | G201: 0 | H201: 0 | I201: 0 | J201: 0
B204: ASSET REPLACEMENTS
... 372 more rows

Sheet 2.3 Augex (a) (hidden)
B1: =(LOOKUP(dms_Model,dms_Model_List,dms_Worksheet_List)) -> REGULATORY REPORTING STATEMENT
B2: =INDEX(dms_TradingNameFull_List,MATCH(dms_TradingName,dms_TradingName_List)) -> AusNet Transmission Group Pty Ltd
B3: =IF(SUM(dms_SingleYear_Model)>0,CRY,CONCATENATE(FRCP_y1," to ",dms_MultiYear_FinalYear_Result)) -> 2022-23 to 2026-27
B4: 2.3 AUGEX PROJECTS
B6: There are TWO tables on this worksheet - each has been 'grouped' for easy navigation. Both ROWS and COLUMNS have been grouped. See the Instructions sheet on how to group or ungroup tables.
B8: NOTE: TNSP MUST PROVIDE EXPENDITURE INFORMATION ON A PROJECT CLOSE BASIS.
B9: 2.3.1 - AUGEX ASSET DATA - SUBSTATIONS
B10: SUBSTATION AND PROJECT SUMMARY | L10: PLANT AND EQUIPMENT EXPENDITURE AND VOLUME | Z10: OTHER EXPENDITURE | AB10: TOTAL DIRECT EXPENDITURE ($0's) | AC10: YEARS INCURRED | AD10: RELATED PARTY CONTRACTS | AF10: ALL NON RELATED PARTYCONTRACTS | AG10: LAND AND EASEMENTS | AI10: Comments
B11: SUBSTATION ID | C11: SUBSTATION TYPE (drop down) | D11: PROJECT ID | E11: PROJECT TYPE (drop down) | F11: PROJECT TRIGGER (drop down) | G11: VOLTAGE (KV) | H11: SUBSTATION RATING NORMAL CYCLIC (MVA) | J11: SUBSTATION RATING N-1 EMERGENCY (MVA) | L11: TRANSFORMERS | P11: SWITCHGEAR | S11: REACTIVE PLANT | W11: OTHER PLANT ITEM | X11: INSTALLATION (LABOUR) | Z11: CIVIL WORKS | AA11: OTHER DIRECT | AD11: RELATED PARTY MARGINS | AE11: TOTAL | AG11: LAND PURCHASES | AH11: EASEMENTS
H12: PRE | I12: POST | J12: PRE | K12: POST | L12: Units Added | M12: MVA Added | N12: OLTC INCLUDED? | O12: Expenditure ($0's) | P12: Insulation | Q12: Units Added | R12: Expenditure ($0's) | S12: Plant Type | U12: Units Added | V12: Expenditure ($0's) | W12: Expenditure ($0's) | X12: Volume | Y12: Expenditure ($0's) | Z12: Expenditure ($0's) | AD12: Expenditure ($0's) | AG12: Expenditure ($0's)
B13: <Enter substation ID>
B20: Project Totals | L20: =SUM(L13:L18) -> 0 | M20: =SUM(M13:M18) -> 0 | O20: =SUM(O13:O18) -> 0 | Q20: =SUM(Q13:Q18) -> 0 | R20: =SUM(R13:R18) -> 0 | T20: =SUM(T13:T18) -> 0 | U20: 0 | V20: 0 | W20: 0 | X20: 0 | Y20: 0 | Z20: 0 | AA20: =O18+R18+U18+V18+SUM(X18:Z18) -> 0 | AC20: =SUM(AC13:AC18) -> 0 | AD20: =SUM(AD13:AD18) -> 0 | AE20: =SUM(AE13:AE18) -> 0 | AF20: =SUM(AF13:AF18) -> 0 | AG20: =SUM(AG13:AG18) -> 0 | AH20: =SUM(AH13:AH19) -> 0
B21: <Enter substation ID>
B28: Project Totals | L28: =SUM(L21:L26) -> 0 | M28: =SUM(M21:M26) -> 0 | O28: =SUM(O21:O26) -> 0 | Q28: =SUM(Q21:Q26) -> 0 | R28: =SUM(R21:R26) -> 0 | T28: =SUM(T21:T26) -> 0 | U28: 0 | V28: 0 | W28: 0 | X28: 0 | Y28: 0 | Z28: 0 | AA28: =O26+R26+U26+V26+SUM(X26:Z26) -> 0 | AC28: =SUM(AC21:AC26) -> 0 | AD28: =SUM(AD21:AD26) -> 0 | AE28: =SUM(AE21:AE26) -> 0 | AF28: =SUM(AF21:AF26) -> 0 | AG28: =SUM(AG21:AG26) -> 0 | AH28: =SUM(AH21:AH27) -> 0
B29: <Enter substation ID>
B36: Project Totals | L36: =SUM(L29:L34) -> 0 | M36: =SUM(M29:M34) -> 0 | O36: =SUM(O29:O34) -> 0 | Q36: =SUM(Q29:Q34) -> 0 | R36: =SUM(R29:R34) -> 0 | T36: =SUM(T29:T34) -> 0 | U36: 0 | V36: 0 | W36: 0 | X36: 0 | Y36: 0 | Z36: 0 | AA36: =O34+R34+U34+V34+SUM(X34:Z34) -> 0 | AC36: =SUM(AC29:AC34) -> 0 | AD36: =SUM(AD29:AD34) -> 0 | AE36: =SUM(AE29:AE34) -> 0 | AF36: =SUM(AF29:AF34) -> 0 | AG36: =SUM(AG29:AG34) -> 0 | AH36: =SUM(AH29:AH35) -> 0
B37: <Enter substation ID>
B44: Project Totals | L44: =SUM(L37:L42) -> 0 | M44: =SUM(M37:M42) -> 0 | O44: =SUM(O37:O42) -> 0 | Q44: =SUM(Q37:Q42) -> 0 | R44: =SUM(R37:R42) -> 0 | T44: =SUM(T37:T42) -> 0 | U44: 0 | V44: 0 | W44: 0 | X44: 0 | Y44: 0 | Z44: 0 | AA44: =O42+R42+U42+V42+SUM(X42:Z42) -> 0 | AC44: =SUM(AC37:AC42) -> 0 | AD44: =SUM(AD37:AD42) -> 0 | AE44: =SUM(AE37:AE42) -> 0 | AF44: =SUM(AF37:AF42) -> 0 | AG44: =SUM(AG37:AG42) -> 0 | AH44: =SUM(AH37:AH43) -> 0
B45: <Enter substation ID>
B52: Project Totals | L52: =SUM(L45:L50) -> 0 | M52: =SUM(M45:M50) -> 0 | O52: =SUM(O45:O50) -> 0 | Q52: =SUM(Q45:Q50) -> 0 | R52: =SUM(R45:R50) -> 0 | T52: =SUM(T45:T50) -> 0 | U52: 0 | V52: 0 | W52: 0 | X52: 0 | Y52: 0 | Z52: 0 | AA52: =O50+R50+U50+V50+SUM(X50:Z50) -> 0 | AC52: =SUM(AC45:AC50) -> 0 | AD52: =SUM(AD45:AD50) -> 0 | AE52: =SUM(AE45:AE50) -> 0 | AF52: =SUM(AF45:AF50) -> 0 | AG52: =SUM(AG45:AG50) -> 0 | AH52: =SUM(AH45:AH51) -> 0
B53: <Enter substation ID>
B60: Project Totals | L60: =SUM(L53:L58) -> 0 | M60: =SUM(M53:M58) -> 0 | O60: =SUM(O53:O58) -> 0 | Q60: =SUM(Q53:Q58) -> 0 | R60: =SUM(R53:R58) -> 0 | T60: =SUM(T53:T58) -> 0 | U60: 0 | V60: 0 | W60: 0 | X60: 0 | Y60: 0 | Z60: 0 | AA60: =O58+R58+U58+V58+SUM(X58:Z58) -> 0 | AC60: =SUM(AC53:AC58) -> 0 | AD60: =SUM(AD53:AD58) -> 0 | AE60: =SUM(AE53:AE58) -> 0 | AF60: =SUM(AF53:AF58) -> 0 | AG60: =SUM(AG53:AG58) -> 0 | AH60: =SUM(AH53:AH59) -> 0
B61: <Enter substation ID>
B68: Project Totals | L68: =SUM(L61:L66) -> 0 | M68: =SUM(M61:M66) -> 0 | O68: =SUM(O61:O66) -> 0 | Q68: =SUM(Q61:Q66) -> 0 | R68: =SUM(R61:R66) -> 0 | T68: =SUM(T61:T66) -> 0 | U68: 0 | V68: 0 | W68: 0 | X68: 0 | Y68: 0 | Z68: 0 | AA68: =O66+R66+U66+V66+SUM(X66:Z66) -> 0 | AC68: =SUM(AC61:AC66) -> 0 | AD68: =SUM(AD61:AD66) -> 0 | AE68: =SUM(AE61:AE66) -> 0 | AF68: =SUM(AF61:AF66) -> 0 | AG68: =SUM(AG61:AG66) -> 0 | AH68: =SUM(AH61:AH67) -> 0
B69: <Enter substation ID>
B76: Project Totals | L76: =SUM(L69:L74) -> 0 | M76: =SUM(M69:M74) -> 0 | O76: =SUM(O69:O74) -> 0 | Q76: =SUM(Q69:Q74) -> 0 | R76: =SUM(R69:R74) -> 0 | T76: =SUM(T69:T74) -> 0 | U76: 0 | V76: 0 | W76: 0 | X76: 0 | Y76: 0 | Z76: 0 | AA76: =O74+R74+U74+V74+SUM(X74:Z74) -> 0 | AC76: =SUM(AC69:AC74) -> 0 | AD76: =SUM(AD69:AD74) -> 0 | AE76: =SUM(AE69:AE74) -> 0 | AF76: =SUM(AF69:AF74) -> 0 | AG76: =SUM(AG69:AG74) -> 0 | AH76: =SUM(AH69:AH75) -> 0
B77: <Enter substation ID>
B84: Project Totals | L84: =SUM(L77:L82) -> 0 | M84: =SUM(M77:M82) -> 0 | O84: =SUM(O77:O82) -> 0 | Q84: =SUM(Q77:Q82) -> 0 | R84: =SUM(R77:R82) -> 0 | T84: =SUM(T77:T82) -> 0 | U84: 0 | V84: 0 | W84: 0 | X84: 0 | Y84: 0 | Z84: 0 | AA84: =O82+R82+U82+V82+SUM(X82:Z82) -> 0 | AC84: =SUM(AC77:AC82) -> 0 | AD84: =SUM(AD77:AD82) -> 0 | AE84: =SUM(AE77:AE82) -> 0 | AF84: =SUM(AF77:AF82) -> 0 | AG84: =SUM(AG77:AG82) -> 0 | AH84: =SUM(AH77:AH83) -> 0
B85: <Enter substation ID>
B92: Project Totals | L92: =SUM(L85:L90) -> 0 | M92: =SUM(M85:M90) -> 0 | O92: =SUM(O85:O90) -> 0 | Q92: =SUM(Q85:Q90) -> 0 | R92: =SUM(R85:R90) -> 0 | T92: =SUM(T85:T90) -> 0 | U92: 0 | V92: 0 | W92: 0 | X92: 0 | Y92: 0 | Z92: 0 | AA92: =O90+R90+U90+V90+SUM(X90:Z90) -> 0 | AC92: =SUM(AC85:AC90) -> 0 | AD92: =SUM(AD85:AD90) -> 0 | AE92: =SUM(AE85:AE90) -> 0 | AF92: =SUM(AF85:AF90) -> 0 | AG92: =SUM(AG85:AG90) -> 0 | AH92: =SUM(AH85:AH91) -> 0
B93: <Enter substation ID>
B100: Project Totals | L100: =SUM(L93:L98) -> 0 | M100: =SUM(M93:M98) -> 0 | O100: =SUM(O93:O98) -> 0 | Q100: =SUM(Q93:Q98) -> 0 | R100: =SUM(R93:R98) -> 0 | T100: =SUM(T93:T98) -> 0 | U100: 0 | V100: 0 | W100: 0 | X100: 0 | Y100: 0 | Z100: 0 | AA100: =O98+R98+U98+V98+SUM(X98:Z98) -> 0 | AC100: =SUM(AC93:AC98) -> 0 | AD100: =SUM(AD93:AD98) -> 0 | AE100: =SUM(AE93:AE98) -> 0 | AF100: =SUM(AF93:AF98) -> 0 | AG100: =SUM(AG93:AG98) -> 0 | AH100: =SUM(AH93:AH99) -> 0
B101: <Enter substation ID>
B108: Project Totals | L108: =SUM(L101:L106) -> 0 | M108: =SUM(M101:M106) -> 0 | O108: =SUM(O101:O106) -> 0 | Q108: =SUM(Q101:Q106) -> 0 | R108: =SUM(R101:R106) -> 0 | T108: =SUM(T101:T106) -> 0 | U108: 0 | V108: 0 | W108: 0 | X108: 0 | Y108: 0 | Z108: 0 | AA108: =O106+R106+U106+V106+SUM(X106:Z106) -> 0 | AC108: =SUM(AC101:AC106) -> 0 | AD108: =SUM(AD101:AD106) -> 0 | AE108: =SUM(AE101:AE106) -> 0 | AF108: =SUM(AF101:AF106) -> 0 | AG108: =SUM(AG101:AG106) -> 0 | AH108: =SUM(AH101:AH107) -> 0
B109: <Enter substation ID>
B116: Project Totals | L116: =SUM(L109:L114) -> 0 | M116: =SUM(M109:M114) -> 0 | O116: =SUM(O109:O114) -> 0 | Q116: =SUM(Q109:Q114) -> 0 | R116: =SUM(R109:R114) -> 0 | T116: =SUM(T109:T114) -> 0 | U116: 0 | V116: 0 | W116: 0 | X116: 0 | Y116: 0 | Z116: 0 | AA116: =O114+R114+U114+V114+SUM(X114:Z114) -> 0 | AC116: =SUM(AC109:AC114) -> 0 | AD116: =SUM(AD109:AD114) -> 0 | AE116: =SUM(AE109:AE114) -> 0 | AF116: =SUM(AF109:AF114) -> 0 | AG116: =SUM(AG109:AG114) -> 0 | AH116: =SUM(AH109:AH115) -> 0
B117: <Enter substation ID>
B124: Project Totals | L124: =SUM(L117:L122) -> 0 | M124: =SUM(M117:M122) -> 0 | O124: =SUM(O117:O122) -> 0 | Q124: =SUM(Q117:Q122) -> 0 | R124: =SUM(R117:R122) -> 0 | T124: =SUM(T117:T122) -> 0 | U124: 0 | V124: 0 | W124: 0 | X124: 0 | Y124: 0 | Z124: 0 | AA124: =O122+R122+U122+V122+SUM(X122:Z122) -> 0 | AC124: =SUM(AC117:AC122) -> 0 | AD124: =SUM(AD117:AD122) -> 0 | AE124: =SUM(AE117:AE122) -> 0 | AF124: =SUM(AF117:AF122) -> 0 | AG124: =SUM(AG117:AG122) -> 0 | AH124: =SUM(AH117:AH123) -> 0
B125: <Enter substation ID>
B132: Project Totals | L132: =SUM(L125:L130) -> 0 | M132: =SUM(M125:M130) -> 0 | O132: =SUM(O125:O130) -> 0 | Q132: =SUM(Q125:Q130) -> 0 | R132: =SUM(R125:R130) -> 0 | T132: =SUM(T125:T130) -> 0 | U132: 0 | V132: 0 | W132: 0 | X132: 0 | Y132: 0 | Z132: 0 | AA132: =O130+R130+U130+V130+SUM(X130:Z130) -> 0 | AC132: =SUM(AC125:AC130) -> 0 | AD132: =SUM(AD125:AD130) -> 0 | AE132: =SUM(AE125:AE130) -> 0 | AF132: =SUM(AF125:AF130) -> 0 | AG132: =SUM(AG125:AG130) -> 0 | AH132: =SUM(AH125:AH131) -> 0
K133: Non material projects
B135: NOTE: TNSP MUST PROVIDE EXPENDITURE INFORMATION ON A PROJECT CLOSE BASIS.
B136: 2.3.2 - AUGEX ASSET DATA - LINES
B137: LINE AND PROJECT SUMMARY | L137: PLANT AND EQUIPMENT EXPENDITURE AND VOLUME | Z137: OTHER EXPENDITURE | AB137: TOTAL DIRECT EXPENDITURE ($0's) | AC137: YEARS INCURRED | AD137: ALL RELATED PARTY CONTRACTS | AF137: ALL NON RELATED PARTYCONTRACTS | AG137: LAND AND EASEMENTS | AI137: Comments
B138: LINE ID | D138: PROJECT ID | E138: PROJECT TYPE (drop down) | F138: PROJECT TRIGGER (drop down) | G138: VOLTAGE (KV) (drop down) | H138: ROUTE LINE LENGTH ADDED | L138: TOWERS/POLES (INCLUDING STRUCTURES, AND CIVIL WORKS) | P138: LINES AND CABLES | W138: OTHER PLANT ITEM | X138: INSTALLATION (LABOUR) | Z138: CIVIL WORKS | AA138: OTHER DIRECT | AD138: RELATED PARTY MARGINS | AE138: TOTAL | AG138: LAND PURCHASES | AH138: EASEMENTS
P139: Type | Q139: Rating (MVA) | S139: N-1 Emergency Rating (MVA) | U139: Circuit KM Added | V139: Expenditure ($0's) | W139: Expenditure ($0's)
H140: KM ADDED | L140: Configuration | M140: Towers/Poles Added | N140: Towers/Poles Upgraded | O140: Expenditure ($0's) | Q140: PRE | R140: POST | S140: PRE | T140: POST | X140: Volume | Y140: Expenditure ($0's) | Z140: Expenditure ($0's) | AD140: Expenditure ($0's) | AG140: Expenditure ($0's)
B141: <Enter line ID>
B148: Project Totals | M148: =SUM(M141:M147) -> 0 | N148: =SUM(N141:N147) -> 0 | O148: =SUM(O141:O147) -> 0 | U148: =SUM(U141:U147) -> 0 | V148: =SUM(V141:V147) -> 0 | W148: =SUM(W141:W146) -> 0 | X148: =SUM(X141:X146) -> 0 | Y148: =SUM(Y141:Y147) -> 0 | Z148: =SUM(Z141:Z147) -> 0 | AA148: =SUM(AA141:AA147) -> 0 | AB148: =K92+R92+S92+SUM(U92:W92) -> 0 | AD148: =SUM(AD141:AD147) -> 0 | AE148: =SUM(AE141:AE147) -> 0 | AF148: =SUM(AF141:AF147) -> 0 | AG148: =SUM(AG141:AG147) -> 0 | AH148: =SUM(AH141:AH147) -> 0
B149: <Enter line ID>
B156: Project Totals | M156: =SUM(M149:M155) -> 0 | N156: =SUM(N149:N155) -> 0 | O156: =SUM(O149:O155) -> 0 | U156: =SUM(U149:U155) -> 0 | V156: =SUM(V149:V155) -> 0 | W156: =SUM(W149:W154) -> 0 | X156: =SUM(X149:X154) -> 0 | Y156: =SUM(Y149:Y155) -> 0 | Z156: =SUM(Z149:Z155) -> 0 | AA156: =SUM(AA149:AA155) -> 0 | AB156: =K84+R84+S84+SUM(U84:W84) -> 0 | AD156: =SUM(AD149:AD155) -> 0 | AE156: =SUM(AE149:AE155) -> 0 | AF156: =SUM(AF149:AF155) -> 0 | AG156: =SUM(AG149:AG155) -> 0 | AH156: =SUM(AH149:AH155) -> 0
B157: <Enter line ID>
B164: Project Totals | M164: =SUM(M157:M163) -> 0 | N164: =SUM(N157:N163) -> 0 | O164: =SUM(O157:O163) -> 0 | U164: =SUM(U157:U163) -> 0 | V164: =SUM(V157:V163) -> 0 | W164: =SUM(W157:W162) -> 0 | X164: =SUM(X157:X162) -> 0 | Y164: =SUM(Y157:Y163) -> 0 | Z164: =SUM(Z157:Z163) -> 0 | AA164: =SUM(AA157:AA163) -> 0 | AB164: =K92+R92+S92+SUM(U92:W92) -> 0 | AD164: =SUM(AD157:AD163) -> 0 | AE164: =SUM(AE157:AE163) -> 0 | AF164: =SUM(AF157:AF163) -> 0 | AG164: =SUM(AG157:AG163) -> 0 | AH164: =SUM(AH157:AH163) -> 0
B165: <Enter line ID>
B172: Project Totals | M172: =SUM(M165:M171) -> 0 | N172: =SUM(N165:N171) -> 0 | O172: =SUM(O165:O171) -> 0 | U172: =SUM(U165:U171) -> 0 | V172: =SUM(V165:V171) -> 0 | W172: =SUM(W165:W170) -> 0 | X172: =SUM(X165:X170) -> 0 | Y172: =SUM(Y165:Y171) -> 0 | Z172: =SUM(Z165:Z171) -> 0 | AA172: =SUM(AA165:AA171) -> 0 | AB172: =K100+R100+S100+SUM(U100:W100) -> 0 | AD172: =SUM(AD165:AD171) -> 0 | AE172: =SUM(AE165:AE171) -> 0 | AF172: =SUM(AF165:AF171) -> 0 | AG172: =SUM(AG165:AG171) -> 0 | AH172: =SUM(AH165:AH171) -> 0
B173: <Enter line ID>
B180: Project Totals | M180: =SUM(M173:M179) -> 0 | N180: =SUM(N173:N179) -> 0 | O180: =SUM(O173:O179) -> 0 | U180: =SUM(U173:U179) -> 0 | V180: =SUM(V173:V179) -> 0 | W180: =SUM(W173:W178) -> 0 | X180: =SUM(X173:X178) -> 0 | Y180: =SUM(Y173:Y179) -> 0 | Z180: =SUM(Z173:Z179) -> 0 | AA180: =SUM(AA173:AA179) -> 0 | AB180: =K108+R108+S108+SUM(U108:W108) -> 0 | AD180: =SUM(AD173:AD179) -> 0 | AE180: =SUM(AE173:AE179) -> 0 | AF180: =SUM(AF173:AF179) -> 0 | AG180: =SUM(AG173:AG179) -> 0 | AH180: =SUM(AH173:AH179) -> 0
B181: <Enter line ID>
B188: Project Totals | M188: =SUM(M181:M187) -> 0 | N188: =SUM(N181:N187) -> 0 | O188: =SUM(O181:O187) -> 0 | U188: =SUM(U181:U187) -> 0 | V188: =SUM(V181:V187) -> 0 | W188: =SUM(W181:W186) -> 0 | X188: =SUM(X181:X186) -> 0 | Y188: =SUM(Y181:Y187) -> 0 | Z188: =SUM(Z181:Z187) -> 0 | AA188: =SUM(AA181:AA187) -> 0 | AB188: =K116+R116+S116+SUM(U116:W116) -> 0 | AD188: =SUM(AD181:AD187) -> 0 | AE188: =SUM(AE181:AE187) -> 0 | AF188: =SUM(AF181:AF187) -> 0 | AG188: =SUM(AG181:AG187) -> 0 | AH188: =SUM(AH181:AH187) -> 0
B189: <Enter line ID>
B196: Project Totals | M196: =SUM(M189:M195) -> 0 | N196: =SUM(N189:N195) -> 0 | O196: =SUM(O189:O195) -> 0 | U196: =SUM(U189:U195) -> 0 | V196: =SUM(V189:V195) -> 0 | W196: =SUM(W189:W194) -> 0 | X196: =SUM(X189:X194) -> 0 | Y196: =SUM(Y189:Y195) -> 0 | Z196: =SUM(Z189:Z195) -> 0 | AA196: =SUM(AA189:AA195) -> 0 | AB196: =K124+R124+S124+SUM(U124:W124) -> 0 | AD196: =SUM(AD189:AD195) -> 0 | AE196: =SUM(AE189:AE195) -> 0 | AF196: =SUM(AF189:AF195) -> 0 | AG196: =SUM(AG189:AG195) -> 0 | AH196: =SUM(AH189:AH195) -> 0
K197: Non material projects

Sheet 2.3 Augex (b) (hidden)
B1: =(LOOKUP(dms_Model,dms_Model_List,dms_Worksheet_List)) -> REGULATORY REPORTING STATEMENT
B2: =INDEX(dms_TradingNameFull_List,MATCH(dms_TradingName,dms_TradingName_List)) -> AusNet Transmission Group Pty Ltd
B3: =IF(SUM(dms_SingleYear_Model)>0,CRY,CONCATENATE(FRCP_y1," to ",dms_MultiYear_FinalYear_Result)) -> 2022-23 to 2026-27
B4: 2.3 AUGEX PROJECTS
B6: There are THREE tables on this worksheet - each has been 'grouped' for easy navigation. See the Instructions sheet on how to group or ungroup tables.
B8: 2.3.4 - AUGEX - TOTAL EXPENDITURE
C9: =CONCATENATE("EXPENDITURE Forecast ($0's. real ",dms_DollarReal,")") -> EXPENDITURE Forecast ($0's. real March 2022)
B10: As incurred | C10: =dms_y1 -> 2020-21 | D10: =dms_y2 -> 2021-22 | E10: =dms_y3 -> 2022-23 | F10: =dms_y4 -> 2023-24 | G10: =dms_y5 -> 2024-25 | H10: =dms_y6 -> 2025-26 | I10: =dms_y7 -> 2026-27
B11: Substations
B12: Lines
B13: Other assets
B14: Total | C14: =SUM(C11:C13) -> 0 | D14: 0 | E14: 0 | F14: 0 | G14: 0 | H14: 0 | I14: 0
B17: 2.3.5 - AUGEX - BY DRIVER
C18: =CONCATENATE("EXPENDITURE Forecast ($0's. real ",dms_DollarReal,")") -> EXPENDITURE Forecast ($0's. real March 2022)
B19: As incurred | C19: =dms_y1 -> 2020-21 | D19: =dms_y2 -> 2021-22 | E19: =dms_y3 -> 2022-23 | F19: =dms_y4 -> 2023-24 | G19: =dms_y5 -> 2024-25 | H19: =dms_y6 -> 2025-26 | I19: =dms_y7 -> 2026-27
B20: "Greenfield" driven augex (network expansion capex)
B21: Reinforcement driven augex (augmentation of the existing network)
B22: Total | C22: =SUM(C20:C21) -> 0 | D22: 0 | E22: 0 | F22: 0 | G22: 0 | H22: 0 | I22: 0
B25: 2.3.6 - AUGEX - GREENFIELDS DRIVEN
C26: =CONCATENATE("EXPENDITURE Forecast ($0's. real ",dms_DollarReal,")") -> EXPENDITURE Forecast ($0's. real March 2022)
B27: As incurred | C27: =dms_y1 -> 2020-21 | D27: =dms_y2 -> 2021-22 | E27: =dms_y3 -> 2022-23 | F27: =dms_y4 -> 2023-24 | G27: =dms_y5 -> 2024-25 | H27: =dms_y6 -> 2025-26 | I27: =dms_y7 -> 2026-27
B28: Substations
B29: Lines
B30: Other assets
B31: Total | C31: =SUM(C28:C30) -> 0 | D31: 0 | E31: 0 | F31: 0 | G31: 0 | H31: 0 | I31: 0

Sheet 2.5 Connections (hidden)
B1: =(LOOKUP(dms_Model,dms_Model_List,dms_Worksheet_List)) -> REGULATORY REPORTING STATEMENT
B2: =INDEX(dms_TradingNameFull_List,MATCH(dms_TradingName,dms_TradingName_List)) -> AusNet Transmission Group Pty Ltd
B3: =IF(SUM(dms_SingleYear_Model)>0,CRY,CONCATENATE(FRCP_y1," to ",dms_MultiYear_FinalYear_Result)) -> 2022-23 to 2026-27
B4: 2.5 CONNECTIONS EXPENDITURE
B6: There are TWO tables on this worksheet. Each has been grouped (or sub-grouped). See the Instructions sheet on how to group or ungroup data.
B8: 2.5.1 - EXPENDITURE ON CONNECTION PROJECTS
C9: =CONCATENATE("EXPENDITURE Forecast ($0's. real ",dms_DollarReal,")") -> EXPENDITURE Forecast ($0's. real March 2022)
C10: =dms_y1 -> 2020-21 | D10: =dms_y2 -> 2021-22 | E10: =dms_y3 -> 2022-23 | F10: =dms_y4 -> 2023-24 | G10: =dms_y5 -> 2024-25 | H10: =dms_y6 -> 2025-26 | I10: =dms_y7 -> 2026-27
B11: DIRECT MATERIALS EXPENDITURE
B12: <Enter project description here…>
B37: DIRECT LABOUR EXPENDITURE
B38: =IF(ISBLANK(B12),"",B12) -> <Enter project description here…>
B66: 2.5.2 - DESCRIPTION OF CONNECTION PROJECTS
C67: CONNECTION RATING (MVA) | D67: CONNECTION VOLTAGE (KV) | E67: UNDERGROUND / OVERHEAD (drop down) | F67: YEAR CONNECTION PROJECT COMPLETED
B68: =IF(ISBLANK(B12),"",B12) -> <Enter project description here…>

Sheet 2.6 Non-network
B1: =(LOOKUP(dms_Model,dms_Model_List,dms_Worksheet_List)) -> REGULATORY REPORTING STATEMENT
B2: =INDEX(dms_TradingNameFull_List,MATCH(dms_TradingName,dms_TradingName_List)) -> AusNet Transmission Group Pty Ltd
B3: =IF(SUM(dms_SingleYear_Model)>0,CRY,CONCATENATE(FRCP_y1," to ",dms_MultiYear_FinalYear_Result)) -> 2022-23 to 2026-27
B4: 2.6 NON NETWORK EXPENDITURE
B6: There are THREE tables on this worksheet - each has been 'grouped' for easy navigation. See the Instructions sheet on how to group or ungroup tables.
B8: 2.6.1 - NON-NETWORK EXPENDITURE
E9: =CONCATENATE("EXPENDITURE Forecast ($0's. real ",dms_DollarReal,")") -> EXPENDITURE Forecast ($0's. real March 2022)
B10: SERVICE SUBCATEGORY | C10: ASSET CATEGORY | E10: =dms_y1 -> 2020-21 | F10: =dms_y2 -> 2021-22 | G10: =dms_y3 -> 2022-23 | H10: =dms_y4 -> 2023-24 | I10: =dms_y5 -> 2024-25 | J10: =dms_y6 -> 2025-26 | K10: =dms_y7 -> 2026-27
B11: OPEX
B12: IT & COMMUNICATIONS | C12: Total IT and communications | E12: 9569417.678 | F12: 24425308.17 | G12: 47105758.55 | H12: 45982845.95 | I12: 44635942.19 | J12: 44212690.27 | K12: 43749227.66
B13: MOTOR VEHICLES | C13: Car | E13: 299984.9526 | F13: 317530.1475 | G13: 317484.4278 | H13: 317402.0892 | I13: 317935.0045 | J13: 319095.6906 | K13: 320260.614
C14: Light commercial vehicle | E14: 468883.3492 | F14: 496306.8906 | G14: 496235.4296 | H14: 496106.7325 | I14: 496939.6913 | J14: 498753.8703 | K14: 500574.6723
C15: Elevated work platform (LCV) | E15: 0 | F15: 0 | G15: 0 | H15: 0 | I15: 0 | J15: 0 | K15: 0
C16: Elevated work platform (HCV) | E16: 0 | F16: 0 | G16: 0 | H16: 0 | I16: 0 | J16: 0 | K16: 0
C17: Heavy commercial vehicle | E17: 62753.6354 | F17: 66423.90204 | G17: 66414.33797 | H17: 66397.11361 | I17: 66508.59378 | J17: 66751.39687 | K17: 66995.08636
B18: BUILDINGS AND PROPERTY | C18: Total buildings and property expenditure | E18: 8411895.829 | F18: 8903881.678 | G18: 8902599.65 | H18: 8900290.788 | I18: 8915234.298 | J18: 8947781.166 | K18: 8980446.853
B19: OTHER | C19: Other expenditure
B20: OTHER - TNSP nominated
B31: CAPEX
B32: IT & COMMUNICATIONS | C32: Total IT and communications | E32: 19583329.29 | F32: 17533178.63 | G32: 17637922.47 | H32: 18054033.82 | I32: 18989510.9 | J32: 14646841.26 | K32: 12584103.16
B33: MOTOR VEHICLES | C33: Car | E33: 0 | F33: 512624.9877 | G33: 330370.6483 | H33: 294636.3357 | I33: 407555.1311 | J33: 186620.4529 | K33: 225606.3749
C34: Light commercial vehicle | E34: 407515.4657 | F34: 1632030.573 | G34: 886232.3741 | H34: 1299556.695 | I34: 1444968.192 | J34: 1039742.523 | K34: 1047458.169
C35: Elevated work platform (LCV) | E35: - | F35: - | G35: - | H35: - | I35: - | J35: - | K35: -
C36: Elevated work platform (HCV) | E36: - | F36: - | G36: - | H36: - | I36: - | J36: - | K36: -
C37: Heavy commercial vehicle | E37: - | F37: 104617.3444 | G37: - | H37: - | I37: - | J37: - | K37: -
B38: BUILDINGS AND PROPERTY | C38: Total buildings and property expenditure | E38: 1660592.086 | F38: 1662597.669 | G38: 1931605.863 | H38: 2083852.103 | I38: 2388871.126 | J38: 1974374.598 | K38: 2045366.585
B39: OTHER | C39: Other expenditure | E39: 545085.3725 | F39: 582358.0971 | G39: 588942.5044 | H39: 582445.1225 | I39: 650094.6186 | J39: 598781.3069 | K39: 611784.74
B40: OTHER - TNSP nominated
B54: 2.6.3 - ANNUAL DESCRIPTOR METRICS
B55: IT & COMMUNICATIONS
E56: VOLUMES (0's)
E57: =dms_y1 -> 2020-21 | F57: =dms_y2 -> 2021-22 | G57: =dms_y3 -> 2022-23 | H57: =dms_y4 -> 2023-24 | I57: =dms_y5 -> 2024-25 | J57: =dms_y6 -> 2025-26 | K57: =dms_y7 -> 2026-27
B58: Employee numbers | E58: 406 | F58: 406 | G58: 406 | H58: 406 | I58: 406 | J58: 406 | K58: 406
B59: User numbers | E59: 713 | F59: 713 | G59: 713 | H59: 713 | I59: 713 | J59: 713 | K59: 713
B60: Number of devices | E60: 834 | F60: 834 | G60: 834 | H60: 834 | I60: 834 | J60: 834 | K60: 834
B63: MOTOR VEHICLES
E64: VOLUMES (0's or %)
D65: Units | E65: =dms_y1 -> 2020-21 | F65: =dms_y2 -> 2021-22 | G65: =dms_y3 -> 2022-23 | H65: =dms_y4 -> 2023-24 | I65: =dms_y5 -> 2024-25 | J65: =dms_y6 -> 2025-26 | K65: =dms_y7 -> 2026-27
B66: CAR | C66: Average kilometres travelled | D66: 0's | E66: 375000 | F66: 375000 | G66: 375000 | H66: 375000 | I66: 375000 | J66: 375000 | K66: 375000
C67: Number purchased | D67: 0's | E67: 0 | F67: 14 | G67: 9 | H67: 8 | I67: 11 | J67: 5 | K67: 6
C68: Number leased | D68: 0's | E68: 0 | F68: 0 | G68: 0 | H68: 0 | I68: 0 | J68: 0 | K68: 0
C69: Number in fleet | D69: 0's | E69: 25 | F69: 25 | G69: 25 | H69: 25 | I69: 25 | J69: 25 | K69: 25
C70: Proportion of total fleet expenditure allocated as regulatory expenditure | D70: % | E70: 0.195 | F70: 0.195 | G70: 0.195 | H70: 0.195 | I70: 0.195 | J70: 0.195 | K70: 0.195
B71: LIGHT COMMERCIAL VEHICLE | C71: Average kilometres travelled | D71: 0's | E71: 1026000 | F71: 1026000 | G71: 1026000 | H71: 1026000 | I71: 1026000 | J71: 1026000 | K71: 1026000
C72: Number purchased | D72: 0's | E72: 6 | F72: 24 | G72: 13 | H72: 19 | I72: 21 | J72: 15 | K72: 15
C73: Number leased | D73: 0's | E73: 0 | F73: 0 | G73: 0 | H73: 0 | I73: 0 | J73: 0 | K73: 0
C74: Number in fleet | D74: 0's | E74: 57 | F74: 57 | G74: 57 | H74: 57 | I74: 57 | J74: 57 | K74: 57
C75: Proportion of total fleet expenditure allocated as regulatory expenditure | D75: % | E75: 0.195 | F75: 0.195 | G75: 0.195 | H75: 0.195 | I75: 0.195 | J75: 0.195 | K75: 0.195
B76: ELEVATED WORK PLATFORM (LCV) | C76: Average kilometres travelled | D76: 0's | E76: 0 | F76: 0 | G76: 0 | H76: 0 | I76: 0 | J76: 0 | K76: 0
C77: Number purchased | D77: 0's | E77: 0 | F77: 0 | G77: 0 | H77: 0 | I77: 0 | J77: 0 | K77: 0
C78: Number leased | D78: 0's | E78: 0 | F78: 0 | G78: 0 | H78: 0 | I78: 0 | J78: 0 | K78: 0
C79: Number in fleet | D79: 0's | E79: 0 | F79: 0 | G79: 0 | H79: 0 | I79: 0 | J79: 0 | K79: 0
C80: Proportion of total fleet expenditure allocated as regulatory expenditure | D80: % | E80: 0 | F80: 0 | G80: 0 | H80: 0 | I80: 0 | J80: 0 | K80: 0
B81: ELEVATED WORK PLATFORM (HCV) | C81: Average kilometres travelled | D81: 0's | E81: 0 | F81: 0 | G81: 0 | H81: 0 | I81: 0 | J81: 0 | K81: 0
C82: Number purchased | D82: 0's | E82: 0 | F82: 0 | G82: 0 | H82: 0 | I82: 0 | J82: 0 | K82: 0
C83: Number leased | D83: 0's | E83: 0 | F83: 0 | G83: 0 | H83: 0 | I83: 0 | J83: 0 | K83: 0
C84: Number in fleet | D84: 0's | E84: 0 | F84: 0 | G84: 0 | H84: 0 | I84: 0 | J84: 0 | K84: 0
C85: Proportion of total fleet expenditure allocated as regulatory expenditure | D85: % | E85: 0 | F85: 0 | G85: 0 | H85: 0 | I85: 0 | J85: 0 | K85: 0
B86: HEAVY COMMERCIAL VEHICLE | C86: Average kilometres travelled | D86: 0's | E86: 25000 | F86: 25000 | G86: 25000 | H86: 25000 | I86: 25000 | J86: 25000 | K86: 25000
C87: Number purchased | D87: 0's | E87: 0 | F87: 1 | G87: 0 | H87: 0 | I87: 0 | J87: 0 | K87: 0
C88: Number leased | D88: 0's | E88: 0 | F88: 0 | G88: 0 | H88: 0 | I88: 0 | J88: 0 | K88: 0
C89: Number in fleet | D89: 0's | E89: 5 | F89: 5 | G89: 5 | H89: 5 | I89: 5 | J89: 5 | K89: 5
C90: Proportion of total fleet expenditure allocated as regulatory expenditure | D90: % | E90: 0.195 | F90: 0.195 | G90: 0.195 | H90: 0.195 | I90: 0.195 | J90: 0.195 | K90: 0.195
B94: 2.6.4 - INFORMATION & COMMUNICATIONS TECHNOLOGY - CAPEX BY PURPOSE
E95: =CONCATENATE("EXPENDITURE Forecast ($0's. real ",dms_DollarReal,")") -> EXPENDITURE Forecast ($0's. real March 2022)
E96: =dms_y1 -> 2020-21 | F96: =dms_y2 -> 2021-22 | G96: =dms_y3 -> 2022-23 | H96: =dms_y4 -> 2023-24 | I96: =dms_y5 -> 2024-25 | J96: =dms_y6 -> 2025-26 | K96: =dms_y7 -> 2026-27
B97: RECURRENT
B98: Technology TRR FY23 to FY27 | E98: 9860157.546 | F98: 10588321.86 | G98: 11282337.64 | H98: 11483281.2 | I98: 12739217.34 | J98: 10609806.56 | K98: 8470040.036
B108: NON-RECURRENT
B109: Maintaining existing services, functionalities, capability and/or market benefits | E109: 1210988.074 | F109: 1159770.775 | G109: 1094719.949 | H109: 1008379.804 | I109: 1104937.635 | J109: 930742.9481 | K109: 937649.7379
B110: Complying with new / altered regulatory obligations / requirements | E110: 5689185.809 | F110: 4026450.764 | G110: 4138665.581 | H110: 4661637.168 | I110: 4239217.15 | J110: 2421668.676 | K110: 2256808.749
B111: New or expanded ICT capability, functions and services | E111: 2822997.864 | F111: 1758635.235 | G111: 1122199.297 | H111: 900735.648 | I111: 906138.7718 | J111: 684623.0727 | K111: 919604.6319

Sheet 2.10 Overheads
B1: =(LOOKUP(dms_Model,dms_Model_List,dms_Worksheet_List)) -> REGULATORY REPORTING STATEMENT
B2: =INDEX(dms_TradingNameFull_List,MATCH(dms_TradingName,dms_TradingName_List)) -> AusNet Transmission Group Pty Ltd
B3: =IF(SUM(dms_SingleYear_Model)>0,CRY,CONCATENATE(FRCP_y1," to ",dms_MultiYear_FinalYear_Result)) -> 2022-23 to 2026-27
B4: 2.10 OVERHEADS
B6: There are TWO tables on this worksheet. Each has been grouped (and sub-grouped) for ease of navigation. See the Instructions sheet on how to group or ungroup tables.
B8: 2.10.1 - NETWORK OVERHEADS EXPENDITURE
D9: =CONCATENATE("EXPENDITURE Forecast ($0's. real ",dms_DollarReal,")") -> EXPENDITURE Forecast ($0's. real March 2022)
D10: =dms_y1 -> 2020-21 | E10: =dms_y2 -> 2021-22 | F10: =dms_y3 -> 2022-23 | G10: =dms_y4 -> 2023-24 | H10: =dms_y5 -> 2024-25 | I10: =dms_y6 -> 2025-26 | J10: =dms_y7 -> 2026-27
B11: OPEX
B12: Prescribed Transmission Services | C12: Total | D12: 17953787.49 | E12: 19003849.17 | F12: 19001112.89 | G12: 18996185.01 | H12: 19028079.44 | I12: 19097545.29 | J12: 19167264.75
B13: Alternative Control Services | C13: Total
B14: CAPEX
B15: Prescribed Transmission Services | C15: Total | D15: 6944770 | E15: 5628202 | F15: 6301108 | G15: 6831573 | H15: 6784294 | I15: 7104565 | J15: 7141226
B16: Alternative Control Services | C16: Total
B17: OTHER DISTRIBUTION SERVICES
B18: Negotiated Services | C18: Total
B19: Unregulated Services | C19: Total
B23: 2.10.2 - CORPORATE OVERHEADS EXPENDITURE
D24: =CONCATENATE("EXPENDITURE Forecast ($0's. real ",dms_DollarReal,")") -> EXPENDITURE Forecast ($0's. real March 2022)
D25: =dms_y1 -> 2020-21 | E25: =dms_y2 -> 2021-22 | F25: =dms_y3 -> 2022-23 | G25: =dms_y4 -> 2023-24 | H25: =dms_y5 -> 2024-25 | I25: =dms_y6 -> 2025-26 | J25: =dms_y7 -> 2026-27
B26: OPEX
B27: Prescribed Transmission Services | C27: Total | D27: 194302627.8 | E27: 205666789.3 | F27: 205637176.3 | G27: 205583845 | H27: 205929018.4 | I27: 206680804 | J27: 207435334.1
B28: Alternative Control Services | C28: Total
B29: CAPEX
B30: Prescribed Transmission Services | C30: Total | D30: 1343974 | E30: 1089188 | F30: 1219410 | G30: 1322068 | H30: 1312918 | I30: 1374898 | J30: 1381993
B31: Alternative Control Services | C31: Total
B32: OTHER DISTRIBUTION SERVICES
B33: Negotiated Services | C33: Total
B34: Unregulated Services | C34: Total

Sheet 2.11 Labour
B1: =(LOOKUP(dms_Model,dms_Model_List,dms_Worksheet_List)) -> REGULATORY REPORTING STATEMENT
B2: =INDEX(dms_TradingNameFull_List,MATCH(dms_TradingName,dms_TradingName_List)) -> AusNet Transmission Group Pty Ltd
B3: =IF(SUM(dms_SingleYear_Model)>0,CRY,CONCATENATE(FRCP_y1," to ",dms_MultiYear_FinalYear_Result)) -> 2022-23 to 2026-27
B4: 2.11 LABOUR
B6: There is ONE table on this worksheet. The table has been 'grouped' (and sub-grouped) for easy navigation. See the Instructions sheet on how to group or ungroup data.
B8: Table numbering in this template starts at 2.11.3. Tables 2.11.1 & 2.11.2 appear in the Category Analysis RIN and are not required for this RIN.
B10: 2.11.3 - LABOUR / NON-LABOUR EXPENDITURE SPLIT
B11: OPEX
C12: EXPENDITURE
C13: ($0's, nominal) | H13: =CONCATENATE("($0's, real ", dms_DollarReal,")") -> ($0's, real March 2022)
C14: =PRCP_y4 -> 2015-16 | D14: =PRCP_y5 -> 2016-17 | E14: =CRCP_y1 -> 2017-18 | F14: =CRCP_y2 -> 2018-19 | G14: =CRCP_y3 -> 2019-20 | H14: =dms_y1 -> 2020-21 | I14: =dms_y2 -> 2021-22 | J14: =dms_y3 -> 2022-23 | K14: =dms_y4 -> 2023-24 | L14: =dms_y5 -> 2024-25 | M14: =dms_y6 -> 2025-26 | N14: =dms_y7 -> 2026-27
B15: In-house labour expenditure
B16: Labour expenditure outsourced to related parties
B17: Labour expenditure outsourced to unrelated parties
B18: Controllable non-labour expenditure
B19: Uncontrollable non-labour expenditure
B20: Total | C20: =SUM(C15:C19) -> 0 | D20: 0 | E20: 0 | F20: 0 | G20: 0 | H20: 0 | I20: 0 | J20: 0 | K20: 0 | L20: 0 | M20: 0 | N20: 0
B22: CAPEX
C23: EXPENDITURE
C24: ($0's, nominal) | H24: =CONCATENATE("($0's, real ", dms_DollarReal,")") -> ($0's, real March 2022)
C25: =PRCP_y4 -> 2015-16 | D25: =PRCP_y5 -> 2016-17 | E25: =CRCP_y1 -> 2017-18 | F25: =CRCP_y2 -> 2018-19 | G25: =CRCP_y3 -> 2019-20 | H25: =dms_y1 -> 2020-21 | I25: =dms_y2 -> 2021-22 | J25: =dms_y3 -> 2022-23 | K25: =dms_y4 -> 2023-24 | L25: =dms_y5 -> 2024-25 | M25: =dms_y6 -> 2025-26 | N25: =dms_y7 -> 2026-27
B26: In-house labour expenditure
B27: Labour expenditure outsourced to related parties
B28: Labour expenditure outsourced to unrelated parties
B29: Controllable non-labour expenditure
B30: Uncontrollable non-labour expenditure
B31: Total | C31: =SUM(C26:C30) -> 0 | D31: 0 | E31: 0 | F31: 0 | G31: 0 | H31: 0 | I31: 0 | J31: 0 | K31: 0 | L31: 0 | M31: 0 | N31: 0

Sheet 2.14 Forecast price changes
B1: =(LOOKUP(dms_Model,dms_Model_List,dms_Worksheet_List)) -> REGULATORY REPORTING STATEMENT
B2: =INDEX(dms_TradingNameFull_List,MATCH(dms_TradingName,dms_TradingName_List)) -> AusNet Transmission Group Pty Ltd
B3: =IF(SUM(dms_SingleYear_Model)>0,CRY,CONCATENATE(FRCP_y1," to ",dms_MultiYear_FinalYear_Result)) -> 2022-23 to 2026-27
B4: 2.14 FORECAST PRICE CHANGES
B6: 2.14.2 - FORECAST CAPEX AND OPEX PRICE CHANGES
C7: Price changes (% YoY real) Current regulatory period | E7: Price changes (%YoY real) Forthcoming regulatory period
C8: Forecast
C9: =CRCP_y4 -> 2020-21 | D9: =CRCP_y5 -> 2021-22 | E9: =FRCP_y1 -> 2022-23 | F9: =FRCP_y2 -> 2023-24 | G9: =FRCP_y3 -> 2024-25 | H9: =FRCP_y4 -> 2025-26 | I9: =FRCP_y5 -> 2026-27
B10: OPEX
B11: Labour Price Growth - WPI | C11: 0.003659050368 | D11: 0.006191185716 | E11: 0.005195923572 | F11: 0.005008228197 | G11: 0.007797345006 | H11: 0.01100844818 | I11: 0.01100844818
B12: Productivity | C12: 0 | D12: 0 | E12: 0.0031 | F12: 0.0031 | G12: 0.0031 | H12: 0.0031 | I12: 0.0031
B13: Output Growth | C13: 0 | D13: 0 | E13: 0 | F13: 0 | G13: 0 | H13: 0 | I13: 0
B14: CAPEX
B15: Internal Labour Price Growth - WPI | C15: 0.003659050368 | D15: 0.006191185716 | E15: 0.005195923572 | F15: 0.005008228197 | G15: 0.007797345006 | H15: 0.01100844818 | I15: 0.01100844818
B16: External Labour Price Growth - WPI | C16: -0.00262862618 | D16: 0.001173529921 | E16: 0.003970699006 | F16: 0.005617768797 | G16: 0.01039462039 | H16: 0.01245388304 | I16: 0.01245388304

Sheet 2.16 Opex Summary
B1: =(LOOKUP(dms_Model,dms_Model_List,dms_Worksheet_List)) -> REGULATORY REPORTING STATEMENT
B2: =INDEX(dms_TradingNameFull_List,MATCH(dms_TradingName,dms_TradingName_List)) -> AusNet Transmission Group Pty Ltd
B3: =IF(SUM(dms_SingleYear_Model)>0,CRY,CONCATENATE(FRCP_y1," to ",dms_MultiYear_FinalYear_Result)) -> 2022-23 to 2026-27
B4: 2.16 OPEX SUMMARY
B6: Instructions | K6: IMPORTANT!
B7: =CONCATENATE("Complete the tables below in accordance with the regulatory information notice. ",dms_TradingName, "'s total forecast opex must reconcile to Table 2.16.1. If ",dms_TradingName," did not forecast its total opex using a Base Year approach, total forecast opex must reconcile to Table 2.16.2") -> Complete the tables below in accordance with the regulatory information notice. AusNet (T)'s total forecast opex must reconcile to Table 2.16.1. If AusNet (T) did not forecast its total opex using a Base Year approach, total forecast opex must reconcile to Table 2.16.2 | K7: =CONCATENATE("Has ",dms_TradingName," used a base-step-trend model to derive its opex forecast? ") -> Has AusNet (T) used a base-step-trend model to derive its opex forecast? | M7: Yes
B8: The total step changes and category specific forecasts in Table 2.16.1 must reconcile (in each year) to the total step changes and category secific forecasts for each year in Tables 2.17.1 and 2.17.5 of worksheet 2.17 Step Changes.") | K8: Yes / No
K9: Please nominate the base year. | M9: 2020-21
B11: 2.16.1 - PRESCRIBED TRANSMISSION SERVICES - OPEX BY DRIVER
C12: =CONCATENATE("Forecast ($0's, real ", dms_DollarReal, ")") -> Forecast ($0's, real March 2022)
C13: =CRCP_y1 -> 2017-18 | D13: =CRCP_y2 -> 2018-19 | E13: =CRCP_y3 -> 2019-20 | F13: =CRCP_y4 -> 2020-21 | G13: =CRCP_y5 -> 2021-22 | H13: =FRCP_y1 -> 2022-23 | I13: =FRCP_y2 -> 2023-24 | J13: =FRCP_y3 -> 2024-25 | K13: =FRCP_y4 -> 2025-26 | L13: =FRCP_y5 -> 2026-27
B14: Base year total opex, excluding category specific | C14: - | D14: - | E14: - | F14: 81494777.78 | G14: 81494777.78 | H14: 81498610.11 | I14: 81498610.11 | J14: 81498610.11 | K14: 81498610.11 | L14: 81498610.11
B15: Increment from base year to final year | G15: - | H15: 517641.6776 | I15: 517641.6776 | J15: 517641.6776 | K15: 517641.6776 | L15: 517641.6776
B16: Price growth | H16: 242441.2391 | I16: 474635.8412 | J16: 864961.3456 | K16: 1416653.216 | L16: 1968658.693
B17: Output growth | H17: 0 | I17: 0 | J17: 0 | K17: 0 | L17: 0
B18: Productivity growth | H18: -254250.3805 | I18: -507712.5849 | J18: -760389.0564 | K18: -1012282.231 | L18: -1263394.536
B19: Step changes | F19: 427500 | G19: 15170149.76 | H19: 23693585.67 | I19: 22617853.09 | J19: 21270802.28 | K19: 20799113.44 | L19: 20286887.96
B20: Category specific | C20: - | D20: - | E20: - | F20: 170145203.7 | G20: 170145203.7 | H20: 170148583.6 | I20: 170145203.7 | J20: 170151887.7 | K20: 170153976.1 | L20: 170135464.7
B21: Total opex | C21: =SUM(C14:C20) -> 0 | D21: 0 | E21: 0 | F21: 252067481.5 | G21: 266810131.3 | H21: 275846611.9 | I21: 274746231.8 | J21: 273543514.1 | K21: 273373712.3 | L21: 273143868.6
B25: 2.16.2 - PRESCRIBED TRANSMISSION SERVICES - OPEX BY CATEGORY
C26: =CONCATENATE("Forecast ($0's, real ", dms_DollarReal, ")") -> Forecast ($0's, real March 2022)
C27: =CRCP_y1 -> 2017-18 | D27: =CRCP_y2 -> 2018-19 | E27: =CRCP_y3 -> 2019-20 | F27: =CRCP_y4 -> 2020-21 | G27: =CRCP_y5 -> 2021-22 | H27: =FRCP_y1 -> 2022-23 | I27: =FRCP_y2 -> 2023-24 | J27: =FRCP_y3 -> 2024-25 | K27: =FRCP_y4 -> 2025-26 | L27: =FRCP_y5 -> 2026-27
B58: Total opex | C58: =SUM(C28:C57) -> 0 | D58: 0 | E58: 0 | F58: 0 | G58: 0 | H58: 0 | I58: 0 | J58: 0 | K58: 0 | L58: 0

Sheet 2.17 Step Changes
B1: =(LOOKUP(dms_Model,dms_Model_List,dms_Worksheet_List)) -> REGULATORY REPORTING STATEMENT
B2: =INDEX(dms_TradingNameFull_List,MATCH(dms_TradingName,dms_TradingName_List)) -> AusNet Transmission Group Pty Ltd
B3: =IF(SUM(dms_SingleYear_Model)>0,CRY,CONCATENATE(FRCP_y1," to ",dms_MultiYear_FinalYear_Result)) -> 2022-23 to 2026-27
B4: 2.17 STEP CHANGES
B6: 2.17.1 - STEP CHANGES FOR PRESCRIBED TRANSMISSION SERVICES - FORECAST OPEX
F7: EXPENDITURE
F8: =CONCATENATE("Forecast ($0's, real ", dms_DollarReal, ")") -> Forecast ($0's, real March 2022)
B9: Step change | C9: Description | D9: =CRCP_y1 -> 2017-18 | E9: =CRCP_y2 -> 2018-19 | F9: =CRCP_y4 -> 2020-21 | G9: =CRCP_y5 -> 2021-22 | H9: =FRCP_y1 -> 2022-23 | I9: =FRCP_y2 -> 2023-24 | J9: =FRCP_y3 -> 2024-25 | K9: =FRCP_y4 -> 2025-26 | L9: =FRCP_y5 -> 2026-27
B10: Cyber Security | C10: We must uplift our cyber capabilities in the current and forthcoming regulatory periods in line with emerging regulatory requirements | F10: 0 | G10: 0 | H10: 7523863.275 | I10: 6407284.397 | J10: 5019387.289 | K10: 4737633.74 | L10: 4184561.96
B11: 5 minute settlement | C11: The AEMC amended the NER to align operational dispatch and financial settlement at five minutes (down from 30 minutes) from 2023. This will impact the costs of our meter data service provider, which will be passed on to us. | F11: 0 | G11: 0 | H11: 863899.2305 | I11: 863899.2305 | J11: 863899.2305 | K11: 633117.6394 | L11: 633117.6394
B12: EPA | C12: The Environment Protection Amendment Act 2018 (Vic) comes into effect on 1 July 2021. This law increased our environmental obligations to identify environmental issues (e.g. noise, soil contamination) and therefore our related resourcing and cost requirements. | F12: 427500 | G12: 429945 | H12: 556530.8282 | I12: 597377.1275 | J12: 638223.4268 | K12: 679069.7261 | L12: 719916.0254
B13: Cloud | C13: Certain applications will no longer support on-premise solutions in future, instead they will be cloud-based. Moving application from on-premise to cloud-based systems will shift expenditure from capex to opex. | F13: 0 | G13: 444000 | H13: 453087.5751 | I13: 453087.5751 | J13: 453087.5751 | K13: 453087.5751 | L13: 453087.5751
B14: Council Rates | C14: CWe have included a step change in council rates. This cost category is excepted to rise from $1M ($’2022) to $14.3M ($’2022) per annum due to a change in the methodology used to value terminal station assets | F14: 0 | G14: 14296204.76 | H14: 14296204.76 | I14: 14296204.76 | J14: 14296204.76 | K14: 14296204.76 | L14: 14296204.76
B24: Total | D24: =SUM(D17:D23) -> 0 | E24: 0 | F24: 0 | G24: 0 | H24: 0 | I24: 0 | J24: 0 | K24: 0 | L24: 0
B25: Check | H25: =IF(ROUND(H$24,0)-ROUND('2.16 Opex Summary'!C$19,0)=0,"OK","Error") -> OK | I25: =IF(ROUND(I$24,0)-ROUND('2.16 Opex Summary'!D$19,0)=0,"OK","Error") -> OK | J25: =IF(ROUND(J$24,0)-ROUND('2.16 Opex Summary'!E$19,0)=0,"OK","Error") -> OK | K25: =IF(ROUND(K$24,0)-ROUND('2.16 Opex Summary'!F$19,0)=0,"OK","Error") -> Error | L25: =IF(ROUND(L$24,0)-ROUND('2.16 Opex Summary'!G$19,0)=0,"OK","Error") -> Error
B28: 2.17.2 - STEP CHANGES FOR PRESCRIBED TRANSMISSION SERVICES - FORECAST CAPEX
F29: EXPENDITURE
F30: =CONCATENATE("Forecast ($0's, real ", dms_DollarReal, ")") -> Forecast ($0's, real March 2022)
B31: Step change | C31: Description | D31: =CRCP_y1 -> 2017-18 | E31: =CRCP_y2 -> 2018-19 | F31: =CRCP_y4 -> 2020-21 | G31: =CRCP_y5 -> 2021-22 | H31: =FRCP_y1 -> 2022-23 | I31: =FRCP_y2 -> 2023-24 | J31: =FRCP_y3 -> 2024-25 | K31: =FRCP_y4 -> 2025-26 | L31: =FRCP_y5 -> 2026-27
B47: Total | D47: =SUM(D32:D46) -> 0 | E47: 0 | F47: 0 | G47: 0 | H47: 0 | I47: 0 | J47: 0 | K47: 0 | L47: 0
B50: 2.17.5 - CATEGORY SPECIFIC OPEX FOR PRESCRIBED TRANSMISSION SERVICES
F51: EXPENDITURE
F52: =CONCATENATE("Forecast ($0's, real ", dms_DollarReal, ")") -> Forecast ($0's, real March 2022)
B53: Category | C53: Description | D53: =CRCP_y1 -> 2017-18 | E53: =CRCP_y2 -> 2018-19 | F53: =CRCP_y4 -> 2020-21 | G53: =CRCP_y5 -> 2021-22 | H53: =FRCP_y1 -> 2022-23 | I53: =FRCP_y2 -> 2023-24 | J53: =FRCP_y3 -> 2024-25 | K53: =FRCP_y4 -> 2025-26 | L53: =FRCP_y5 -> 2026-27
B54: Easement land tax | C54: Easement land tax is a levy applied by the Victorian Government, which is recovered through regulated revenues. | F54: 163181460.6 | G54: 163181460.6 | H54: 163181460.6 | I54: 163181460.6 | J54: 163181460.6 | K54: 163181460.6 | L54: 163181460.6
B55: Group 3 roll in | C55: These assets are included in the RAB in accordance with the regulatory framework according to the value of assets constructed to provide prescribed transmission services during the previous regulatory control period, adjusted for outturn inflation and depreciation. | F55: 5226337.14 | G55: 5226337.14 | H55: 5226337.14 | I55: 5226337.14 | J55: 5226337.14 | K55: 5226337.14 | L55: 5226337.14
B56: Debt Raising Costs | C56: Debt raising costs principally comprise legal fees and banking fees. We propose to forecast debt raising costs by applying 8.50 bppa, in accordance with the AER’s recent determination for SA Power Networks. | F56: 1740785.909 | G56: 1740785.909 | H56: 1740785.909 | I56: 1737406.001 | J56: 1744090.027 | K56: 1746178.419 | L56: 1727666.955
B68: Total | D68: =SUM(D61:D67) -> 0 | E68: 0 | F68: 0 | G68: 0 | H68: 0 | I68: 0 | J68: 0 | K68: 0 | L68: 0
B69: Check | H69: =IF(ROUND(H$68,0)-ROUND('2.16 Opex Summary'!C$20,0)=0,"OK","Error") ->  | I69: =IF(ROUND(I$68,0)-ROUND('2.16 Opex Summary'!D$20,0)=0,"OK","Error") ->  | J69: =IF(ROUND(J$68,0)-ROUND('2.16 Opex Summary'!E$20,0)=0,"OK","Error") ->  | K69: =IF(ROUND(K$68,0)-ROUND('2.16 Opex Summary'!F$20,0)=0,"OK","Error") -> Error | L69: =IF(ROUND(L$68,0)-ROUND('2.16 Opex Summary'!G$20,0)=0,"OK","Error") -> Error

Sheet 3.1 Revenue
B1: =(LOOKUP(dms_Model,dms_Model_List,dms_Worksheet_List)) -> REGULATORY REPORTING STATEMENT
B2: =INDEX(dms_TradingNameFull_List,MATCH(dms_TradingName,dms_TradingName_List)) -> AusNet Transmission Group Pty Ltd
B3: =IF(SUM(dms_SingleYear_Model)>0,CRY,CONCATENATE(FRCP_y1," to ",dms_MultiYear_FinalYear_Result)) -> 2022-23 to 2026-27
B4: 3.1 REVENUE
B7: 3.1.1 - REVENUE GROUPING BY CHARGEABLE QUANTITY
C8: REVENUE
C9: =CONCATENATE("Forecast ($0's, real ",dms_DollarReal,")") -> Forecast ($0's, real March 2022)
C10: =dms_y1 -> 2020-21 | D10: =dms_y2 -> 2021-22 | E10: =dms_y3 -> 2022-23 | F10: =dms_y4 -> 2023-24 | G10: =dms_y5 -> 2024-25 | H10: =dms_y6 -> 2025-26 | I10: =dms_y7 -> 2026-27
A11: TREV0101 | B11: From Fixed Customer (Exit Point) Charges | C11: 63959019.99 | D11: 62991213.48 | E11: 62967907.14 | F11: 61384011.69 | G11: 59839957.56 | H11: 58334742.58 | I11: 56867389.8
A12: TREV0102 | B12: From Variable Customer (Exit Point) Charges | C12: 0 | D12: 0 | E12: 0 | F12: 0 | G12: 0 | H12: 0 | I12: 0
A13: TREV0103 | B13: From Fixed Generator (Entry Point) Charges | C13: 4324899.487 | D13: 4259456.554 | E13: 4257880.583 | F13: 4150777.806 | G13: 4046369.094 | H13: 3944586.679 | I13: 3845364.501
A14: TREV0104 | B14: From Variable Generator (Entry Point) Charges | C14: 0 | D14: 0 | E14: 0 | F14: 0 | G14: 0 | H14: 0 | I14: 0
A15: TREV0105 | B15: From Fixed Energy Usage Charges (Charge per day basis) | C15: 0 | D15: 0 | E15: 0 | F15: 0 | G15: 0 | H15: 0 | I15: 0
A16: TREV0106 | B16: From Variable Energy Usage charges (Charge per kWh basis) | C16: 0 | D16: 0 | E16: 0 | F16: 0 | G16: 0 | H16: 0 | I16: 0
A17: TREV0107 | B17: From Energy based Common Service and General Charges | C17: 0 | D17: 0 | E17: 0 | F17: 0 | G17: 0 | H17: 0 | I17: 0
A18: TREV0108 | B18: From Fixed Demand based Usage Charges | C18: 0 | D18: 0 | E18: 0 | F18: 0 | G18: 0 | H18: 0 | I18: 0
A19: TREV0109 | B19: From Variable Demand based Usage Charges | C19: 0 | D19: 0 | E19: 0 | F19: 0 | G19: 0 | H19: 0 | I19: 0
A20: TREV0110 | B20: Revenue from other Sources | C20: 496995456.1 | D20: 489475087 | E20: 489293984.4 | F20: 476986277.9 | G20: 464988159.6 | H20: 453291842.2 | I20: 441889734
A21: TREV01 | B21: Total | C21: =SUM(C11:C20) -> 565279375.5 | D21: 556725757 | E21: 556519772.1 | F21: 542521067.4 | G21: 528874486.3 | H21: 515571171.4 | I21: 502602488.3
B24: 3.1.2 - REVENUE GROUPING BY TYPE OF CONNECTED EQUIPMENT
C25: REVENUE
C26: =CONCATENATE("Forecast ($0's, real ",dms_DollarReal,")") -> Forecast ($0's, real March 2022)
C27: =dms_y1 -> 2020-21 | D27: =dms_y2 -> 2021-22 | E27: =dms_y3 -> 2022-23 | F27: =dms_y4 -> 2023-24 | G27: =dms_y5 -> 2024-25 | H27: =dms_y6 -> 2025-26 | I27: =dms_y7 -> 2026-27
A28: TREV0201 | B28: From Other connected transmission networks | C28: 0 | D28: 0 | E28: 0 | F28: 0 | G28: 0 | H28: 0 | I28: 0
A29: TREV0202 | B29: From Distribution networks | C29: 63855190.04 | D29: 62888954.65 | E29: 62865686.15 | F29: 61284361.96 | G29: 59742814.42 | H29: 58240042.98 | I29: 56775072.28
A30: TREV0203 | B30: From Directly connected end–users | C30: 103829.9522 | D30: 102258.8321 | E30: 102220.997 | F30: 99649.72884 | G30: 97143.13842 | H30: 94699.59881 | I30: 92317.52402
A31: TREV0204 | B31: From Generators | C31: 4324899.487 | D31: 4259456.554 | E31: 4257880.583 | F31: 4150777.806 | G31: 4046369.094 | H31: 3944586.679 | I31: 3845364.501
A32: TREV0205 | B32: Other revenue | C32: 496995456.1 | D32: 489475087 | E32: 489293984.4 | F32: 476986277.9 | G32: 464988159.6 | H32: 453291842.2 | I32: 441889734
A33: TREV02 | B33: Total | C33: =SUM(C28:C32) -> 565279375.5 | D33: 556725757 | E33: 556519772.1 | F33: 542521067.4 | G33: 528874486.3 | H33: 515571171.4 | I33: 502602488.3
B36: 3.1.3 - REVENUE (penalties) ALLOWED (deducted) THROUGH INCENTIVE SCHEMES
C37: =CONCATENATE("Forecast ($0's, real ",dms_DollarReal,")") -> Forecast ($0's, real March 2022)
C38: =dms_y1 -> 2020-21 | D38: =dms_y2 -> 2021-22 | E38: =dms_y3 -> 2022-23 | F38: =dms_y4 -> 2023-24 | G38: =dms_y5 -> 2024-25 | H38: =dms_y6 -> 2025-26 | I38: =dms_y7 -> 2026-27
A39: TREV0301 | B39: EBSS | C39: 0 | D39: -3425519.227 | E39: 17050895.37 | F39: 8526313.649 | G39: 7056473.76 | H39: 5481712.772 | I39: 0
A40: TREV0302 | B40: STPIS | C40: 12343868.44 | D40: 6582635.869 | E40: 0 | F40: 0 | G40: 0 | H40: 0 | I40: 0
A41: TREV0303 | B41: Other | C41: 0 | D41: 0 | E41: 1273589.728 | F41: 1273589.728 | G41: 1273589.728 | H41: 1273589.728 | I41: 1273589.728
A42: TREV03 | B42: Total | C42: =SUM(C39:C41) -> 12343868.44 | D42: 3157116.642 | E42: 18324485.1 | F42: 9799903.376 | G42: 8330063.488 | H42: 6755302.499 | I42: 1273589.728

Sheet 3.2 Operating expenditure
B1: =(LOOKUP(dms_Model,dms_Model_List,dms_Worksheet_List)) -> REGULATORY REPORTING STATEMENT
B2: =INDEX(dms_TradingNameFull_List,MATCH(dms_TradingName,dms_TradingName_List)) -> AusNet Transmission Group Pty Ltd
B3: =IF(SUM(dms_SingleYear_Model)>0,CRY,CONCATENATE(FRCP_y1," to ",dms_MultiYear_FinalYear_Result)) -> 2022-23 to 2026-27
B4: 3.2 OPERATING EXPENDITURE
B7: 3.2.1 - OPEX CATEGORIES
C8: EXPENDITURE
C9: =CONCATENATE("Forecast ($0's, real ",dms_DollarReal,")") -> Forecast ($0's, real March 2022)
C10: =dms_y1 -> 2020-21 | D10: =dms_y2 -> 2021-22 | E10: =dms_y3 -> 2022-23 | F10: =dms_y4 -> 2023-24 | G10: =dms_y5 -> 2024-25 | H10: =dms_y6 -> 2025-26 | I10: =dms_y7 -> 2026-27
B11: OPEX CATEGORIES AND COST ALLOCATIONS - approved CAM
B12: Network Operations | C12: 6671576.801 | D12: 5459551.597 | E12: 4311913.044 | F12: 4313808.327 | G12: 4325936.28 | H12: 4347254.796 | I12: 4366905.234
B13: Network Maintenance | C13: 37684245.67 | D13: 30838149.62 | E13: 24355740.07 | F13: 24366445.53 | G13: 24434949.99 | H13: 24555367.13 | I13: 24666362.17
B14: Asset Works Program | C14: 0 | D14: 0 | E14: 0 | F14: 0 | G14: 0 | H14: 0 | I14: 0
B15: Asset Works Program - Asset Management Support | C15: 0 | D15: 0 | E15: 0 | F15: 0 | G15: 0 | H15: 0 | I15: 0
B16: Availability Rebate | C16: 0 | D16: 0 | E16: 0 | F16: 0 | G16: 0 | H16: 0 | I16: 0
B17: Easement Tax | C17: 163181460.6 | D17: 163181460.6 | E17: 163181460.6 | F17: 163181460.6 | G17: 163181460.6 | H17: 163181460.6 | I17: 163181460.6
B18: Insurance | C18: 5026707.938 | D18: 4113506.022 | E18: 3248816.31 | F18: 3250244.313 | G18: 3259382.135 | H18: 3275444.597 | I18: 3290250.244
B19: Taxes and Charges | C19: 7932478.94 | D19: 20787590.43 | E19: 19423052.65 | F19: 19425306.13 | G19: 19439726.22 | H19: 19465073.85 | I19: 19488438.15
B20: Self Insurance Costs | C20: 0 | D20: 0 | E20: 0 | F20: 0 | G20: 0 | H20: 0 | I20: 0
B21: OHS | C21: 809528.8728 | D21: 662461.781 | E21: 523207.3632 | F21: 523437.3366 | G21: 524908.9421 | H21: 527495.7299 | I21: 529880.1133
B22: Finance | C22: 5727720.256 | D22: 4687165.449 | E22: 3701888.238 | F22: 3703515.386 | G22: 3713927.546 | H22: 3732230.04 | I22: 3749100.446
B23: HR | C23: 2751180.78 | D23: 2251373.831 | E23: 1778118.224 | F23: 1778899.788 | G23: 1783901.033 | H23: 1792692.222 | I23: 1800795.54
B24: IT | C24: 9569417.678 | D24: 24425308.17 | E24: 47105758.55 | F24: 45982845.95 | G24: 44635942.19 | H24: 44212690.27 | I24: 43749227.66
B25: Building Services | C25: 880885.1015 | D25: 720854.7253 | E25: 569325.6741 | F25: 569575.9187 | G25: 571177.2393 | H25: 573992.0405 | I25: 576586.5963
B26: Strategy and Business Development | C26: 848818.2816 | D26: 694613.4838 | E26: 548600.5377 | F26: 548841.6726 | G26: 550384.7005 | H26: 553097.0346 | I26: 555597.1409
B27: Other Corporate Services | C27: 10983460.61 | D27: 8988095.569 | E27: 7098730.7 | F27: 7101850.916 | G27: 7121817.246 | H27: 7156914.057 | I27: 7189264.702
B46: Total | C46: =SUM(C12:C45) -> 252067481.5 | D46: 266810131.3 | E46: 275846611.9 | F46: 274746231.8 | G46: 273543514.1 | H46: 273373712.3 | I46: 273143868.6
B50: Instructions Table 3.2.3 must be completed if there are any proposed changes to the CAM reported in response to Schedule 1, paragraph 1.3.
B52: 3.2.3 - OPEX CATEGORIES - Revised CAM
C53: EXPENDITURE
C54: =CONCATENATE("Forecast ($0's, real ",dms_DollarReal,")") -> Forecast ($0's, real March 2022)
C55: =dms_y1 -> 2020-21 | D55: =dms_y2 -> 2021-22 | E55: =dms_y3 -> 2022-23 | F55: =dms_y4 -> 2023-24 | G55: =dms_y5 -> 2024-25 | H55: =dms_y6 -> 2025-26 | I55: =dms_y7 -> 2026-27
B56: OPEX CATEGORIES AND COST ALLOCATIONS - revised CAM
B91: Total | C91: =SUM(C57:C90) -> 0 | D91: 0 | E91: 0 | F91: 0 | G91: 0 | H91: 0 | I91: 0

Sheet 3.3 Assets (RAB)
B1: =(LOOKUP(dms_Model,dms_Model_List,dms_Worksheet_List)) -> REGULATORY REPORTING STATEMENT
B2: =INDEX(dms_TradingNameFull_List,MATCH(dms_TradingName,dms_TradingName_List)) -> AusNet Transmission Group Pty Ltd
B3: =IF(SUM(dms_SingleYear_Model)>0,CRY,CONCATENATE(FRCP_y1," to ",dms_MultiYear_FinalYear_Result)) -> 2022-23 to 2026-27
B4: 3.3 ASSETS
B6: There are FOUR tables on this worksheet. Each table has been grouped (and sub-grouped) for ease of navigation. See the Instructions sheet on how to group or ungroup tables.
B8: 3.3.1 - REGULATORY ASSET BASE VALUES
C9: =CONCATENATE("Forecast ($0's, real ",dms_DollarReal,")") -> Forecast ($0's, real March 2022)
C10: =dms_y1 -> 2020-21 | D10: =dms_y2 -> 2021-22 | E10: =dms_y3 -> 2022-23 | F10: =dms_y4 -> 2023-24 | G10: =dms_y5 -> 2024-25 | H10: =dms_y6 -> 2025-26 | I10: =dms_y7 -> 2026-27
B11: For total asset base:
A12: TRAB0101 | B12: Opening value | C12: 3226598795 | D12: 3275392791 | E12: 3472046802 | F12: 3388548070 | G12: 3498050413 | H12: 3476843535 | I12: 3473641209
A13: TRAB0102 | B13: Inflation addition
A14: TRAB0103 | B14: Straight line depreciation | C14: -189586316 | D14: -169496343.9 | E14: -185970073.6 | F14: -168715324.7 | G14: -176463643.4 | H14: -183906428.9 | I14: -187724381.6
A15: TRAB0105 | B15: Actual additions (recognised in RAB) | C15: 238606974.7 | D15: 148839071.8 | E15: 102777341.5 | F15: 278623667.9 | G15: 155722765.9 | H15: 181014102.9 | I15: 115310607.6
A16: TRAB0106 | B16: Disposals | C16: -226662.8106 | D16: -232292.8855 | E16: -306000 | F16: -406000 | G16: -466000 | H16: -310000 | I16: -318000
A17: TRAB0107 | B17: Closing value | C17: =SUM(C12:C16) -> 3275392791 | D17: 3254503226 | E17: 3388548070 | F17: 3498050413 | G17: 3476843535 | H17: 3473641209 | I17: 3400909435
B20: 3.3.2 - ASSET VALUE ROLL FORWARD
C21: =CONCATENATE("Forecast ($0's, real ",dms_DollarReal,")") -> Forecast ($0's, real March 2022)
C22: =dms_y1 -> 2020-21 | D22: =dms_y2 -> 2021-22 | E22: =dms_y3 -> 2022-23 | F22: =dms_y4 -> 2023-24 | G22: =dms_y5 -> 2024-25 | H22: =dms_y6 -> 2025-26 | I22: =dms_y7 -> 2026-27
B23: For overhead assets:
A24: TRAB0201 | B24: Opening value | C24: 1065213289 | D24: 1036321115 | E24: 1083456315 | F24: 1030782803 | G24: 990160594.6 | H24: 946833876.7 | I24: 904370671.6
A25: TRAB0202 | B25: Inflation addition
A26: TRAB0203 | B26: Straight line depreciation | C26: -52301259.75 | D26: -52494977 | E26: -68677648.52 | F26: -60793654.7 | G26: -61169376.44 | H26: -61507092.76 | I26: -61865278.01
A27: TRAB0205 | B27: Actual additions (recognised in RAB) | C27: 23409085.54 | D27: 15129321.09 | E27: 16004136 | F27: 20171446.4 | G27: 17842658.58 | H27: 19043887.66 | I27: 17850637.68
A28: TRAB0206 | B28: Disposals
A29: TRAB0207 | B29: Closing value | C29: =SUM(C24:C28) -> 1036321115 | D29: 998955459 | E29: 1030782803 | F29: 990160594.6 | G29: 946833876.7 | H29: 904370671.6 | I29: 860356031.3
B30: For underground assets:
A31: TRAB0301 | B31: Opening value | C31: 31436169.71 | D31: 29892674.81 | E31: 31974550.97 | F31: 29947762.31 | G31: 28153643.08 | H31: 26348435.69 | I31: 24533261.75
A32: TRAB0302 | B32: Inflation addition
A33: TRAB0303 | B33: Straight line depreciation | C33: -1543494.899 | D33: -1549211.808 | E33: -2026788.659 | F33: -1794119.23 | G33: -1805207.387 | H33: -1815173.943 | I33: -1825744.57
A34: TRAB0305 | B34: Actual additions (recognised in RAB) | C34: 0 | D34: 0 | E34: 0 | F34: 0 | G34: 0 | H34: 0 | I34: 0
A35: TRAB0306 | B35: Disposals
A36: TRAB0307 | B36: Closing value | C36: =SUM(C31:C35) -> 29892674.81 | D36: 28343463 | E36: 29947762.31 | F36: 28153643.08 | G36: 26348435.69 | H36: 24533261.75 | I36: 22707517.18
B37: For switchyards, substations
A38: TRAB0401 | B38: Opening value | C38: 1538712885 | D38: 1629393794 | E38: 1775818924 | F38: 1744824906 | G38: 1882373508 | H38: 1904207912 | I38: 1952976025
A39: TRAB0402 | B39: Inflation addition
A40: TRAB0403 | B40: Straight line depreciation | C40: -61366347.81 | D40: -47255132.64 | E40: -67587941.7 | F40: -55282536.63 | G40: -59618035.02 | H40: -61452481.44 | I40: -62442461.2
A41: TRAB0405 | B41: Actual additions (recognised in RAB) | C41: 152047256.9 | D41: 72069567.32 | E41: 36593924.45 | F41: 192831138.6 | G41: 81452438.87 | H41: 110220593.9 | I41: 50526503.1
A42: TRAB0406 | B42: Disposals
A43: TRAB0407 | B43: Closing value | C43: =SUM(C38:C42) -> 1629393794 | D43: 1654208229 | E43: 1744824906 | F43: 1882373508 | G43: 1904207912 | H43: 1952976025 | I43: 1941060067
B44: For easements:
A45: TRAB0501 | B45: Opening value | C45: 147717138.9 | D45: 147717138.9 | E45: 147711129.5 | F45: 147711129.5 | G45: 147711129.5 | H45: 147711129.5 | I45: 147711129.5
A46: TRAB0502 | B46: Inflation addition
A47: TRAB0503 | B47: Straight line depreciation | C47: 0 | D47: 0 | E47: 0 | F47: 0 | G47: 0 | H47: 0 | I47: 0
A48: TRAB0505 | B48: Actual additions (recognised in RAB) | C48: 0 | D48: 0 | E48: 0 | F48: 0 | G48: 0 | H48: 0 | I48: 0
A49: TRAB0506 | B49: Disposals
A50: TRAB0507 | B50: Closing value | C50: =SUM(C45:C49) -> 147717138.9 | D50: 147717138.9 | E50: 147711129.5 | F50: 147711129.5 | G50: 147711129.5 | H50: 147711129.5 | I50: 147711129.5
B51: For “other” assets with long lives:
A52: TRAB0601 | B52: Opening value | C52: 381033476.4 | D52: 381082688.9 | E52: 406999080.3 | F52: 392760088.5 | G52: 393941407.4 | H52: 385046683.6 | I52: 374797947.1
A53: TRAB0602 | B53: Inflation addition
A54: TRAB0603 | B54: Straight line depreciation | C54: -42395375.85 | D54: -42744268.46 | E54: -45181187.3 | F54: -44420523.62 | G54: -44101510.79 | H54: -45739187.72 | I54: -45859598.4
A55: TRAB0605 | B55: Actual additions (recognised in RAB) | C55: 42444588.33 | D55: 41136069.67 | E55: 30942195.56 | F55: 45601842.47 | G55: 35206786.99 | H55: 35490451.26 | I55: 32681626.79
A56: TRAB0606 | B56: Disposals
A57: TRAB0607 | B57: Closing value | C57: =SUM(C52:C56) -> 381082688.9 | D57: 379474490.1 | E57: 392760088.5 | F57: 393941407.4 | G57: 385046683.6 | H57: 374797947.1 | I57: 361619975.5
B58: For “other” assets with short lives:
A59: TRAB0701 | B59: Opening value | C59: 62485835.66 | D59: 50985378.99 | E59: 26086802.11 | F59: 42521380.18 | G59: 55710130.03 | H59: 66695497.69 | I59: 69252174.66
A60: TRAB0702 | B60: Inflation addition
A61: TRAB0703 | B61: Straight line depreciation | C61: -31979837.7 | D61: -25452753.99 | E61: -2496507.405 | F61: -6424490.552 | G61: -9769513.806 | H61: -13392493.04 | I61: -15731299.39
A62: TRAB0705 | B62: Actual additions (recognised in RAB) | C62: 20706043.85 | D62: 20504113.74 | E62: 19237085.48 | F62: 20019240.41 | G62: 21220881.46 | H62: 16259170 | I62: 14251840.01
A63: TRAB0706 | B63: Disposals | C63: -226662.8106 | D63: -232292.8855 | E63: -306000 | F63: -406000 | G63: -466000 | H63: -310000 | I63: -318000
A64: TRAB0707 | B64: Closing value | C64: =SUM(C59:C63) -> 50985378.99 | D64: 45804445.86 | E64: 42521380.18 | F64: 55710130.03 | G64: 66695497.69 | H64: 69252174.66 | I64: 67454715.27
B68: 3.3.3 - TOTAL DISAGGREGATED RAB ASSET VALUES
C69: =CONCATENATE("Forecast ($0's, real ",dms_DollarReal,")") -> Forecast ($0's, real March 2022)
C70: =dms_y1 -> 2020-21 | D70: =dms_y2 -> 2021-22 | E70: =dms_y3 -> 2022-23 | F70: =dms_y4 -> 2023-24 | G70: =dms_y5 -> 2024-25 | H70: =dms_y6 -> 2025-26 | I70: =dms_y7 -> 2026-27
A71: TRAB0801 | B71: Overhead transmission assets (wires and towers/poles etc) | C71: 3250995793 | D71: 3264948008 | E71: 3430297436 | F71: 3443299241 | G71: 3487446974 | H71: 3475242372 | I71: 3437275322
A72: TRAB0802 | B72: Underground transmission assets (cables, ducts etc) | C72: 30664422.26 | D72: 29118068.91 | E72: 30961156.64 | F72: 29050702.69 | G72: 27251039.38 | H72: 25440848.72 | I72: 23620389.46
A73: TRAB0803 | B73: Substations, switchyards, transformers etc with transmission function | C73: 1584053340 | D73: 1641801011 | E73: 1760321915 | F73: 1813599207 | G73: 1893290710 | H73: 1928591968 | I73: 1947018046
A74: TRAB0804 | B74: Easements | C74: 147717138.9 | D74: 147717138.9 | E74: 147711129.5 | F74: 147711129.5 | G74: 147711129.5 | H74: 147711129.5 | I74: 147711129.5
A75: TRAB0805 | B75: Other assets with long lives (please specify) | C75: 381058082.7 | D75: 380278589.5 | E75: 399879584.4 | F75: 393350747.9 | G75: 389494045.5 | H75: 379922315.3 | I75: 368208961.3
A76: TRAB0806 | B76: Other assets with short lives (please specify) | C76: 56735607.33 | D76: 48394912.42 | E76: 34304091.14 | F76: 49115755.1 | G76: 61202813.86 | H76: 67973836.17 | I76: 68353444.96
B79: 3.3.4 - ASSET LIVES
C80: Asset Life
C81: =dms_y1 -> 2020-21 | D81: =dms_y2 -> 2021-22 | E81: =dms_y3 -> 2022-23 | F81: =dms_y4 -> 2023-24 | G81: =dms_y5 -> 2024-25 | H81: =dms_y6 -> 2025-26 | I81: =dms_y7 -> 2026-27
B82: ESTIMATED SERVICE LIFE OF NEW ASSETS
A83: TRAB0901 | B83: Overhead transmission assets (wires and towers/poles etc) | C83: 68.76 | D83: 68.712 | E83: 68.7344 | F83: 68.76128 | G83: 68.793536 | H83: 68.7522432 | I83: 68.75069184
A84: TRAB0902 | B84: Underground transmission assets (cables, ducts etc) | C84: 60 | D84: 60 | E84: 60 | F84: 60 | G84: 60 | H84: 60 | I84: 60
A85: TRAB0903 | B85: Substations, switchyards, transformers etc with transmission function | C85: 40.76 | D85: 40.712 | E85: 40.7344 | F85: 40.76128 | G85: 40.793536 | H85: 40.7522432 | I85: 40.75069184
A86: TRAB0904 | B86: Other assets with long lives | C86: 17.69919822 | D86: 17.66580984 | E86: 17.4684206 | F86: 17.45953508 | G86: 17.43332036 | H86: 17.45045641 | I86: 17.45723579
A87: TRAB0905 | B87: Other assets with short lives | C87: 5.992582001 | D87: 6.305029437 | E87: 5.678284646 | F87: 5.614513577 | G87: 5.596284148 | H87: 5.572828748 | I87: 5.57637523
B88: ESTIMATED RESIDUAL SERVICE LIFE
A89: TRAB1001 | B89: Overhead transmission assets (wires and towers/poles etc) | C89: 20.5 | D89: 20.5 | E89: 20.5 | F89: 20.6 | G89: 20.6 | H89: 20.7 | I89: 20.9
A90: TRAB1002 | B90: Underground transmission assets (cables, ducts etc) | C90: 35.94 | D90: 35.528 | E90: 35.2536 | F90: 35.12432 | G90: 35.169184 | H90: 35.4030208 | I90: 35.29562496
A91: TRAB1003 | B91: Substations, switchyards, transformers etc with transmission function | C91: 21.8 | D91: 22.6 | E91: 22.9 | F91: 23 | G91: 22.8 | H91: 22.5 | I91: 22.2
A92: TRAB1004 | B92: Other assets with long lives | C92: 13.05634966 | D92: 13.05634966 | E92: 12 | F92: 12 | G92: 12 | H92: 12 | I92: 12
A93: TRAB1005 | B93: Other assets with short lives | C93: 3.519200174 | D93: 3.519200174 | E93: 4 | F93: 4 | G93: 4 | H93: 4 | I93: 4

Sheet 3.4 Operational data (hidden)
B1: =(LOOKUP(dms_Model,dms_Model_List,dms_Worksheet_List)) -> REGULATORY REPORTING STATEMENT
B2: =INDEX(dms_TradingNameFull_List,MATCH(dms_TradingName,dms_TradingName_List)) -> AusNet Transmission Group Pty Ltd
B3: =IF(SUM(dms_SingleYear_Model)>0,CRY,CONCATENATE(FRCP_y1," to ",dms_MultiYear_FinalYear_Result)) -> 2022-23 to 2026-27
B4: 3.4 OPERATIONAL DATA
B6: There are THREE tables on this worksheet. Each table has been grouped for ease of navigation. See the Instructions sheet on how to group or ungroup tables.
B8: 3.4.1 - ENERGY DELIVERY
D9: Forecast (0's)
C10: Units | D10: =dms_y1 -> 2020-21 | E10: =dms_y2 -> 2021-22 | F10: =dms_y3 -> 2022-23 | G10: =dms_y4 -> 2023-24 | H10: =dms_y5 -> 2024-25 | I10: =dms_y6 -> 2025-26 | J10: =dms_y7 -> 2026-27
B11: Energy grouping by downstream connection type
A12: TOPED0101 | B12: To Other connected transmission networks | C12: GWh
A13: TOPED0102 | B13: To Distribution networks | C13: GWh
A14: TOPED0103 | B14: To Directly connected end–users (330 kV) | C14: GWh
A15: TOPED0104 | B15: To Directly connected end–users (275 kV) | C15: GWh
A16: TOPED0105 | B16: To Directly connected end–users (220 kV) | C16: GWh
A17: TOPED0106 | B17: To Directly connected end–users (132 kV) | C17: GWh
A18: TOPED0107 | B18: To Directly connected end–users (110 kV) | C18: GWh
A19: TOPED0108 | B19: To Directly connected end–users (44 kV) | C19: GWh
A20: TOPED0109 | B20: To Directly connected end–users (33 kV) | C20: GWh
A21: TOPED0110 | B21: To Directly connected end–users (22 kV) | C21: GWh
A22: TOPED0111 | B22: To Directly connected end–users (11 kV) | C22: GWh
A23: TOPED0112 | B23: To Directly connected end–users (6.6 kV) | C23: GWh
A24: TOPED0113 | B24: Pumping and Power Station Auxillaries | C24: GWh
A25: TOPED01 | B25: Total energy transported | C25: GWh | D25: =SUM(D12:D24) -> 0 | E25: 0 | F25: 0 | G25: 0 | H25: 0 | I25: 0 | J25: 0
B28: 3.4.2 - CONNECTION POINTS
D29: Forecast (0's)
C30: Units | D30: =dms_y1 -> 2020-21 | E30: =dms_y2 -> 2021-22 | F30: =dms_y3 -> 2022-23 | G30: =dms_y4 -> 2023-24 | H30: =dms_y5 -> 2024-25 | I30: =dms_y6 -> 2025-26 | J30: =dms_y7 -> 2026-27
B31: Number of entry points at each transmission voltage level
A32: TOPCP0101 | B32: 500kV | C32: number
A33: TOPCP0102 | B33: 330kV | C33: number
A34: TOPCP0103 | B34: 275kV | C34: number
A35: TOPCP0104 | B35: 220kV | C35: number
A36: TOPCP0105 | B36: 132 kV | C36: number
A37: TOPCP0106 | B37: 110kV | C37: number
A38: TOPCP0107 | B38: 66 kV | C38: number
A39: TOPCP0108 | B39: 33 kV | C39: number
A40: TOPCP0109 | B40: 22 kV | C40: number
A41: TOPCP0110 | B41: 11 kV | C41: number
A42: TOPCP0111 | B42: 6.6 kV | C42: number
B43: Number of exit points at each transmission voltage level
A44: TOPCP0201 | B44: 500kV | C44: number
A45: TOPCP0202 | B45: 330kV | C45: number
A46: TOPCP0203 | B46: 275kV | C46: number
A47: TOPCP0204 | B47: 220kV | C47: number
A48: TOPCP0205 | B48: 132 kV | C48: number
A49: TOPCP0206 | B49: 110kV | C49: number
A50: TOPCP0207 | B50: 66 kV | C50: number
A51: TOPCP0208 | B51: 44 kV | C51: number
A52: TOPCP0209 | B52: 33kV | C52: number
A53: TOPCP0210 | B53: 22kV | C53: number
A54: TOPCP0211 | B54: 11kV | C54: number
A55: TOPCP0212 | B55: 6.6kV | C55: number
B59: 3.4.3 - SYSTEM DEMAND
D60: Forecast (0's)
C61: Units | D61: =dms_y1 -> 2020-21 | E61: =dms_y2 -> 2021-22 | F61: =dms_y3 -> 2022-23 | G61: =dms_y4 -> 2023-24 | H61: =dms_y5 -> 2024-25 | I61: =dms_y6 -> 2025-26 | J61: =dms_y7 -> 2026-27
B62: Annual system maximum demand characteristics – MW measure
A63: TOPSD0101 | B63: Transmission System coincident maximum demand | C63: MW
A64: TOPSD0102 | B64: Transmission System coincident weather adjusted maximum demand 10% POE | C64: MW
A65: TOPSD0103 | B65: Transmission System coincident weather adjusted maximum demand 50% POE | C65: MW
A66: TOPSD0104 | B66: Transmission System non-coincident summated maximum demand | C66: MW
A67: TOPSD0105 | B67: Transmission System non-coincident weather adjusted summated maximum demand 10% POE | C67: MW
A68: TOPSD0106 | B68: Transmission System non-coincident weather adjusted summated maximum demand 50% POE | C68: MW
B69: Annual system maximum demand characteristics – MVA measure
A70: TOPSD0201 | B70: Transmission System coincident maximum demand | C70: MVA
A71: TOPSD0202 | B71: Transmission System coincident weather adjusted maximum demand 10% POE | C71: MVA
A72: TOPSD0203 | B72: Transmission System coincident weather adjusted maximum demand 50% POE | C72: MVA
A73: TOPSD0204 | B73: Transmission System non-coincident summated maximum demand | C73: MVA
A74: TOPSD0205 | B74: Transmission System non-coincident weather adjusted summated maximum demand 10% POE | C74: MVA
A75: TOPSD0206 | B75: Transmission System non-coincident weather adjusted summated maximum demand 50% POE | C75: MVA
B76: Power factor
B77: Power factor conversion between MVA and MW
A78: TOPSD0301 | B78: Average overall network power factor conversion between MVA and MW | C78: Factor
A79: TOPSD0302 | B79: Average power factor conversion for 500 kV lines | C79: Factor
A80: TOPSD0303 | B80: Average power factor conversion for 330 kV lines | C80: Factor
A81: TOPSD0304 | B81: Average power factor conversion for 275 kV lines | C81: Factor
A82: TOPSD0305 | B82: Average power factor conversion for 220 kV lines | C82: Factor
A83: TOPSD0306 | B83: Average power factor conversion for 132 kV lines | C83: Factor
A84: TOPSD0307 | B84: Average power factor conversion for 110 kV lines | C84: Factor
A85: TOPSD0308 | B85: Average power factor conversion for 88 kV lines | C85: Factor
A86: TOPSD0309 | B86: Average power factor conversion for 66 kV lines | C86: Factor
A87: TOPSD0310 | B87: Average power factor conversion for 33 kV lines | C87: Factor
A88: TOPSD0311 | B88: Average power factor conversion for 22 kV lines | C88: Factor
A89: TOPSD0311 | B89: Average power factor conversion for 11 kV lines | C89: Factor
A90: TOPSD0312 | B90: Average power factor conversion for 6.6 kV lines | C90: Factor

Sheet 3.5 Physical assets (hidden)
B1: =(LOOKUP(dms_Model,dms_Model_List,dms_Worksheet_List)) -> REGULATORY REPORTING STATEMENT
B2: =INDEX(dms_TradingNameFull_List,MATCH(dms_TradingName,dms_TradingName_List)) -> AusNet Transmission Group Pty Ltd
B3: =IF(SUM(dms_SingleYear_Model)>0,CRY,CONCATENATE(FRCP_y1," to ",dms_MultiYear_FinalYear_Result)) -> 2022-23 to 2026-27
B4: 3.5 PHYSICAL ASSETS
B6: There is ONE table on this worksheet. It has been sub-grouped for ease of navigation. See the Instructions sheet on how to group or ungroup tables.
B8: 3.5.1 - TRANSMISSION SYSTEM CAPACITIES
D9: Forecast (0's)
C10: Units | D10: =dms_y1 -> 2020-21 | E10: =dms_y2 -> 2021-22 | F10: =dms_y3 -> 2022-23 | G10: =dms_y4 -> 2023-24 | H10: =dms_y5 -> 2024-25 | I10: =dms_y6 -> 2025-26 | J10: =dms_y7 -> 2026-27
B11: Overhead network length of circuit at each voltage
A12: TPA0101 | B12: 500 kV | C12: km
A13: TPA0102 | B13: 330 kV | C13: km
A14: TPA0103 | B14: 275 kV | C14: km
A15: TPA0104 | B15: 220 kV | C15: km
A16: TPA0105 | B16: 132 kV | C16: km
A17: TPA0106 | B17: 110 kV | C17: km
A18: TPA0107 | B18: 88 kV | C18: km
A19: TPA0108 | B19: 66 kV | C19: km
A20: TPA0109 | B20: 33 kV | C20: km
A21: TPA0109 | B21: 22 kV | C21: km
A22: TPA0109 | B22: 11 kV | C22: km
A23: TPA01 | B23: Total | D23: =SUM(D12:D22) -> 0 | E23: 0 | F23: 0 | G23: 0 | H23: 0 | I23: 0 | J23: 0
B25: Underground cable circuit length at each voltage
A26: TPA0201 | B26: 500 kV | C26: km
A27: TPA0202 | B27: 330 kV | C27: km
A28: TPA0203 | B28: 275 kV | C28: km
A29: TPA0204 | B29: 220 kV | C29: km
A30: TPA0205 | B30: 132 kV | C30: km
A31: TPA0206 | B31: 110 kV | C31: km
A32: TPA0207 | B32: 88 kV | C32: km
A33: TPA0208 | B33: 66 kV | C33: km
A34: TPA0209 | B34: 33 kV | C34: km
A35: TPA0210 | B35: 22 kV | C35: km
A36: TPA0211 | B36: 11 kV | C36: km
A37: TPA02 | B37: Total | D37: =SUM(D26:D36) -> 0 | E37: 0 | F37: 0 | G37: 0 | H37: 0 | I37: 0 | J37: 0
B39: Estimated overhead network weighted average MVA capacity by voltage class
A40: TPA0301 | B40: 500 kV | C40: MVA
A41: TPA0302 | B41: 330 kV | C41: MVA
A42: TPA0303 | B42: 275 kV | C42: MVA
A43: TPA0304 | B43: 220 kV | C43: MVA
A44: TPA0305 | B44: 132 kV | C44: MVA
A45: TPA0306 | B45: 110 kV | C45: MVA
A46: TPA0307 | B46: 88 kV | C46: MVA
A47: TPA0308 | B47: 66 kV | C47: MVA
A48: TPA0309 | B48: 33 kV | C48: MVA
A49: TPA0310 | B49: 22 kV | C49: MVA
A50: TPA0311 | B50: 11 kV | C50: MVA
B52: Estimated underground network weighted average MVA capacity by voltage class
A53: TPA0401 | B53: 500 kV | C53: MVA
A54: TPA0402 | B54: 330 kV | C54: MVA
A55: TPA0403 | B55: 275 kV | C55: MVA
A56: TPA0404 | B56: 220 kV | C56: MVA
A57: TPA0405 | B57: 132 kV | C57: MVA
A58: TPA0406 | B58: 110 kV | C58: MVA
A59: TPA0407 | B59: 88 kV | C59: MVA
A60: TPA0408 | B60: 66 kV | C60: MVA
A61: TPA0409 | B61: 33 kV | C61: MVA
A62: TPA0410 | B62: 22 kV | C62: MVA
A63: TPA0411 | B63: 11 kV | C63: MVA
B65: Installed transmission system transformer capacity
A66: TPA0501 | B66: Transmission substations (eg 500 kV to 330 kV) | C66: MVA
A67: TPA0502 | B67: Terminal points to DNSP systems | C67: MVA
A68: TPA0503 | B68: Transformer capacity for directly connected end–users owned by the TNSP | C68: MVA
A69: TPA0504 | B69: Transformer capacity for directly connected end–users owned by the end–user | C69: MVA
A70: TPA0505 | B70: Interconnector capacity | C70: MVA
A71: TPA0506 | B71: Other | C71: MVA
B73: Cold spare capacity
A74: TPA06 | B74: Cold spare capacity included in 3.5.1.5 | C74: MVA

Sheet 3.7 Operating environment
B1: =(LOOKUP(dms_Model,dms_Model_List,dms_Worksheet_List)) -> REGULATORY REPORTING STATEMENT
B2: =INDEX(dms_TradingNameFull_List,MATCH(dms_TradingName,dms_TradingName_List)) -> AusNet Transmission Group Pty Ltd
B3: =IF(SUM(dms_SingleYear_Model)>0,CRY,CONCATENATE(FRCP_y1," to ",dms_MultiYear_FinalYear_Result)) -> 2022-23 to 2026-27
B4: 3.7 OPERATING ENVIRONMENT FACTORS
A7: TEF01 | B7: 3.7.1 - TERRAIN FACTORS
D8: Forecast (0's)
C9: Units | D9: =dms_y1 -> 2020-21 | E9: =dms_y2 -> 2021-22 | F9: =dms_y3 -> 2022-23 | G9: =dms_y4 -> 2023-24 | H9: =dms_y5 -> 2024-25 | I9: =dms_y6 -> 2025-26 | J9: =dms_y7 -> 2026-27
A10: TEF0101 | B10: Total number of vegetation maintenance spans | C10: Number of spans | D10: 1273
A11: TEF0102 | B11: Average vegetation maintenance span cycle | C11: Years | D11: 3
A12: TEF0103 | B12: Average number of trees per vegetation maintenance span | C12: Trees | D12: 12.54
A13: TEF0104 | B13: Average number of defects per vegetation maintenance span | C13: Defects | D13: 0.18
A14: TEF0105 | B14: Tropical proportion | C14: Number of spans | D14: 0
A15: TEF0106 | B15: Standard vehicle access | C15: km | D15: 4583.44
A16: TEF0107 | B16: Altitude | C16: km | D16: 212.5
A17: TEF0108 | B17: Bushfire risk | C17: Number of spans | D17: 969.4
A19: TEF02 | B19: 3.7.2 - NETWORK CHARACTERISTICS
D20: Forecast (0's)
C21: Units | D21: =dms_y1 -> 2020-21 | E21: =dms_y2 -> 2021-22 | F21: =dms_y3 -> 2022-23 | G21: =dms_y4 -> 2023-24 | H21: =dms_y5 -> 2024-25 | I21: =dms_y6 -> 2025-26 | J21: =dms_y7 -> 2026-27
A22: TEF0201 | B22: Route line length | C22: km | D22: 5019.2 | E22: 5019.06 | F22: 5019.432 | G22: 5019.8984 | H22: 5020.45808 | I22: 5019.609696 | J22: 5019.691635
A23: TEF0202 | B23: Variability of dispatch | C23: %
A24: TEF0203 | B24: Concentrated load distance | C24: km
A25: TEF0204 | B25: Total number of spans | C25: number | D25: 13028 | E25: 13031 | F25: 13034.6 | G25: 13039.52 | H25: 13045.424 | I25: 13035.7088 | J25: 13037.25056

Sheet 5.4 MD & Utilisation - Spatial (hidden)
B1: =(LOOKUP(dms_Model,dms_Model_List,dms_Worksheet_List)) -> REGULATORY REPORTING STATEMENT
B2: =INDEX(dms_TradingNameFull_List,MATCH(dms_TradingName,dms_TradingName_List)) -> AusNet Transmission Group Pty Ltd
B3: =IF(SUM(dms_SingleYear_Model)>0,CRY,CONCATENATE(FRCP_y1," to ",dms_MultiYear_FinalYear_Result)) -> 2022-23 to 2026-27
B4: 5.4 MAXIMUM DEMAND AND UTILISATION AT SPATIAL LEVEL
B6: There is ONE table on this worksheet. It has been sub-grouped into blocks of approximately 500 rows for ease of navigation. See the Instructions sheet on how to group or ungroup data.
B8: 5.4.1 - NON-COINCIDENT & COINCIDENT MAXIMUM DEMAND
B9: CONNECTION POINT | C9: FORECASTING ELEMENTS | D9: UNIT | E9: MAX DEMAND | G9: TNSP NAME | H9: SERVICE | I9: SERVICE SUBCATEGORY | J9: DATA TYPE | K9: DATA TYPE SUBCATEGORY | L9: LOCATION | M9: LOCATION SUBCATEGORY | N9: MEASUREMENT | O9: DENOMINATION | Q9: =dms_y1 -> 2020-21 | R9: =dms_y2 -> 2021-22 | S9: =dms_y3 -> 2022-23 | T9: =dms_y4 -> 2023-24 | U9: =dms_y5 -> 2024-25 | V9: =dms_y6 -> 2025-26 | W9: =dms_y7 -> 2026-27
B10: NSP to enter name | C10: CONNECTION POINT RATING | D10: MVA | E10: Non-coincident | G10: TNSP NAME | H10: DEMAND FORECASTING | I10: NON-COINCIDENT MAXIMUM DEMAND | J10: DESCRIPTOR METRIC | K10: CONNECTION POINT RATING | L10: CONNECTION POINT | M10: =B10 -> NSP to enter name | N10: RATING | O10: MVA
E11: Coincident | G11: TNSP NAME | H11: DEMAND FORECASTING | I11: COINCIDENT MAXIMUM DEMAND | J11: DESCRIPTOR METRIC | K11: CONNECTION POINT RATING | L11: CONNECTION POINT | M11: =M10 -> NSP to enter name | N11: RATING | O11: MVA
C12: WINTER/SUMMER PEAKING | E12: Non-coincident | G12: TNSP NAME | H12: DEMAND FORECASTING | I12: NON-COINCIDENT MAXIMUM DEMAND | J12: DESCRIPTOR METRIC | K12: WINTER/SUMMER PEAKING | L12: CONNECTION POINT | M12: =#REF! ->  | N12: WINTER/SUMMER | O12: WINTER/SUMMER
E13: Coincident | G13: TNSP NAME | H13: DEMAND FORECASTING | I13: COINCIDENT MAXIMUM DEMAND | J13: DESCRIPTOR METRIC | K13: WINTER/SUMMER PEAKING | L13: CONNECTION POINT | M13: =M12 ->  | N13: WINTER/SUMMER | O13: WINTER/SUMMER
C14: ADJUSTMENTS - EMBEDDED GENERATION | D14: MW | E14: Non-coincident | G14: TNSP NAME | H14: DEMAND FORECASTING | I14: NON-COINCIDENT MAXIMUM DEMAND | J14: DESCRIPTOR METRIC | K14: ADJUSTMENTS - EMBEDDED GENERATION | L14: CONNECTION POINT | N14: GENERATED LOAD | O14: MW
E15: Coincident | G15: TNSP NAME | H15: DEMAND FORECASTING | I15: COINCIDENT MAXIMUM DEMAND | J15: DESCRIPTOR METRIC | K15: ADJUSTMENTS - EMBEDDED GENERATION | L15: CONNECTION POINT | N15: GENERATED LOAD | O15: MW
C16: WEATHER CORRECTED MD 10% POE | D16: MW | E16: Non-coincident | G16: TNSP NAME | H16: DEMAND FORECASTING | I16: NON-COINCIDENT MAXIMUM DEMAND | J16: DESCRIPTOR METRIC | K16: WEATHER CORRECTED MD 10% POE | L16: CONNECTION POINT | N16: MAXIMUM DEMAND | O16: MW
E17: Coincident | G17: TNSP NAME | H17: DEMAND FORECASTING | I17: COINCIDENT MAXIMUM DEMAND | J17: DESCRIPTOR METRIC | K17: WEATHER CORRECTED MD 10% POE | L17: CONNECTION POINT | N17: MAXIMUM DEMAND | O17: MW
C18: WEATHER CORRECTED MD 10% POE | D18: MVA | E18: Non-coincident | G18: TNSP NAME | H18: DEMAND FORECASTING | I18: NON-COINCIDENT MAXIMUM DEMAND | J18: DESCRIPTOR METRIC | K18: WEATHER CORRECTED MD 10% POE | L18: CONNECTION POINT | N18: MAXIMUM DEMAND | O18: MVA
E19: Coincident | G19: TNSP NAME | H19: DEMAND FORECASTING | I19: COINCIDENT MAXIMUM DEMAND | J19: DESCRIPTOR METRIC | K19: WEATHER CORRECTED MD 10% POE | L19: CONNECTION POINT | N19: MAXIMUM DEMAND | O19: MVA
C20: WEATHER CORRECTED MD 50% POE | D20: MW | E20: Non-coincident | G20: TNSP NAME | H20: DEMAND FORECASTING | I20: NON-COINCIDENT MAXIMUM DEMAND | J20: DESCRIPTOR METRIC | K20: WEATHER CORRECTED MD 50% POE | L20: CONNECTION POINT | N20: MAXIMUM DEMAND | O20: MW
E21: Coincident | G21: TNSP NAME | H21: DEMAND FORECASTING | I21: COINCIDENT MAXIMUM DEMAND | J21: DESCRIPTOR METRIC | K21: WEATHER CORRECTED MD 50% POE | L21: CONNECTION POINT | N21: MAXIMUM DEMAND | O21: MW
C22: WEATHER CORRECTED MD 50% POE | D22: MVA | E22: Non-coincident | G22: TNSP NAME | H22: DEMAND FORECASTING | I22: NON-COINCIDENT MAXIMUM DEMAND | J22: DESCRIPTOR METRIC | K22: WEATHER CORRECTED MD 50% POE | L22: CONNECTION POINT | N22: MAXIMUM DEMAND | O22: MVA
E23: Coincident | G23: TNSP NAME | H23: DEMAND FORECASTING | I23: COINCIDENT MAXIMUM DEMAND | J23: DESCRIPTOR METRIC | K23: WEATHER CORRECTED MD 50% POE | L23: CONNECTION POINT | N23: MAXIMUM DEMAND | O23: MVA
B24: NSP to enter name | C24: CONNECTION POINT RATING | D24: MVA | E24: Non-coincident | G24: TNSP NAME | H24: DEMAND FORECASTING | I24: NON-COINCIDENT MAXIMUM DEMAND | J24: DESCRIPTOR METRIC | K24: CONNECTION POINT RATING | L24: CONNECTION POINT | M24: =B24 -> NSP to enter name | N24: RATING | O24: MVA
E25: Coincident | G25: TNSP NAME | H25: DEMAND FORECASTING | I25: COINCIDENT MAXIMUM DEMAND | J25: DESCRIPTOR METRIC | K25: CONNECTION POINT RATING | L25: CONNECTION POINT | M25: =M24 -> NSP to enter name | N25: RATING | O25: MVA
C26: WINTER/SUMMER PEAKING | E26: Non-coincident | G26: TNSP NAME | H26: DEMAND FORECASTING | I26: NON-COINCIDENT MAXIMUM DEMAND | J26: DESCRIPTOR METRIC | K26: WINTER/SUMMER PEAKING | L26: CONNECTION POINT | M26: =#REF! ->  | N26: WINTER/SUMMER | O26: WINTER/SUMMER
E27: Coincident | G27: TNSP NAME | H27: DEMAND FORECASTING | I27: COINCIDENT MAXIMUM DEMAND | J27: DESCRIPTOR METRIC | K27: WINTER/SUMMER PEAKING | L27: CONNECTION POINT | M27: =M26 ->  | N27: WINTER/SUMMER | O27: WINTER/SUMMER
C28: ADJUSTMENTS - EMBEDDED GENERATION | D28: MW | E28: Non-coincident | G28: TNSP NAME | H28: DEMAND FORECASTING | I28: NON-COINCIDENT MAXIMUM DEMAND | J28: DESCRIPTOR METRIC | K28: ADJUSTMENTS - EMBEDDED GENERATION | L28: CONNECTION POINT | N28: GENERATED LOAD | O28: MW
E29: Coincident | G29: TNSP NAME | H29: DEMAND FORECASTING | I29: COINCIDENT MAXIMUM DEMAND | J29: DESCRIPTOR METRIC | K29: ADJUSTMENTS - EMBEDDED GENERATION | L29: CONNECTION POINT | N29: GENERATED LOAD | O29: MW
C30: WEATHER CORRECTED MD 10% POE | D30: MW | E30: Non-coincident | G30: TNSP NAME | H30: DEMAND FORECASTING | I30: NON-COINCIDENT MAXIMUM DEMAND | J30: DESCRIPTOR METRIC | K30: WEATHER CORRECTED MD 10% POE | L30: CONNECTION POINT | N30: MAXIMUM DEMAND | O30: MW
E31: Coincident | G31: TNSP NAME | H31: DEMAND FORECASTING | I31: COINCIDENT MAXIMUM DEMAND | J31: DESCRIPTOR METRIC | K31: WEATHER CORRECTED MD 10% POE | L31: CONNECTION POINT | N31: MAXIMUM DEMAND | O31: MW
C32: WEATHER CORRECTED MD 10% POE | D32: MVA | E32: Non-coincident | G32: TNSP NAME | H32: DEMAND FORECASTING | I32: NON-COINCIDENT MAXIMUM DEMAND | J32: DESCRIPTOR METRIC | K32: WEATHER CORRECTED MD 10% POE | L32: CONNECTION POINT | N32: MAXIMUM DEMAND | O32: MVA
E33: Coincident | G33: TNSP NAME | H33: DEMAND FORECASTING | I33: COINCIDENT MAXIMUM DEMAND | J33: DESCRIPTOR METRIC | K33: WEATHER CORRECTED MD 10% POE | L33: CONNECTION POINT | N33: MAXIMUM DEMAND | O33: MVA
C34: WEATHER CORRECTED MD 50% POE | D34: MW | E34: Non-coincident | G34: TNSP NAME | H34: DEMAND FORECASTING | I34: NON-COINCIDENT MAXIMUM DEMAND | J34: DESCRIPTOR METRIC | K34: WEATHER CORRECTED MD 50% POE | L34: CONNECTION POINT | N34: MAXIMUM DEMAND | O34: MW
E35: Coincident | G35: TNSP NAME | H35: DEMAND FORECASTING | I35: COINCIDENT MAXIMUM DEMAND | J35: DESCRIPTOR METRIC | K35: WEATHER CORRECTED MD 50% POE | L35: CONNECTION POINT | N35: MAXIMUM DEMAND | O35: MW
C36: WEATHER CORRECTED MD 50% POE | D36: MVA | E36: Non-coincident | G36: TNSP NAME | H36: DEMAND FORECASTING | I36: NON-COINCIDENT MAXIMUM DEMAND | J36: DESCRIPTOR METRIC | K36: WEATHER CORRECTED MD 50% POE | L36: CONNECTION POINT | N36: MAXIMUM DEMAND | O36: MVA
E37: Coincident | G37: TNSP NAME | H37: DEMAND FORECASTING | I37: COINCIDENT MAXIMUM DEMAND | J37: DESCRIPTOR METRIC | K37: WEATHER CORRECTED MD 50% POE | L37: CONNECTION POINT | N37: MAXIMUM DEMAND | O37: MVA
B38: NSP to enter name | C38: CONNECTION POINT RATING | D38: MVA | E38: Non-coincident
E39: Coincident
C40: WINTER/SUMMER PEAKING | E40: Non-coincident
E41: Coincident
C42: ADJUSTMENTS - EMBEDDED GENERATION | D42: MW | E42: Non-coincident
E43: Coincident
C44: WEATHER CORRECTED MD 10% POE | D44: MW | E44: Non-coincident
E45: Coincident
C46: WEATHER CORRECTED MD 10% POE | D46: MVA | E46: Non-coincident
E47: Coincident
C48: WEATHER CORRECTED MD 50% POE | D48: MW | E48: Non-coincident
E49: Coincident
C50: WEATHER CORRECTED MD 50% POE | D50: MVA | E50: Non-coincident
E51: Coincident
B52: NSP to enter name | C52: CONNECTION POINT RATING | D52: MVA | E52: Non-coincident
E53: Coincident
C54: WINTER/SUMMER PEAKING | E54: Non-coincident
E55: Coincident
C56: ADJUSTMENTS - EMBEDDED GENERATION | D56: MW | E56: Non-coincident
E57: Coincident
C58: WEATHER CORRECTED MD 10% POE | D58: MW | E58: Non-coincident
E59: Coincident
C60: WEATHER CORRECTED MD 10% POE | D60: MVA | E60: Non-coincident
E61: Coincident
C62: WEATHER CORRECTED MD 50% POE | D62: MW | E62: Non-coincident
E63: Coincident
C64: WEATHER CORRECTED MD 50% POE | D64: MVA | E64: Non-coincident
E65: Coincident
B66: NSP to enter name | C66: CONNECTION POINT RATING | D66: MVA | E66: Non-coincident
E67: Coincident
C68: WINTER/SUMMER PEAKING | E68: Non-coincident
E69: Coincident
C70: ADJUSTMENTS - EMBEDDED GENERATION | D70: MW | E70: Non-coincident
E71: Coincident
C72: WEATHER CORRECTED MD 10% POE | D72: MW | E72: Non-coincident
E73: Coincident
C74: WEATHER CORRECTED MD 10% POE | D74: MVA | E74: Non-coincident
E75: Coincident
C76: WEATHER CORRECTED MD 50% POE | D76: MW | E76: Non-coincident
E77: Coincident
C78: WEATHER CORRECTED MD 50% POE | D78: MVA | E78: Non-coincident
E79: Coincident
B80: NSP to enter name | C80: CONNECTION POINT RATING | D80: MVA | E80: Non-coincident
E81: Coincident
C82: WINTER/SUMMER PEAKING | E82: Non-coincident
E83: Coincident
C84: ADJUSTMENTS - EMBEDDED GENERATION | D84: MW | E84: Non-coincident
E85: Coincident
C86: WEATHER CORRECTED MD 10% POE | D86: MW | E86: Non-coincident
E87: Coincident
C88: WEATHER CORRECTED MD 10% POE | D88: MVA | E88: Non-coincident
E89: Coincident
C90: WEATHER CORRECTED MD 50% POE | D90: MW | E90: Non-coincident
E91: Coincident
C92: WEATHER CORRECTED MD 50% POE | D92: MVA | E92: Non-coincident
E93: Coincident
B94: NSP to enter name | C94: CONNECTION POINT RATING | D94: MVA | E94: Non-coincident
E95: Coincident
C96: WINTER/SUMMER PEAKING | E96: Non-coincident
E97: Coincident
C98: ADJUSTMENTS - EMBEDDED GENERATION | D98: MW | E98: Non-coincident
E99: Coincident
C100: WEATHER CORRECTED MD 10% POE | D100: MW | E100: Non-coincident
E101: Coincident
C102: WEATHER CORRECTED MD 10% POE | D102: MVA | E102: Non-coincident
E103: Coincident
C104: WEATHER CORRECTED MD 50% POE | D104: MW | E104: Non-coincident
E105: Coincident
C106: WEATHER CORRECTED MD 50% POE | D106: MVA | E106: Non-coincident
E107: Coincident
B108: NSP to enter name | C108: CONNECTION POINT RATING | D108: MVA | E108: Non-coincident
E109: Coincident
C110: WINTER/SUMMER PEAKING | E110: Non-coincident
E111: Coincident
C112: ADJUSTMENTS - EMBEDDED GENERATION | D112: MW | E112: Non-coincident
E113: Coincident
C114: WEATHER CORRECTED MD 10% POE | D114: MW | E114: Non-coincident
E115: Coincident
C116: WEATHER CORRECTED MD 10% POE | D116: MVA | E116: Non-coincident
E117: Coincident
C118: WEATHER CORRECTED MD 50% POE | D118: MW | E118: Non-coincident
E119: Coincident
C120: WEATHER CORRECTED MD 50% POE | D120: MVA | E120: Non-coincident
E121: Coincident
B122: NSP to enter name | C122: CONNECTION POINT RATING | D122: MVA | E122: Non-coincident
E123: Coincident
C124: WINTER/SUMMER PEAKING | E124: Non-coincident
E125: Coincident
C126: ADJUSTMENTS - EMBEDDED GENERATION | D126: MW | E126: Non-coincident
E127: Coincident
C128: WEATHER CORRECTED MD 10% POE | D128: MW | E128: Non-coincident
E129: Coincident
C130: WEATHER CORRECTED MD 10% POE | D130: MVA | E130: Non-coincident
E131: Coincident
C132: WEATHER CORRECTED MD 50% POE | D132: MW | E132: Non-coincident
E133: Coincident
C134: WEATHER CORRECTED MD 50% POE | D134: MVA | E134: Non-coincident
E135: Coincident
B136: NSP to enter name | C136: CONNECTION POINT RATING | D136: MVA | E136: Non-coincident
E137: Coincident
C138: WINTER/SUMMER PEAKING | E138: Non-coincident
E139: Coincident
C140: ADJUSTMENTS - EMBEDDED GENERATION | D140: MW | E140: Non-coincident
E141: Coincident
C142: WEATHER CORRECTED MD 10% POE | D142: MW | E142: Non-coincident
E143: Coincident
C144: WEATHER CORRECTED MD 10% POE | D144: MVA | E144: Non-coincident
E145: Coincident
C146: WEATHER CORRECTED MD 50% POE | D146: MW | E146: Non-coincident
E147: Coincident
C148: WEATHER CORRECTED MD 50% POE | D148: MVA | E148: Non-coincident
E149: Coincident
B150: NSP to enter name | C150: CONNECTION POINT RATING | D150: MVA | E150: Non-coincident
E151: Coincident
C152: WINTER/SUMMER PEAKING | E152: Non-coincident
E153: Coincident
C154: ADJUSTMENTS - EMBEDDED GENERATION | D154: MW | E154: Non-coincident
E155: Coincident
C156: WEATHER CORRECTED MD 10% POE | D156: MW | E156: Non-coincident
E157: Coincident
C158: WEATHER CORRECTED MD 10% POE | D158: MVA | E158: Non-coincident
E159: Coincident
C160: WEATHER CORRECTED MD 50% POE | D160: MW | E160: Non-coincident
E161: Coincident
C162: WEATHER CORRECTED MD 50% POE | D162: MVA | E162: Non-coincident
E163: Coincident
B164: NSP to enter name | C164: CONNECTION POINT RATING | D164: MVA | E164: Non-coincident
E165: Coincident
C166: WINTER/SUMMER PEAKING | E166: Non-coincident
E167: Coincident
C168: ADJUSTMENTS - EMBEDDED GENERATION | D168: MW | E168: Non-coincident
E169: Coincident
C170: WEATHER CORRECTED MD 10% POE | D170: MW | E170: Non-coincident
E171: Coincident
C172: WEATHER CORRECTED MD 10% POE | D172: MVA | E172: Non-coincident
E173: Coincident
C174: WEATHER CORRECTED MD 50% POE | D174: MW | E174: Non-coincident
E175: Coincident
C176: WEATHER CORRECTED MD 50% POE | D176: MVA | E176: Non-coincident
E177: Coincident
B178: NSP to enter name | C178: CONNECTION POINT RATING | D178: MVA | E178: Non-coincident
E179: Coincident
C180: WINTER/SUMMER PEAKING | E180: Non-coincident
E181: Coincident
C182: ADJUSTMENTS - EMBEDDED GENERATION | D182: MW | E182: Non-coincident
E183: Coincident
C184: WEATHER CORRECTED MD 10% POE | D184: MW | E184: Non-coincident
E185: Coincident
C186: WEATHER CORRECTED MD 10% POE | D186: MVA | E186: Non-coincident
E187: Coincident
C188: WEATHER CORRECTED MD 50% POE | D188: MW | E188: Non-coincident
E189: Coincident
C190: WEATHER CORRECTED MD 50% POE | D190: MVA | E190: Non-coincident
E191: Coincident
B192: NSP to enter name | C192: CONNECTION POINT RATING | D192: MVA | E192: Non-coincident
E193: Coincident
C194: WINTER/SUMMER PEAKING | E194: Non-coincident
E195: Coincident
C196: ADJUSTMENTS - EMBEDDED GENERATION | D196: MW | E196: Non-coincident
E197: Coincident
C198: WEATHER CORRECTED MD 10% POE | D198: MW | E198: Non-coincident
E199: Coincident
C200: WEATHER CORRECTED MD 10% POE | D200: MVA | E200: Non-coincident
E201: Coincident
C202: WEATHER CORRECTED MD 50% POE | D202: MW | E202: Non-coincident
... 4679 more rows

Sheet 7.1 Policies and Procedures
B1: =(LOOKUP(dms_Model,dms_Model_List,dms_Worksheet_List)) -> REGULATORY REPORTING STATEMENT
B2: =INDEX(dms_TradingNameFull_List,MATCH(dms_TradingName,dms_TradingName_List)) -> AusNet Transmission Group Pty Ltd
B3: =IF(SUM(dms_SingleYear_Model)>0,CRY,CONCATENATE(FRCP_y1," to ",dms_MultiYear_FinalYear_Result)) -> 2022-23 to 2026-27
B4: 7.1 PLANS, POLICIES, PROCEDURES AND STRATEGIES
B7: Instructions
B8: =CONCATENATE(dms_TradingName, " must list and provide a brief description of key internal plans, "&"policies, procedures or strategies that are used by it to plan and conduct its day to day operations and that have been relied upon in the development of its regulatory proposal. "&dms_TradingName," must identify any internal plans, policies, procedures and strategies that have changed in the current regulatory control period "&"or that are expected to change before the next regulatory control period where the change has been identified as a step change.") -> AusNet (T) must list and provide a brief description of key internal plans, policies, procedures or strategies that are used by it to plan and conduct its day to day operations and that have been relied upon in the development of its regulatory proposal. AusNet (T) must identify any internal plans, policies, procedures and strategies that have changed in the current regulatory control period or that are expected to change before the next regulatory control period where the change has been identified as a step change.
B10: 7.1.1 - PLANS, POLICIES, PROCEDURES AND STRATEGIES
C11: Brief description | D11: Relevance to regulatory proposal | E11: Expenditure impact
C12: Description of the plan, policy, procedure or strategy. | D12: Identify the element of the proposal/supporting documents that the policy, plan, procedure or strategy is relevant to e.g. replacement capex, capacity utilisation thresholds, opex | E12: Is this policy, plan or procedure identified in the response to section 4 'Step Changes' of the notice (yes or no)?
B13: Corporate
B14: AusNet Services Corporate Strategic Plan: Energising Futures | C14: Represents our view of internal and external business environments, corporate objectives and strategic directions | D14: Balanced corporate directions that set the tone and priorities of aspects of our Regulatory Proposal. | E14: No
B15: RM 10-01 Risk Management Policy and Framework | C15: This policy / framework defines AusNet Services’ approach to managing risk, including governance, roles and responsibilities, minimum standards and core processes. It forms part of AusNet Services’ broader governance framework. | D15: Informs AusNet Services asset risk management approaches | E15: No
B17: Governance framework
B18: AMS 01-03 Asset Management Committee Charter | C18: The objective of this charter is to establish and maintain an Asset Management System to optimise asset performance and life-cycle costs and so achieve AusNet Services' strategic plan, to the benefit of the community, customers and security holders. | D18: Forms part of the governance systems for capital expenditure forecasting, planning and execution. | E18: No
B19: AMS 01-04 ISO 55001 Accreditation | C19: Certificate demonstrates AusNet Services' achievement of the standard necessary to demonstrate compliance with the requirements of Asset Management systems. | D19: Demonstrates that AM system has appropriate governance and controls. | E19: No
B20: QMS 10-01-1 Health, Safety, Environment and Quality Policy | C20: High level document that shows AusNet Services commitment to providing a safe and healthy work enviornment | D20: Demonstrates that AM system has appropriate governance and controls. | E20: No
B21: PTP 10-01 Procurement Principles | C21: This document defines the priciples to ensure an integrated, consistent and compliant approach to procuremnt is undertaken across the organisation | D21: Demonstrates that cost forecasts based on unit rates are subject to formal competitive procedures. | E21: No
B22: ESMS 10-01 Electricity Safety Management Scheme | C22: This document (ESMS 10-01 Overview) contains a summary of the structure of the ESMS for AusNet Services' electricity distribution supply network. It also outlines the period of application, the location of ESMS records, exemptions and lists officers responsible for the operation of this ESMS. | D22: Forecast includes safety related expenditure required to meet the ESMS obligations which are outlined in this document. | E22: No
B23: ESMS 10-03 Electricity Safety Management System | C23: This document describe the assets forming AusNet Services' electricity distribution supply network, their location and the associated planning, design, construction, commissioning, operation, augmentation, inspection, testing, maintenance, refurbishment, replacement and decommissioning processes necessary to ensure the safety of consumers, the general public, AusNet Services' staff and contractors. | D23: Forecast includes safety related expenditure required to meet the ESMS obligations. Details of the expenditure programs are incorporated in this document. | E23: No
B24: BFM 10-02 Bushfire Mitigation Plan | C24: This document describes AusNet Services’ preventative strategies, procedures and processes within its Asset Management System used to monitor, investigate, report, analyse and implement programs to mitigate the risk of fire ignition associated with its supply networks. | D24: Forecast includes safety related expendiure required to implement the plan | E24: No
B25: BFM 10-06 Vegetation management plan | C25: This document describes AusNet Services’ management procedures that ensure maintenance of prescribed clearance spaces and compliance with regulations. It includes management procedures to be adopted and observed in tree cutting or removal in the vicinity of electric lines. | D25: Forecast includes safety related expendiure required to implement the plan | E25: No
B26: AMS 01-01 Asset Management System | C26: The document provides an overview of the systems, policies, strategies, plans, standards, processes and procedures which have been integrated in AusNet Services ISO 55001 certified asset management system to enable performance management of the gas and electricity networks and the assets forming those networks. | D26: Provides an overview of the asset management system and interdependencies. | E26: No
B27: AMS 01-10 Environmental Management System | C27: This documents sets out the environmental objective to protect the environment by responsibly managing the effects of our activities, while taking into account community concerns and threats to the functionality of the transmission network. | D27: This document describes that on environmental matters, AusNet Services will: • Conduct all operations in accordance with legislation. • Responsibly minimise adverse environmental effects and maximise favourable effects where possible. • Inform and consult with the community on significant environmental matters and respond effectively to environmental concerns raised by the community. | E27: No
B28: Project Cost Estimating | C28: This document outlines the method used for estimating the cost of projects. | D28: Chapter 4 (Capex) | E28: No
B29: Top down adjustment | C29: This document identifies areas of potential overlaps between programs an projects. | D29: Chapter 4 (Capex) | E29: No
B35: Accounting policies, procedures and methodologies (including a capitalisation policy, depreciation policy and an approved expenditure allocation methodology)
B36: Capitalisation Policy | C36: Document prescribes the accounting treatment for property, plant and equipment. | D36: Demonstrates consistency in capitalisation of assets. | E36: No
B37: Cost Allocation Method | C37: This document sets out the method used by AusNet Services for the attribution and allocation of costs to, and between, categories of electricity transmission network services. | D37: Provides the basis of allocation of costs in AusNet Services accounting | E37: No
B38: Unit Rates | C38: This document lists the unit rates used in estimating the cost of replacing, installing or maintaining network assets. | D38: Chapter 4 (Capex) | E38: No
B39: Asset management plan or equivalent documentation
B40: Asset Management Policies
B41: Asset Management Policy | C41: High level document that directs the content and implementation of asset management strategies, objectives and plans for the network and guides asset management decisions. | D41: Underpins all asset related expenditure. | E41: No
B43: Asset Management Strategies
B44: AMS 10-01 Asset Management Strategy | C44: Document sets the framework for AusNet Services’ holistic approach to management of the network assets, and in so doing establishes the linkages with and between the underpinning detailed strategies, processes and plans. The document provides context for management strategies, by taking into account the demand for network services, the condition of network assets, and expected trends into the future. It therefore also has regard to the network augmentation planning process. | D44: This strategy provides a high level overview of AusNet Services approach to managing the transmission network, meeting regulatory obligations and informing stakeholders by: • presenting a transmission network overview including network summary, planning and regulatory framework; • presenting an overview of the asset management system in regard to the transmission network; • describing asset management drivers, • Summating the process and systems and plant asset management strategies | E44: No
B45: AMS 01-09 Asset Management Risk Overview | C45: This document describes the risk assessment process used by AusNet Services to identify and assess the highest risks associated with network assets. | D45: Risk assessments are used to inform the development of optimised inspection, maintenance and replacement programs, forecast future asset replacement capital and operational expenditure, and assist in the prioritisation of work | E45: No
B46: Transmission Connection Planning Report | C46: This document sets out a joint report on transmission connection asset planning in Victoria, prepared by the five Victorian electricity Distribution Businesses | D46: These annual reports forecast and trace connection asset developments that generally will roll into AusNet Services RAB when the augmentations are established | E46: No
B48: Asset Management Plans
B49: Asset Management Plan | C49: The AMP highlights the key factors, and defines the programs, projects and planned expenditure associated with managing AusNet Services’ network assets over the forward five-year period. The AMP informs stakeholders of the context, drivers, challenges, risks, and opportunities for network investment. | D49: Provides an overview of asset management priorities and activities planned in the forward to attend to these | E49: No
B51: RIT-T documents | C51: These reports for each major station project describe the planned works and form the basis for RIT-T processes | D51: Where the projects are planned to proceed in the 2023 - 2027 regulatory period, the projects are included in the Revenue Proposal | E51: No
B52: AMS 10-52 Auxilliary power supplies | C52: The purpose of this AMS document is to present a current assessment of AusNet Services’ transmission station DC power supply population and condition. This document also specifies the key issues in the population presents key risks associated with failure | D52: This strategy is intended to assist in managing the assets, meeting regulatory obligations and informing stakeholders by: • presenting an overview of the asset population; • describing the condition and life cycle phase of the current fleet; • understand | E52: No
B53: AMS 10-53 Capacitor banks | C53: The purpose of this AMS document is to present a current assessment of AusNet Services’ transmission capacitor bank population and condition. This document also specifies the key issues in the population presents key risks associated with asset failure. | D53: This strategy is intended to assist in managing the assets, meeting regulatory obligations and informing stakeholders by: • presenting an overview of the asset population; • describing the condition and life cycle phase of the current fleet; • understand | E53: No
B54: AMS 10-54 Circuit breakers | C54: The purpose of this AMS document is to present a current assessment of AusNet Services’ transmission circuit breaker population and condition. This document also specifies the key issues in the population presents key risks associated with asset failure. | D54: This strategy is intended to assist in managing the assets, meeting regulatory obligations and informing stakeholders by: • presenting an overview of the asset population; • describing the condition and life cycle phase of the current fleet; • understand | E54: No
B55: AMS 10-55 Civil infrastructure | C55: The purpose of this AMS document is to present a current assessment of the civil infrastructure associated to AusNet Services’ transmission network. This document also specifies the key issues in the population presents key risks associated with asset fai | D55: This strategy is intended to assist in managing the assets, meeting regulatory obligations and informing stakeholders by: • presenting an overview of the asset population; • describing the condition and life cycle phase of the current fleet; • understand | E55: No
B56: AMS 10-56 Communications systems | C56: The purpose of this AMS document is to present a current assessment of the communication systems associated to AusNet Services’ transmission network. This document also specifies the key issues in the population presents key risks associated with asset fa | D56: This strategy is intended to assist in managing the assets, meeting regulatory obligations and informing stakeholders by: • presenting an overview of the asset population; • describing the condition and life cycle phase of the current fleet; • understand | E56: No
B57: AMS 10-59 Disconnectors & earth switches | C57: The purpose of this AMS document is to present a current assessment of AusNet Services’ transmission disconnector and eath switch population and condition. This document also specifies the key issues in the population presents key risks associated with a | D57: This strategy is intended to assist in managing the assets, meeting regulatory obligations and informing stakeholders by: • presenting an overview of the asset population; • describing the condition and life cycle phase of the current fleet; • understand | E57: No
B58: AMS 10-61 Fire detection and suppression | C58: The purpose of this AMS document is to present a current assessment of the fire detection and suppression associated to AusNet Services’ transmission network. This document also specifies the key issues in the population presents key risks associated with | D58: This strategy is intended to assist in managing the assets, meeting regulatory obligations and informing stakeholders by: • presenting an overview of the asset population; • describing the condition and life cycle phase of the current fleet; • understand | E58: No
B59: AMS 10-62 Gas insulated switchgear | C59: The purpose of this AMS document is to present a current assessment of AusNet Services’ transmission gas insulated switchgear population and condition. This document also specifies the key issues in the population presents key risks associated with asset | D59: This strategy is intended to assist in managing the assets, meeting regulatory obligations and informing stakeholders by: • presenting an overview of the asset population; • describing the condition and life cycle phase of the current fleet; • understand | E59: No
B60: AMS 10-63 Infrastructure security | C60: This document includes Strategies for the management of infrastructure physical security associated with the AusNet Services electricity transmission network in Victoria. This document does not include information technology security strategies: please r | D60: Identifies expenditure required to ensure network and site security including upgrades, maintenance and replacements. | E60: No
B61: AMS 10-64 Instrument transformers | C61: The purpose of this AMS document is to present a current assessment of AusNet Services’ transmission intrument transformer population and condition. This document also specifies the key issues in the population presents key risks associated with asset fa | D61: This strategy is intended to assist in managing the assets, meeting regulatory obligations and informing stakeholders by: • presenting an overview of the asset population; • describing the condition and life cycle phase of the current fleet; • understand | E61: No
B62: AMS 10-65 Line easements | C62: The purpose of this AMS document is to present a current assessment of the line easements associated to AusNet Services’ transmission network. This document also specifies the key issues in the population presents key risks associated with asset failure. | D62: This strategy is intended to assist in managing the assets, meeting regulatory obligations and informing stakeholders by: • presenting an overview of the asset population; • describing the condition and life cycle phase of the current fleet; • understand | E62: No
B63: AMS 10-66 Power cables | C63: The purpose of this AMS document is to present a current assessment of AusNet Services’ transmission power cable population and condition. This document also specifies the key issues in the population presents key risks associated with asset failure. | D63: This strategy is intended to assist in managing the assets, meeting regulatory obligations and informing stakeholders by: • presenting an overview of the asset population; • describing the condition and life cycle phase of the current fleet; • exploring | E63: No
B64: AMS 10-67 Power transformers and oil filled reactors | C64: The purpose of this AMS document is to present a current assessment of AusNet Services’ transmission power transformer and oil filled reactor population and condition. This document also specifies the key issues in the population presents key risks assoc | D64: This strategy is intended to assist in managing the assets, meeting regulatory obligations and informing stakeholders by: • presenting an overview of the asset population; • describing the condition and life cycle phase of the current fleet; • understand | E64: No
B65: AMS 10-68 Protection systems (Secondary Systems) | C65: The purpose of this AMS document is to present a current assessment of the secondary systems associated to AusNet Services’ transmission network. This document also specifies the key issues in the population presents key risks associated with asset failur | D65: This strategy is intended to assist in managing the assets, meeting regulatory obligations and informing stakeholders by: • presenting an overview of the asset population; • describing the condition and life cycle phase of the current fleet; • exploring | E65: No
B66: AMS 10-71 Static VAR compensators | C66: The purpose of this AMS document is to present a current assessment of AusNet Services’ transmission static var compensator population and condition. This document also specifies the key issues in the population presents key risks associated with asset f | D66: This strategy is intended to assist in managing the assets, meeting regulatory obligations and informing stakeholders by: • presenting an overview of the asset population; • describing the condition and life cycle phase of the current fleet; • understand | E66: No
B67: AMS 10-73 Surge arresters | C67: The purpose of this AMS document is to present a current assessment of AusNet Services’ transmission surge arrester population and condition. This document also specifies the key issues in the population presents key risks associated with asset failure. | D67: This strategy is intended to assist in managing the assets, meeting regulatory obligations and informing stakeholders by: • presenting an overview of the asset population; • describing the condition and life cycle phase of the current fleet; • understand | E67: No
B68: AMS 10-75 Transmission lines Insulators | C68: The purpose of this AMS document is to present a current assessment of AusNet Services’ transmission line insulator population and condition. This document also specifies the key issues in the population presents key risks associated with asset failure. | D68: This strategy is intended to assist in managing the assets, meeting regulatory obligations and informing stakeholders by: • presenting an overview of the asset population; • describing the condition and life cycle phase of the current fleet; • exploring | E68: No
B69: AMS 10-77 Transmission line structures | C69: The purpose of this AMS document is to present a current assessment of AusNet Services’ transmission line structure population and condition. This document also specifies the key issues in the population presents key risks associated with asset failure. | D69: This strategy is intended to assist in managing the assets, meeting regulatory obligations and informing stakeholders by: • presenting an overview of the asset population; • describing the condition and life cycle phase of the current fleet; • understand | E69: No
B70: AMS 10-78 Transmission line structures foundations | C70: The purpose of this AMS document is to present a current assessment of AusNet Services’ transmission line structure foundation population and condition. This document also specifies the key issues in the population presents key risks associated with asse | D70: This strategy is intended to assist in managing the assets, meeting regulatory obligations and informing stakeholders by: • presenting an overview of the asset population; • describing the condition and life cycle phase of the current fleet; • understand | E70: No
B71: AMS 10-79 Transmission Line Conductors and Ground Wires | C71: The purpose of this document is to define the asset management strategies for AusNet Services’ population of transmission line conductors and ground wires. This document also specifies the key issues in the population presents key risks associated with a | D71: This strategy is intended to assist in managing the assets, meeting regulatory obligations and informing stakeholders by: • presenting an overview of the asset population; • describing the condition and life cycle phase of the current fleet; • understand | E71: No
B72: Capital expenditure policies and procedures (including capex approval policies and procedures and replacement policy)
B77: Internal standards for network planning, design, maintenance and operation
B78: AMS 10-11 Asset Replacement and Refurbishment | C78: This document outlines the objectives of asset replacement and refurbishment to achieve sustainable outcomes in: • Safety of customers, the community and workers • Quality, reliability and security of supply of electricity transmission services • Compliance with codes, licences, contracts, industry standards and obligations • Quality, reliability and security of supply performance risks • Minimising total asset life cycle costs through the consideration of capital costs, operation and maintenance costs and operational risk costs • Minimising the volatility of renewal works and associated material, skill and revenue requirements. • Minimising project delivery risks and the potential impact of renewal works on network availability, market participants and connected parties | D78: This document outlines the asset replacement and refurbishment strategies that underpin the management of assets in the Victorian electricity transmission network. In the context of this document the term 'renewal' is used to mean refurbishment or replacement. | E78: No
B79: AMS 10-13 Condition Monitoring | C79: This document defines the scope of condition monitoring strategies for assets forming the Victorian electricity transmission network for the period until 2022. Its purpose is to use condition monitoring to guide the establishment of economic asset maintenance, refurbishment and replacement programs while focussed on sustainable management of worker and public safety, network reliability, and security risks. This strategy also focuses the development of condition monitoring techniques, processes and systems on the objective measurement of the condition of key network assets. | D79: This document describes the condition monitoring activities used to determine the the lifecycle phase of an asset. The methods described underpin inspection, maintenance and replacement activities. These include the deployment of Smart Aerial Image Processing technology, which has been successfully trialed in recent years, and for which an opex step change is being sought for a network-wide roll out. | E79: No
B80: AMS10-17 Asset Replacement Monitoring | C80: This document outlines how AusNet Services’ asset management practices is measured directly by the performance of extra high voltage network elements and their impact on the availability and reliability of the Victorian electricity transmission network in which they operate. | D80: This document summarises the assessment of electricity transmission network business performance providing the measure and strategies to be implemented to address regulatory and performance targets | E80: No
B81: AMS 10-19 Plant and Equipment Maintenance | C81: This document outlines the plant and equipment maintenance strategies for management of assets in the transmission network. It provides background to the different categories of maintenance, condition monitoring, and current maintenance techniques and explores contemporary practice | D81: The document describes the maintenance strategies that underpin the maintenance program for AusNet Services network assets | E81: No
B82: AMS10-22 Risk Assessment | C82: This document discusses the identification, analysis and quantification of risks that are associated with assets forming the Victorian electricity transmission network. The main component of this document is the assessment of asset failure risks by individual asset or asset class using reliability centred maintenance (RCM) techniques including Availability Work Bench (AWB) software models such as RCMCost and AVSim. | D82: This document summarises the assessment of electricity transmission network business risks using the AusNet Services Risk Management Framework. It also references the assessment of network safety risks undertaken using the AusNet Services Risk Management Framework as part of the establishment and maintenance of an accepted Electricity Safety Management Scheme (ESMS). | E82: No
B83: AMS 10-24 Asset Renewal Planning Guide | C83: This document covers AusNet Services’ regulated electricity transmission assets operating across Victoria, including: • Transmission lines, power cables and associated easements and access tracks; • Terminal stations, switching stations, communication stations and depots including associated electrical plant, buildings and civil infrastructure; • Protection, control, metering and communications equipment; • Related functions and facilities such as spares, maintenance and test equipment; and Asset management processes and systems such as System Control and Data Acquisition (SCADA) and asset management information systems (including SAP). | D83: This document provides a framework for AusNet Services’ asset renewal planning for the Victorian electricity transmission network. | E83: No
B157: Procurement and contracting out policies
B158: Procurement Principles | C158: This document defines the priciples to ensure an integrated, consistent and compliant approach to procuremnt is undertaken across the organisation | D158: Business as usual | E158: No
B162: Information technology policies or strategies
B199: Demand management policies or strategies
B203: Self insurance guidelines or policy
B208: Land and easement acquisition polices
B209: Asset Capitalisation Policy (Property, Plant & Equipment) | C209: The document describes property strategy, asset management plan and expenditure program to meet our strategic objectives and operational requirements. | D209: Chapter 4 (Capex) | E209: No
B213: Asset security plans and policies
B214: AMS 10-63 Infrastructure security | C214: This document includes Strategies for the management of infrastructure physical security associated with the AusNet Services electricity transmission network in Victoria. This document does not include information technology security strategies: please refer to the Information and Communication Technology Strategy for information on this topic. | D214: Identifies expenditure required to ensure network and site security including upgrades, maintenance and replacements. | E214: No
B224: Disaster recovery policy
B225: AMS 10 - 03 Transmission network contingency plan | C225: The Transmission Network Contingency Plan supports the recovery from asset failure, natural events such as bushfires, floods or high winds; or actions that adversely affect the performance of the Victorian transmission network. | D225: Provides the basis of strategies, processes and practices to ensure effective and efficient response to network failure events | E225: No

Sheet 7.2 Contingent projects
B1: =(LOOKUP(dms_Model,dms_Model_List,dms_Worksheet_List)) -> REGULATORY REPORTING STATEMENT
B2: =INDEX(dms_TradingNameFull_List,MATCH(dms_TradingName,dms_TradingName_List)) -> AusNet Transmission Group Pty Ltd
B3: =IF(SUM(dms_SingleYear_Model)>0,CRY,CONCATENATE(FRCP_y1," to ",dms_MultiYear_FinalYear_Result)) -> 2022-23 to 2026-27
B4: 7.2 CONTINGENT PROJECTS
B7: Instructions
B8: =CONCATENATE(dms_TradingName," is required to populate all input cells (yellow) in table 7.2.1 presented below. Additional rows may be added by ",dms_TradingName," if required." ) -> AusNet (T) is required to populate all input cells (yellow) in table 7.2.1 presented below. Additional rows may be added by AusNet (T) if required.
B10: 7.2.1 - PROPOSED CONTINGENT PROJECTS FOR THE FORTHCOMING REGULATORY CONTROL PERIOD
B11: Proposed contingent project name | C11: Proposed contingent capital expenditure ($0's, nominal) | D11: Proposed trigger events | E11: =CONCATENATE("Proposed MAR for ", FRCP_y1," ($0's, nominal)") -> Proposed MAR for 2022-23 ($0's, nominal) | F11: =CONCATENATE("5 per cent of the ", FRCP_y1," ($0's, nominal) MAR") -> 5 per cent of the 2022-23 ($0's, nominal) MAR
F12: =+E12*0.05 -> 0
E13: =+$E$12 -> 0 | F13: 0
E14: 0 | F14: 0
E15: 0 | F15: 0
E16: 0 | F16: 0
E17: 0 | F17: 0
E18: 0 | F18: 0
E19: 0 | F19: 0
E20: 0 | F20: 0
E21: 0 | F21: 0
E22: 0 | F22: 0
E23: 0 | F23: 0
E24: 0 | F24: 0
E25: 0 | F25: 0
E26: 0 | F26: 0
E27: 0 | F27: 0
E28: 0 | F28: 0
E29: 0 | F29: 0
E30: 0 | F30: 0
E31: 0 | F31: 0

Sheet 7.3 Obligations
B1: =(LOOKUP(dms_Model,dms_Model_List,dms_Worksheet_List)) -> REGULATORY REPORTING STATEMENT
B2: =INDEX(dms_TradingNameFull_List,MATCH(dms_TradingName,dms_TradingName_List)) -> AusNet Transmission Group Pty Ltd
B3: =IF(SUM(dms_SingleYear_Model)>0,CRY,CONCATENATE(FRCP_y1," to ",dms_MultiYear_FinalYear_Result)) -> 2022-23 to 2026-27
B4: 7.3 OBLIGATIONS, REQUIREMENTS & STANDARDS
B6: There is ONE table on this worksheet. It has been sub-grouped for ease of navigation. See the Instructions sheet on how to group or ungroup data.
B8: Instructions
B9: =CONCATENATE("Outline those obligations and requirements that ",dms_TradingName, " identifies as having a material impact on expenditure requirements.") -> Outline those obligations and requirements that AusNet (T) identifies as having a material impact on expenditure requirements.
B12: 7.3.1 - OBLIGATIONS OR REQUIREMENTS
C13: Brief description | D13: Relevance to regulatory proposal | E13: Expenditure impact
C14: Description of relevant obligations or requirements within the instrument (e.g. safety obligations, reliability targets) | D14: Identify what element of the proposal/supporting documents the obligation or requirement is relevant to e.g. replacement capex, capacity utilisation thresholds, opex | E14: Is the obligation or requirement identified in the response to section 4 'Step Changes' of the notice (yes or no)?
B15: Legislation
B16: Electricity Industry Act 2000 | C16: Sets out key obligations relating to distribution of electricity in Victoria including matters such as licences and compliance with industry codes, standards, rules and guidelines. | D16: Chapter 4 Capex, Chapter 5 Opex | E16: No
B17: Electricity Safety Act 1998 | C17: Establishes safety framework for distribution of electricity in Victoria. | D17: Chapter 4 Capex, Chapter 5 Opex, Chapter 12 Cost pass through | E17: No
B18: Electricity Safety (Bushfire Mitigation) Regulations 2013 | C18: Requires the preparation of bushfire mitigation plans and specifies inspection of assets. | D18: Chapter 4 Capex, Chapter 5 Opex, Chapter 12 Cost pass through | E18: No
B19: Electricity Safety (Electric Line Clearance) Regulations 2020 | C19: Prescribes line clearance requirements including vegetation clearing | D19: Chapter 4 Capex, Chapter 5 Opex | E19: No
B20: Electricity Safety (Management) Regulations 2019 | C20: Sets out requirements for Electricity Safety Management Schemes. | D20: Chapter 4 Capex, Chapter 5 Opex | E20: No
B21: Electricity System Code | C21: Requires particular power quality and connection characteristics. | D21: Chapter 4 Capex, Chapter 5 Opex | E21: No
B22: Emergency Management Act 2013 | C22: Establishes arrangments for management of emergencies in Victoria | D22: Chapter 4 Capex, Chapter 5 Opex | E22: No
B23: Terrorism (Community Protection) Act 2003 | C23: Obliges providers of essential services including electricity to plan for the protection of services from the effects of terrorist acts. | D23: Chapter 4 Capex, Chapter 5 Opex | E23: No
B24: Energy and Water Ombudsman Charter 2006 | C24: Describes how electricity licence holders must participate in a customer dispute resolution scheme and how this scheme operates in Victoria. | D24: Chapter 4 Capex, Chapter 5 Opex | E24: No
B25: Occupational Health and Safety Act 2004 | C25: Sets out duties of employers and persons who manage or control workplaces to provide for the health, safety and welfare of employees and other persons including the public. Describes the principle of eliminating or reducing risks so far as is practicable. | D25: Chapter 4 Capex, Chapter 5 Opex | E25: No
B26: Occupational Health and Safety Regulations 2017 | C26: Detail many aspects of OH&S including manual handling, exposure to noise, prevention of falls, work in confined spaces, operating plant, and asbestos control & handling. | D26: Chapter 4 Capex, Chapter 5 Opex | E26: No
B27: National Greenhouse and Energy Reporting Act 2007 | C27: Provides for reporting and dissemination of information related to greenhouse emissions including annual reporting. | D27: Chapter 4 Capex, Chapter 5 Opex | E27: No
B28: National Greenhouse and Energy Reporting Regulations 2008 | C28: Sets out requirements for reporting greenhouse emissions. | D28: Chapter 4 Capex, Chapter 5 Opex | E28: No
B29: Environment Protection Act 1970 | C29: Legislative framework for the protection of the environment in Victoria. | D29: Chapter 4 Capex, Chapter 5 Opex | E29: Yes
B30: Environmental Protection (Residential Noise) Regulations 2018 | C30: Prescribes items and times during which noise resulting from their use is deemed to be unreasonable on residential properties. | D30: Chapter 4 Capex, Chapter 5 Opex | E30: No
B31: Aboriginal Heritage Act 2006 | C31: Promotes the recognition, protection and conservation of Aboriginal culture in Victoria; recognition of Aboriginal people as the primary guardians of their cultural heritage; and management of Aboriginal cultural heritage as an integral part of land manag | D31: Chapter 4 Capex, Chapter 5 Opex | E31: No
B32: Land Act 1958 | C32: Defines Crown Land and conditions relating to Crown Land which prohibit a number of activities including refuelling of vehicles, removal of vegetation and disposal of waste. | D32: Chapter 4 Capex, Chapter 5 Opex | E32: No
B33: National Measurement Act 1960 and Regulations | C33: The National Measurement Act establishes a national system of units and standards of measuremnet of physical quantities and provides for a national system of trade measurements. The National Trade Measurement Regulations were amended in remove the exempti | D33: Chapter 4 Capex, Chapter 5 Opex | E33: No
B34: Privacy Act 1988 (cth) | C34: Obligations to protect the privacy of individuals and the responsible and transparent handling of personal information in accordance with the Australian Privacy Principles (APPs). | D34: Revenue Proposal | E34: No
B35: National Electricity (Victoria) Act 2020 | C35: This Act provides for the regulation of the national electricity wholesale market. It is part of a national scheme which gives effect to the National Electricity Law and the National Electricity Rules made under that Law. The lead legislation under the national scheme is the National Electricity (South Australia) Act 1996. The economic regulator is the Australian Energy Regulator (AER) and the rule-maker is the Australian Energy Market Commission (AEMC). The national electricity wholesale market is administered by the Australian Energy Market Operator (AEMO). | D35: Revenue Proposal | E35: No
B36: Superannuation Guarantee (Administration) Act 1992, No. 111 | C36: The Act sets out relevant superannuation payment requirements. | D36: Chapter 5 Opex | E36: No
B37: Roads Management Act 2004 (Vic) | C37: Safety obligations when carrying out works on public roadways. | D37: Chapter 4 Capex | E37: No
B38: Fair Work Act 2009 | C38: Sets out our obligations in relation to the negotiation of employment terms and conditions. | D38: Chapter 5 Opex | E38: No
B39: The Security of Critical Infrastructure Act 2018 (Cth) | C39: May result in additional cyber security obligations being imposed on AusNet Services | D39: Chapter 5 Opex | E39: Yes
B227: Licences
B228: Electricity Transmission Licence | C228: Sets out obligations of AusNet Services in relation to transmission of electricity in Victoria including requirements to connect customers, offer services, undertake network augmentation and comply with orders, codes and guidelines. | D228: Chapter 4 Capex, Chapter 5 Opex | E228: No
B232: Rules
B233: National Electricity Law (NEL) | C233: Impose obligations. | D233: Submission document | E233: No
B234: National Electricity Rules (NER) | C234: Impose obligations. | D234: Submission document | E234: No
B235: National Electricity Amendment (Five Minute Settlement) Rule 2017 No. 15 | C235: Aligns operational dispatch and financial settlement to occur at five minute intervals | D235: Chapter 10 Opex | E235: Yes
B237: Orders
B241: Codes
B257: Guidelines
B296: Default agreements
B301: Other

Sheet 7.4 Shared Assets
B1: =(LOOKUP(dms_Model,dms_Model_List,dms_Worksheet_List)) -> REGULATORY REPORTING STATEMENT
B2: =INDEX(dms_TradingNameFull_List,MATCH(dms_TradingName,dms_TradingName_List)) -> AusNet Transmission Group Pty Ltd
B3: =IF(SUM(dms_SingleYear_Model)>0,CRY,CONCATENATE(FRCP_y1," to ",dms_MultiYear_FinalYear_Result)) -> 2022-23 to 2026-27
B4: 7.4 SHARED ASSETS
B6: 7.4.1 - TOTAL UNREGULATED REVENUE EARNED WITH SHARED ASSETS
B7: Name of shared asset unregulated service | C7: Description of shared assets used to provide the service | D7: Shared asset unregulated revenue ($0's, nominal) | L7: =CONCATENATE("Shared asset unregulated revenue ($0's, real ", dms_DollarReal,")") -> Shared asset unregulated revenue ($0's, real March 2022)
D8: =PRCP_y1 -> 2012-13 | E8: =PRCP_y2 -> 2013-14 | F8: =PRCP_y3 -> 2014-15 | G8: =PRCP_y4 -> 2015-16 | H8: =PRCP_y5 -> 2016-17 | I8: =CRCP_y1 -> 2017-18 | J8: =CRCP_y2 -> 2018-19 | K8: =CRCP_y3 -> 2019-20 | L8: =dms_y1 -> 2020-21 | M8: =dms_y2 -> 2021-22 | N8: =dms_y3 -> 2022-23 | O8: =dms_y4 -> 2023-24 | P8: =dms_y5 -> 2024-25 | Q8: =dms_y6 -> 2025-26 | R8: =dms_y7 -> 2026-27 | S8: =CONCATENATE("Total ",FRCP_y1, " to ", dms_MultiYear_FinalYear_Result) -> Total 2022-23 to 2026-27
B9: HV CT & VT Testing | C9: Yarraville Laboratory, Mobile and fixed Test Equip | D9: 735984.0212 | E9: 660086.5308 | F9: 759006.7902 | G9: 795177.0764 | H9: 1178037.03 | I9: 772844.24 | J9: 1058653.73 | K9: 1046964.25 | L9: 990000 | M9: 1066595.06 | N9: 1149116.183 | O9: 1238021.862 | P9: 1333806.063 | Q9: 1437000.966 | R9: 1548179.931 | S9: =SUM(N9:R9) -> 6706125.005
B10: Calibration & Electrical Testing (incl NATA accredited) | C10: Yarraville Laboratory, laboratory Test Equip | D10: 602448.6288 | E10: 539002.1392 | F10: 620174.7498 | G10: 1439002.211 | H10: 1007975.4 | I10: 837562.78 | J10: 975379.19 | K10: 934743.16 | L10: 1150000 | M10: 1150000 | N10: 1150000 | O10: 1150000 | P10: 1150000 | Q10: 1150000 | R10: 1150000 | S10: 5750000
B11: Transformer Testing (incl Condition Monitoring) | C11: Yarraville Laboratory, Mobile and fixed Test Equip | D11: 1210117.75 | E11: 1213850.75 | F11: 1037626.73 | G11: 946780.4727 | H11: 836724.81 | I11: 1040912.95 | J11: 850963.23 | K11: 632462.34 | L11: 731105 | M11: 787669.6778 | N11: 848610.6939 | O11: 914266.64 | P11: 985002.3044 | Q11: 1061210.699 | R11: 1143315.241 | S11: 4952405.578
B12: Chemical Testing & Analysis | C12: Yarraville Laboratory, laboratory Test Equip | D12: 1739416.2 | E12: 1906633.7 | F12: 2102734.03 | G12: 1323213.36 | H12: 1451702.77 | I12: 1113968.95 | J12: 1837029.73 | K12: 2307921.85 | L12: 1944000 | M12: 2220798.253 | N12: 2537008.683 | O12: 2898243.03 | P12: 3310912.067 | Q12: 3782339.369 | R12: 4320891.287 | S12: 16849394.44
B13: Fibre Optic Cable Leasing | C13: ~1000 km of fibre optic network at all stages in its lifecycle (0-20 years old). Total SPAN fibre optic network length ~2500 km | D13: 607687.63 | E13: 1112326.98 | F13: 1168154.68 | G13: 1222987.429 | H13: 2919149.75 | I13: 2298383.79 | J13: 2176407.66 | K13: 2015486.33 | L13: 1801871 | M13: 2219268.366 | N13: 2733354.43 | O13: 3366526.804 | P13: 4146371.433 | Q13: 5106864.451 | R13: 6289852.45 | S13: 21642969.57
B14: Leasing Access to third parties – Wireless Base Stations on EHV Towers | C14: 170 x EHV towers | D14: 4729969.26 | E14: 4645563.31 | F14: 1870548.08 | G14: 5005907.215 | H14: 4472297.88 | I14: 5092625.04 | J14: 5156732.37 | K14: 5434966.97 | L14: 5788456 | M14: 6073953.477 | N14: 6373532.223 | O14: 6687886.753 | P14: 7017745.837 | Q14: 7363874.187 | R14: 7727074.236 | S14: 35170113.24
B15: Leasing Access to third parties – Various communication equipment on communication towers | C15: 20 x communication towers | D15: 1495079.87 | E15: 1667284.27 | F15: 1079411.28 | G15: 1191207.513 | H15: 1585161.43 | I15: 1697213.07 | J15: 1687802.52 | K15: 1745617.12 | L15: 1897096 | M15: 2142503.314 | N15: 2419656.385 | O15: 2732661.828 | P15: 3086157.486 | Q15: 3485381.152 | R15: 3936248.175 | S15: 15660105.03
B16: Site leasing | C16: Property leasing to third parties at various network properties/sites | D16: 875460.71 | E16: 596416.19 | F16: 309456.96 | G16: 527207.15 | H16: 336488.13 | I16: 433325.26 | J16: 617644.42 | K16: 620928.97 | L16: 288650.4511 | M16: 295150.1337 | N16: 362600.4774 | O16: 366826.0154 | P16: 369817.093 | Q16: 374269.0186 | R16: 377462.8904 | S16: 1850975.495
S17: 0
S18: 0
S19: 0
S20: 0
S21: 0
S22: 0
S23: 0
B25: 7.4.2 - SHARED ASSET UNREGULATED SERVICES - APPORTIONMENT METHODOLOGY
B26: Name of shared asset unregulated service for which revenues were apportioned | C26: Apportionment methodology

Sheet 7.9 STPIS
B1: =(LOOKUP(dms_Model,dms_Model_List,dms_Worksheet_List)) -> REGULATORY REPORTING STATEMENT
B2: =INDEX(dms_TradingNameFull_List,MATCH(dms_TradingName,dms_TradingName_List)) -> AusNet Transmission Group Pty Ltd
B3: =IF(SUM(dms_SingleYear_Model)>0,CRY,CONCATENATE(FRCP_y1," to ",dms_MultiYear_FinalYear_Result)) -> 2022-23 to 2026-27
B4: 7.9 SERVICE TARGET PERFORMANCE INCENTIVE SCHEME (STPIS)
B6: There are FOUR tables on this worksheet. Each table has been grouped (and sub-grouped) for ease of navigation. See the Instructions sheet on how to group or ungroup tables.
B8: 7.9.1 - Historical performance and proposed floor, caps and targets for the service component of the STPIS
B9: Parameter | C9: Performance actuals | I9: Average of actual performance | J9: Floor | K9: Target | L9: Cap | M9: Weighting (% of MAR)
C10: =(LEFT(PRCP_y3,2)&RIGHT(PRCP_y3,2)) -> 2015 | D10: =(LEFT(PRCP_y4,2)&RIGHT(PRCP_y4,2)) -> 2016 | E10: =LEFT(PRCP_y5,2)&RIGHT(PRCP_y5,2) -> 2017 | F10: =(LEFT(CRCP_y1,2)&RIGHT(CRCP_y1,2)) -> 2018 | G10: =(LEFT(CRCP_y2,2)&RIGHT(CRCP_y2,2)) -> 2019 | H10: =(LEFT(CRCP_y3,2)&RIGHT(CRCP_y3,2)) -> 2020
B11: Unplanned outage circuit event rate:
B12: Transmission line outage - fault | C12: 0.1900826446 | D12: 0.1487603306 | E12: 0.2195121951 | F12: 0.1803278689 | G12: 0.1300813008 | I12: =+AVERAGE(C12:H12) -> 0.173752868 | J12: 0.23153 | K12: 0.173752868 | L12: 0.11597 | M12: 0.002
B13: Transformer outage – fault | C13: 0.1428571429 | D13: 0.104 | E13: 0.125984252 | F13: 0.1496062992 | G13: 0.0625 | I13: 0.1169895388 | J13: 0.17489 | K13: 0.1169895388 | L13: 0.06633 | M13: 0.002
B14: Reactive plant – fault | C14: 0.1857142857 | D14: 0.1884057971 | E14: 0.1549295775 | F14: 0.1690140845 | G14: 0.2957746479 | I14: 0.1987676785 | J14: 0.31711 | K14: 0.1987676785 | L14: 0.1548 | M14: 0.001
B15: Transmission line outage – forced outage | C15: 0.1570247934 | D15: 0.173553719 | E15: 0.05691056911 | F15: 0.1557377049 | G15: 0.0487804878 | I15: 0.1184014548 | J15: 0.2176 | K15: 0.1184014548 | L15: 0.0192 | M15: 0.001
B16: Transformer outage – forced outage | C16: 0.1111111111 | D16: 0.128 | E16: 0.157480315 | F16: 0.07874015748 | G16: 0.1171875 | I16: 0.1185038167 | J16: 0.16123 | K16: 0.1185038167 | L16: 0.07315 | M16: 0.001
B17: Reactive plant – forced outage | C17: 0.3428571429 | D17: 0.3043478261 | E17: 0.2957746479 | F17: 0.338028169 | G17: 0.2535211268 | I17: 0.3069057825 | J17: 0.36645 | K17: 0.3069057825 | L17: 0.24736 | M17: 0.0005
B18: Loss of supply event frequency (number of events):
B19: > (x) system minutes | C19: 2 | D19: 3 | E19: 0 | F19: 0 | G19: 1 | I19: =+AVERAGE(C19:H19) -> 1.2 | J19: 3 | K19: 1 | L19: 0 | M19: 0.0015
B20: > (y) system minutes | C20: 1 | D20: 1 | E20: 0 | F20: 0 | G20: 1 | I20: =+AVERAGE(C20:H20) -> 0.6 | J20: 2 | K20: 1 | L20: 0 | M20: 0.0015
B21: Average outage duration (minutes): | C21: 97.5 | D21: 39.83333333 | E21: 19 | F21: 24.5 | G21: 87 | I21: =+AVERAGE(C21:H21) -> 53.56666667 | J21: 158.99552 | K21: 53.56666667 | L21: 18.9942 | M21: 0.002
B22: Proper operation of equipment (number of events):
B23: Failure of protection system | C23: 30 | D23: 23 | E23: 46 | F23: 28 | G23: 33 | I23: =+AVERAGE(C23:H23) -> 32 | J23: 42 | K23: 32 | L23: 23 | M23: 0
B24: Material failure of SCADA | C24: 0 | D24: 2 | E24: 0 | F24: 0 | G24: 2 | I24: =+AVERAGE(C24:H24) -> 0.8 | J24: 2 | K24: 0.8 | L24: 0 | M24: 0
B25: Incorrect operational isolation of primary or secondary equipment | C25: 5 | D25: 6 | E25: 12 | F25: 7 | G25: 1 | I25: =+AVERAGE(C25:H25) -> 6.2 | J25: 11 | K25: 6.2 | L25: 2 | M25: 0
B29: 7.9.2 - Proposed priority projects for the network capability incentive parameter
B30: Project ranking | C30: Transmission Circuit / Injection Point | D30: Scope of works | E30: =CONCATENATE(("If applicable, the present value of quantified benefits associated with the project ($0's, "),CRCP_y5,")") -> If applicable, the present value of quantified benefits associated with the project ($0's, 2021-22) | F30: =CONCATENATE(("Project cost ($0's, "),CRCP_y5,")") -> Project cost ($0's, 2021-22)
F31: =FRCP_y1 -> 2022-23 | G31: =FRCP_y2 -> 2023-24 | H31: =FRCP_y3 -> 2024-25 | I31: =FRCP_y4 -> 2025-26 | J31: =FRCP_y5 -> 2026-27 | K31: Opex | L31: Capex
B32: 1 | C32: nil projects
B33: 2
B34: 3
B35: 4
B36: 5
B37: 6
B38: 7
B39: 8
B40: 9
B41: 10
B42: 11
B43: 12
B44: 13
B45: 14
B46: 15
B47: 16
B52: 7.9.3 – Network limit information
B53: Limit identification | C53: Define limit | D53: Reason for the limit | E53: Is limit addressed by priority project | F53: Supporting information reference
B54: Dederang 330/220kV transformer | C54: Thermal and voltage limits | D54: Secondary equipment settings/plant limitations | E54: No | F54: Appendix 7B
B55: Moorabool 500/220kV transformer | C55: Thermal and voltage limits | D55: Interplant connection with lower rating than transformer | E55: No | F55: Appendix 7B
B56: BETS - KGTS No.1 220 kV line | C56: Thermal and voltage limits | D56: Secondary equipment settings/plant limitations and Reactor with lower rating than line | E56: No | F56: Appendix 7B
B57: DDTS - GNTS No.3 220 kV line | C57: Thermal and voltage limits | D57: Interplant connection with lower rating than line and Secondary equipment settings/plant limitations | E57: No | F57: Appendix 7B
B58: DDTS - SHTS No.1 220 kV line | C58: Thermal and voltage limits | D58: Secondary equipment settings/plant limitations | E58: No | F58: Appendix 7B
B59: GNTS - SHTS No.1 220 kV line | C59: Thermal and voltage limits | D59: Secondary equipment settings/plant limitations | E59: No | F59: Appendix 7B
B60: GTS - MLTS No.1 220 kV line | C60: Thermal and voltage limits | D60: Isolator with lower rating than line and Secondary equipment settings/plant limitations | E60: No | F60: Appendix 7B
B61: HOTS - BGTS No.1 220 kV line | C61: Thermal and voltage limits | D61: Secondary equipment settings/plant limitations | E61: No | F61: Appendix 7B
B62: KGTS - WETS No.1 220 kV line | C62: Thermal and voltage limits | D62: Reactor with lower rating than line | E62: No | F62: Appendix 7B
B63: RCTS - WETS No.1 220 kV line | C63: Thermal and voltage limits | D63: Reactor with lower rating than line | E63: No | F63: Appendix 7B
B66: 7.9.4 - Market impact component
D68: Market impact parameter
D69: Planned outage count(DI) | F69: Unplanned outage count (DI)
B70: Year | C70: Month | D70: without exclusions | E70: with exclusions | F70: without exclusions | G70: with exclusions | H70: Market impact parameters
B71: =LEFT(PRCP_y2,4) -> 2013 | C71: January | D71: 70 | E71: 56 | H71: 4.666666667
B72: 2013 | C72: February | D72: 98 | E72: 51 | H72: 4.25
B73: 2013 | C73: March | D73: 967 | E73: 98 | H73: 8.166666667
B74: 2013 | C74: April | D74: 97 | E74: 97 | F74: 8 | G74: 8 | H74: 8.083333333
B75: 2013 | C75: May | D75: 52 | F75: 69 | H75: 0
B76: 2013 | C76: June | D76: 138 | H76: 0
B77: 2013 | C77: July | D77: 85 | E77: 0 | F77: 1 | H77: 0
B78: 2013 | C78: August | D78: 119 | E78: 12 | H78: 1
B79: 2013 | C79: September | D79: 161 | E79: 151 | H79: 12.58333333
B80: 2013 | C80: October | D80: 146 | E80: 133 | F80: 137 | G80: 137 | H80: 11.08333333
B81: 2013 | C81: November | D81: 28 | H81: 0
B82: 2013 | C82: December | D82: 12 | F82: 2 | G82: 2 | H82: 0
B83: =CONCATENATE("Total ",LEFT(PRCP_y2,4)) -> Total 2013 | D83: =+SUM(D71:D82) -> 1973 | E83: =+SUM(E71:E82) -> 598 | F83: =+SUM(F71:F82) -> 217 | G83: =+SUM(G71:G82) -> 147 | H83: =+SUM(H71:H82) -> 49.83333333
B84: =LEFT(PRCP_y3,4) -> 2014 | C84: January | F84: 86 | G84: 78 | H84: 0
B85: 2014 | C85: February | H85: 0
B86: 2014 | C86: March | D86: 8 | H86: 0
B87: 2014 | C87: April | D87: 44 | E87: 17 | H87: 1.416666667
B88: 2014 | C88: May | D88: 79 | E88: 79 | F88: 45 | G88: 32 | H88: 6.583333333
B89: 2014 | C89: June | D89: 96 | E89: 96 | F89: 15 | H89: 8
B90: 2014 | C90: July | D90: 38 | E90: 36 | F90: 29 | G90: 14 | H90: 3
B91: 2014 | C91: August | D91: 11 | E91: 11 | F91: 26 | G91: 26 | H91: 0.9166666667
B92: 2014 | C92: September | D92: 184 | E92: 135 | F92: 43 | G92: 34 | H92: 11.25
B93: 2014 | C93: October | D93: 192 | E93: 192 | F93: 1 | H93: 16
B94: 2014 | C94: November | D94: 38 | E94: 38 | F94: 42 | G94: 37 | H94: 3.166666667
B95: 2014 | C95: December | D95: 46 | E95: 46 | F95: 15 | H95: 3.833333333
B96: =CONCATENATE("Total ", LEFT(PRCP_y3,4)) -> Total 2014 | D96: =+SUM(D84:D95) -> 736 | E96: =+SUM(E84:E95) -> 650 | F96: =+SUM(F84:F95) -> 302 | G96: =+SUM(G84:G95) -> 221 | H96: =+SUM(H84:H95) -> 54.16666667
B97: =LEFT(PRCP_y4,4) -> 2015 | C97: January | D97: 62 | F97: 158 | H97: 0
B98: 2015 | C98: February | D98: 155 | E98: 89 | F98: 98 | G98: 96 | H98: 7.416666667
B99: 2015 | C99: March | D99: 95 | E99: 18 | H99: 1.5
B100: 2015 | C100: April | D100: 582 | E100: 91 | F100: 12 | G100: 12 | H100: 7.583333333
B101: 2015 | C101: May | D101: 354 | E101: 95 | H101: 7.916666667
B102: 2015 | C102: June | D102: 24 | H102: 0
B103: 2015 | C103: July | D103: 1162 | F103: 9 | H103: 0
B104: 2015 | C104: August | D104: 430 | H104: 0
B105: 2015 | C105: September | D105: 851 | E105: 20 | F105: 88 | G105: 26 | H105: 1.666666667
B106: 2015 | C106: October | D106: 649 | E106: 220 | F106: 73 | G106: 33 | H106: 18.33333333
B107: 2015 | C107: November | D107: 332 | E107: 24 | F107: 95 | G107: 95 | H107: 2
B108: 2015 | C108: December | D108: 216 | E108: 144 | F108: 302 | G108: 6 | H108: 12
B109: =CONCATENATE("Total ", LEFT(PRCP_y4,4)) -> Total 2015 | D109: =+SUM(D97:D108) -> 4912 | E109: =+SUM(E97:E108) -> 701 | F109: =+SUM(F97:F108) -> 835 | G109: =+SUM(G97:G108) -> 268 | H109: =+SUM(H97:H108) -> 58.41666667
B110: =LEFT(PRCP_y5,4) -> 2016 | C110: January | D110: 35 | E110: 19 | F110: 40 | G110: 37 | H110: 1.583333333
B111: 2016 | C111: February | D111: 85 | E111: 9 | F111: 15 | H111: 0.75
B112: 2016 | C112: March | D112: 265 | F112: 17 | H112: 0
B113: 2016 | C113: April | D113: 339 | E113: 220 | F113: 93 | H113: 18.33333333
B114: 2016 | C114: May | D114: 184 | E114: 110 | F114: 430 | G114: 5 | H114: 9.166666667
B115: 2016 | C115: June | D115: 337 | E115: 86 | F115: 21 | G115: 2 | H115: 7.166666667
B116: 2016 | C116: July | D116: 351 | E116: 224 | F116: 44 | H116: 18.66666667
B117: 2016 | C117: August | D117: 2468 | E117: 641 | F117: 31 | G117: 31 | H117: 53.41666667
B118: 2016 | C118: September | D118: 5274 | E118: 791 | F118: 3 | G118: 3 | H118: 65.91666667
B119: 2016 | C119: October | D119: 915 | E119: 818 | H119: 68.16666667
B120: 2016 | C120: November | D120: 3803 | E120: 2173 | H120: 181.0833333
B121: 2016 | C121: December | D121: 2228 | E121: 897 | F121: 2417 | G121: 624 | H121: 74.75
B122: =CONCATENATE("Total ", LEFT(PRCP_y5,4)) -> Total 2016 | D122: =+SUM(D110:D121) -> 16284 | E122: =+SUM(E110:E121) -> 5988 | F122: =+SUM(F110:F121) -> 3111 | G122: =+SUM(G110:G121) -> 702 | H122: =+SUM(H110:H121) -> 499
B123: =LEFT(CRCP_y1,4) -> 2017 | C123: January | D123: 1304 | E123: 275 | F123: 288 | G123: 87 | H123: 22.91666667
B124: 2017 | C124: February | D124: 993 | E124: 202 | F124: 446 | G124: 280 | H124: 16.83333333
B125: 2017 | C125: March | D125: 5864 | E125: 653 | F125: 30 | G125: 9 | H125: 54.41666667
B126: 2017 | C126: April | D126: 433 | F126: 510 | G126: 157 | H126: 0
B127: 2017 | C127: May | D127: 554 | E127: 58 | F127: 33 | G127: 33 | H127: 4.833333333
B128: 2017 | C128: June | D128: 434 | E128: 76 | H128: 6.333333333
B129: 2017 | C129: July | D129: 2457 | E129: 72 | F129: 83 | G129: 33 | H129: 6
B130: 2017 | C130: August | D130: 2263 | E130: 99 | F130: 99 | H130: 8.25
B131: 2017 | C131: September | D131: 284 | E131: 5 | F131: 390 | G131: 390 | H131: 0.4166666667
B132: 2017 | C132: October | D132: 1005 | E132: 203 | F132: 1615 | G132: 1559 | H132: 16.91666667
B133: 2017 | C133: November | D133: 803 | E133: 246 | F133: 18 | H133: 20.5
B134: 2017 | C134: December | D134: 377 | E134: 57 | F134: 6 | G134: 1 | H134: 4.75
B135: =CONCATENATE("Total ", LEFT(CRCP_y1,4)) -> Total 2017 | D135: =+SUM(D123:D134) -> 16771 | E135: =+SUM(E123:E134) -> 1946 | F135: =+SUM(F123:F134) -> 3518 | G135: =+SUM(G123:G134) -> 2549 | H135: =+SUM(H123:H134) -> 162.1666667
B136: =LEFT(CRCP_y2,4) -> 2018 | C136: January | D136: 19 | E136: 1 | F136: 45 | H136: 0.08333333333
B137: 2018 | C137: February | D137: 23 | E137: 2 | F137: 17 | H137: 0.1666666667
B138: 2018 | C138: March | D138: 103 | E138: 43 | F138: 206 | G138: 89 | H138: 3.583333333
B139: 2018 | C139: April | D139: 186 | F139: 3 | G139: 3 | H139: 0
B140: 2018 | C140: May | D140: 230 | E140: 34 | H140: 2.833333333
B141: 2018 | C141: June | D141: 142 | E141: 2 | F141: 229 | G141: 2 | H141: 0.1666666667
B142: 2018 | C142: July | D142: 417 | E142: 12 | H142: 1
B143: 2018 | C143: August | D143: 498 | E143: 42 | F143: 306 | H143: 3.5
B144: 2018 | C144: September | D144: 679 | E144: 52 | F144: 13 | H144: 4.333333333
B145: 2018 | C145: October | D145: 1895 | F145: 16 | G145: 7 | H145: 0
B146: 2018 | C146: November | D146: 1014 | E146: 29 | F146: 3 | H146: 2.416666667
B147: 2018 | C147: December | D147: 50 | F147: 14 | H147: 0
B148: =CONCATENATE("Total ", LEFT(CRCP_y2,4)) -> Total 2018 | D148: =+SUM(D136:D147) -> 5256 | E148: =+SUM(E136:E147) -> 217 | F148: =+SUM(F136:F147) -> 852 | G148: =+SUM(G136:G147) -> 101 | H148: =+SUM(H136:H147) -> 18.08333333
B149: =LEFT(CRCP_y3,4) -> 2019 | C149: January | D149: 534 | F149: 23 | H149: 0
B150: 2019 | C150: February | D150: 2288 | E150: 54 | F150: 6 | H150: 4.5
B151: 2019 | C151: March | D151: 3047 | F151: 102 | H151: 0
B152: 2019 | C152: April | D152: 5396 | E152: 282 | F152: 135 | H152: 23.5
B153: 2019 | C153: May | D153: 1615 | E153: 9 | F153: 38 | H153: 0.75
B154: 2019 | C154: June | D154: 1855 | E154: 32 | F154: 12 | H154: 2.666666667
B155: 2019 | C155: July | D155: 4346 | E155: 374 | F155: 263 | G155: 1 | H155: 31.16666667
B156: 2019 | C156: August | D156: 4294 | E156: 389 | F156: 197 | H156: 32.41666667
B157: 2019 | C157: September | D157: 7426 | E157: 80 | F157: 48 | H157: 6.666666667
B158: 2019 | C158: October | D158: 7689 | E158: 49 | F158: 149 | H158: 4.083333333
B159: 2019 | C159: November | D159: 3994 | E159: 29 | F159: 1108 | G159: 681 | H159: 2.416666667
B160: 2019 | C160: December | D160: 992 | F160: 421 | G160: 4 | H160: 0
B161: =CONCATENATE("Total ", LEFT(CRCP_y3,4)) -> Total 2019 | D161: =+SUM(D149:D160) -> 43476 | E161: =+SUM(E149:E160) -> 1298 | F161: =+SUM(F149:F160) -> 2502 | G161: =+SUM(G149:G160) -> 686 | H161: =+SUM(H149:H160) -> 108.1666667
B162: =LEFT(CRCP_y4,4) -> 2020 | C162: January | H162: =+E162/12 -> 0
B163: 2020 | C163: February | H163: 0
B164: 2020 | C164: March | H164: 0
B165: 2020 | C165: April | H165: 0
B166: 2020 | C166: May | H166: 0
B167: 2020 | C167: June | H167: 0
B168: 2020 | C168: July | H168: 0
B169: 2020 | C169: August | H169: 0
B170: 2020 | C170: September | H170: 0
B171: 2020 | C171: October | H171: 0
B172: 2020 | C172: November | H172: 0
B173: 2020 | C173: December | H173: 0
B174: =CONCATENATE("Total ", LEFT(CRCP_y4,4)) -> Total 2020 | D174: =+SUM(D162:D173) -> 0 | E174: =+SUM(E162:E173) -> 0 | F174: =+SUM(F162:F173) -> 0 | G174: =+SUM(G162:G173) -> 0 | H174: =+SUM(H162:H173) -> 0

Sheet 8.2 Capex
B1: =(LOOKUP(dms_Model,dms_Model_List,dms_Worksheet_List)) -> REGULATORY REPORTING STATEMENT
B2: =INDEX(dms_TradingNameFull_List,MATCH(dms_TradingName,dms_TradingName_List)) -> AusNet Transmission Group Pty Ltd
B3: =IF(SUM(dms_SingleYear_Model)>0,CRY,CONCATENATE(FRCP_y1," to ",dms_MultiYear_FinalYear_Result)) -> 2022-23 to 2026-27
B4: 8.2 - CAPEX
B6: 8.2.7 - IMMEDIATE EXPENSING OF CAPEX
B7: ESTIMATED - AS INCURRED
C8: =CONCATENATE("($0's, real ", dms_DollarReal,")") -> ($0's, real March 2022)
C9: =dms_y1 -> 2020-21 | D9: =dms_y2 -> 2021-22 | E9: =dms_y3 -> 2022-23 | F9: =dms_y4 -> 2023-24 | G9: =dms_y5 -> 2024-25 | H9: =dms_y6 -> 2025-26 | I9: =dms_y7 -> 2026-27
B10: Secondary | C10: 942960.3769 | D10: 856082.0974 | E10: 398978.1414 | F10: 1068265.167 | G10: 606602.837 | H10: 829728.041 | I10: 773380.8042
B11: Switchgear | C11: 2895010.159 | D11: 1654976.292 | E11: 826806.8275 | F11: 3635732.962 | G11: 1550705.741 | H11: 2532263.795 | I11: 1639117.413
B12: Transformers | C12: 1037191.784 | D12: 793739.2296 | E12: 379201.2088 | F12: 3562572.465 | G12: 1557866.932 | H12: 2548988.487 | I12: 1468030.295
B13: Reactive | C13: 626498.3141 | D13: 14550.16514 | E13: 0 | F13: 0 | G13: 0 | H13: 0 | I13: 0
B14: Towers and Conductor | C14: 1459581.058 | D14: 845072.4209 | E14: 476957.2909 | F14: 716131.5771 | G14: 604357.0102 | H14: 837367.0471 | I14: 988633.5128
B15: Establishment | C15: 351778.5552 | D15: 377280.7316 | E15: 371498.5922 | F15: 1861526.037 | G15: 858210.7667 | H15: 1403051.399 | I15: 945247.7007
B16: Communications | C16: 783482.2105 | D16: 1185939.258 | E16: 899110.5158 | F16: 962917.4085 | G16: 991942.7929 | H16: 1244526.65 | I16: 1700086.612
B17: Inventory | C17: 0 | D17: 0 | E17: 0 | F17: 0 | G17: 0 | H17: 0 | I17: 0
B18: IT | C18: 384352.837 | D18: 398057.1231 | E18: 76511.99697 | F18: 74202.71207 | G18: 75769.44806 | H18: 77193.15425 | I18: 78934.46176
B19: Insulators | C19: 0 | D19: 0 | E19: 257112.8324 | F19: 279379.5992 | G19: 282385.7034 | H19: 373599.7359 | I19: 497614.8831
B20: Instrument Transformers | C20: 0 | D20: 0 | E20: 77637.99254 | F20: 84361.68289 | G20: 85269.40849 | H20: 112812.4693 | I20: 150260.1804
B21: In-house software | C21: 0 | D21: 0 | E21: 306047.9879 | F21: 296810.8483 | G21: 303077.7922 | H21: 308772.617 | I21: 315737.847
B60: Total | C60: =SUM(C10:C59) -> 8480855.294 | D60: =SUM(D10:D59) -> 6125697.317 | E60: =SUM(E10:E59) -> 4069863.386 | F60: 12541900.46 | G60: 6916188.432 | H60: =SUM(H10:H59) -> 10268303.4 | I60: =SUM(I10:I59) -> 8557043.71
